Workbook

Sheet Home

Sheet 메뉴
A1: 0 | B1: =TODAY() -> 2010-09-27 | C1: 0 | AA1: 3 | AG1: 거래처 | AJ1: 거래처 | AN1: 거래처 | BA1: =COUNT(BA3:BA505) -> 238 | BY1: =IF(CB1="","",VLOOKUP(CB1,$BF$3:$BG$500,2,FALSE)) ->  | BZ1: =COUNTIF(CA3:CA333,1000) -> 10 | CA1: =COUNT(CA3:CA10000) -> 453 | CB1: =MAX(CB89:CB1074) -> 2010-09-27 | CC1: =COUNT(CA3:CA10041)+2 -> 455 | CD1: =MAX(CA1:CA1185)+1 -> 1136 | CE1: =CF1-CG1 -> 0 | CF1: =SUM(CF3:CF1018) -> 4106770540 | CG1: =SUM(CG3:CG1018) -> 4106770540 | CH1: =CS1-CE1 -> 8167460 | CL1: =COUNTIF(CL3:CL10001,-1) -> 0 | CS1: =CT1-CU1 -> 8167460 | CT1: =SUM(CT3:CT1018) -> 362887000 | CU1: =SUM(CU3:CU1018) -> 354719540 | CV1: =CU1-CT1 -> -8167460 | DC1: 2010-01-01 | DD1: 2010-01-15 | DG1: =999-COUNTBLANK(DH2:DH998) -> 222 | DH1: 계정과목 | DI1: 차변 | DJ1: 대변 | DK1: 지급 | DL1: 입금 | DO1: =VLOOKUP(DP1,$BF$4:$BG$223,2) ->  | DP1: =195-COUNTBLANK(DP5:DP199) -> 21 | DQ1: =SUMIF($DH$2:$DH$997,$DT1,$DI$2:$DI$997) -> 0 | DR1: =DQ1-DS1 -> 0 | DS1: =SUMIF($DH$2:$DH$997,$DT1,$DK$2:$DK$997) -> 0 | DU1: =SUMIF($DH$2:$DH$997,$DT1,$DL$2:$DL$997) -> 0 | DV1: =DW1-DU1 -> 0 | DW1: =SUMIF($DH$2:$DH$997,$DT1,$DJ$2:$DJ$997) -> 0 | ED1: 2010-02-09 | EE1: =VLOOKUP(ED1,$BF$4:$BG$300,2,FALSE) ->  | EG1: =EK1 -> 0 | EH1: =IF(EM1>0,IF(EK1<2000,-EM1,0),EI1-EL1) -> 0 | EI1: =SUM(IF(($CC$2:$CC$997=EJ1)*($CB$2:$CB$997<=$EJ$6),$CF$2:$CF$997)) -> 0 | EL1: =SUM(IF(($CC$2:$CC$997=$EJ1)*($CB$2:$CB$997<=$ED$1),$CG$2:$CG$997)) -> 0 | EM1: =IF(EK1<2000,0,IF(EL1>EI1,EL1-EI1,0)) -> 0 | EO1: code | EP1: 잔액 | EQ1: code | ER1: code | ES1: 잔액 | ET1: code | EU1: code | EW1: 계정code | EX1: 계정code | EZ1: code | FA1: code | FB1: 잔액 | FF1: 계좌조회 | FG1: =COUNT(FG3:FG200) -> 6 | FJ1: =SUM(IF(($CO$3:$CO$10000=$FI1)*($CB$3:$CB$10000<$FF$3),($CF$3:$CF$10000)))-SUM(IF(($CO$3:$CO$10000=$FI1)*($CB$3:$CB$10000<$FF$3),($CG$3:$CG$10000))) -> -142304000 | FK1: =SUM(IF(($CO$3:$CO$10000=$FI1)*($CB$3:$CB$10000>=$FF$3)*($CB$3:$CB$10000<=$FF$4),($CF$3:$CF$10000))) -> 0 | FL1: =SUM(IF(($CO$3:$CO$10000=$FI1)*($CB$3:$CB$10000>=$FF$3)*($CB$3:$CB$10000<=$FF$4),($CG$3:$CG$10000))) -> 0 | FM1: =FJ1+FK1-FL1 -> -142304000 | HB1: 거래처 | HF1: 고객번호 | HG1: 고객번호 | HI1: =VLOOKUP(HJ1,$HG$6:$HH$167,2,FALSE) -> 20003 | HJ1: 하나은행 | HZ1: 거래처 | ID1: 거래처 | IE1: 사업자번호 | IV1: '===Notice===
AA2: 2010-01-01 | AF2: 거래처 | AJ2: =CONCATENATE(AI1,"*") -> * | AQ2: =COUNT(AQ4:AQ30) -> 0 | BB2: 계정과목 | BE2: 238 | BF2: 계정과목 | BG2: 238 | BH2: 계정과목 | BO2: =IF(ISNA(BO3)=TRUE,9,MATCH(BO4,CA3:CA10000,0)) -> 423 | BY2: seq | CA2: 전표번호 | CB2: 일자 | CC2: 계정과목 | CD2: 적요 | CE2: 거래처 | CF2: 차변 | CG2: 대변 | CH2: 품명 | CI2: 규격 | CJ2: 단가 | CK2: 수량 | CL2: code | CM2: 구분 | CN2: 부서 | CO2: 계좌번호 | CP2: 만기일 | CQ2: 지급장소 | CR2: 발행인 | CS2: 금리 | CT2: 지급 | CU2: 입금 | CV2: 행 | DD2: 계정과목 | DE2: 일자 | DF2: 일자 | DG2: 계정과목 | DH2: 비품 | DI2: 10000000 | DO2: code | DP2: 계정과목 | DS2: =IF(DP1<10,13,DP1+3) -> 24 | EO2: <2000 | EP2: <>0 | EQ2: >2000 | ER2: <4000 | ES2: >0 | ET2: >3000 | EU2: <4000 | EZ2: >4300 | FA2: <4400 | FB2: >0 | FF2: 0 | FG2: 고객번호 | FH2: 거래처 | FI2: 계좌번호 | FJ2: 전잔 | FK2: 증가 | FL2: 감소 | FM2: 잔액 | FT2: =SUM(IF(($CO$3:$CO$10000=$FQ5)*($CB$3:$CB$10000<$FF$3),($CF$3:$CF$10000)))-SUM(IF(($CO$3:$CO$10000=$FQ5)*($CB$3:$CB$10000<$FF$3),($CG$3:$CG$10000))) -> 19500000 | GA2: =COUNT(GA4:GA2696) -> 42 | GB2: =MAX(GB$4:GB$1000)+1 -> 42 | GC2: =GA2*10000+GB2 -> 420042 | HB2: =CONCATENATE(HA1,"*") -> * | HD2: 11 | HF2: >20000 | HG2: <30000 | HI2: =COUNT(HI4:HI82) -> 6 | HP2: 거래처 | HZ2: =CONCATENATE("*",HY1) -> * | ID2: 을지강재산업
AA3: 2010-12-31 | AG3: 거래처 | AJ3: 거래처 | AK3: 거래처 | AP3: 하나은행 | AQ3: 번호 | AR3: 거래처 | AS3: 계좌번호 | AT3: 등록일자 | AU3: 계좌종류 | BA3: 999.99 | BB3: 자산 | BE3: 1200 | BF3: (1)당좌자산 | BG3: 1200 | BH3: (1)당좌자산 | BO3: =MATCH(BO4,CA3:CA10000,0) -> 423 | BT3: 최종단가==> | BU3: =IF(ISNA(BU4)=TRUE,0,BU4) -> 4800 | BY3: 1 | BZ3: 1201 | CA3: 1000 | CB3: 2010-01-01 | CC3: 현금 | CD3: 개시현금 | CE3: 우리철강 | CF3: 45799540 | CU3: 45799540 | CV3: 10 | DD3: <>현금예금 | DE3: =CONCATENATE(">=",DC1) -> >=40179 | DF3: =CONCATENATE("<=",DD1) -> <=40193 | DG3: <>현금 | DH3: 비품상각누계액 | DJ3: 3567900 | EJ3: 합계잔액시산표 | EZ3: code | FA3: code | FB3: 잔액 | FC3: 영업외 이익 | FD3: =COUNT(FD5:FD11) -> 2 | FF3: 2010-05-27 | FG3: 20003 | FH3: 하나은행 | FI3: 411-910001-21098 | FJ3: 46297000 | FK3: 0 | FL3: 0 | FM3: 46297000 | FP3: =COUNT(FP7:FP500) -> 0 | FT3: =SUM(FR3:FR$7)-SUM(FS3:FS$7)+$FT$2 -> 19500000 | GA3: 고객구분 | GB3: 일련번호 | GC3: 고객번호 | GD3: 거래처 | GE3: 대표자 | GF3: 사업자번호 | GG3: 고유번호 | GH3: 업태 | GI3: 종목 | GJ3: 우편번호 | GK3: 주소 | GL3: 전화번호 | GM3: fax번호 | GN3: 담당자 | GO3: 휴대전화 | GP3: 전가격 | GQ3: 면세 | GR3: 세포함 | GS3: 등록일 | GT3: 특기사항 | GV3: 고객번호 | HB3: 거래처 | HC3: 고객번호 | HI3: 고객번호 | HJ3: 거래처 | HK3: 계좌번호 | HP3: 국민은행 | HZ3: =CONCATENATE("㈜",HY1,"*") -> ㈜* | IA3: 거래처 | IB3: 사업자번호 | IC3: 고객번호 | ID3: 거래처 | IE3: 대표자 | IF3: 사업자번호 | IG3: 고유번호 | IH3: 업태 | II3: 종목 | IJ3: 우편번호 | IK3: 주소 | IL3: 전화번호 | IM3: fax번호 | IN3: 담당자 | IO3: 휴대전화 | IP3: 전가격 | IQ3: 면세 | IR3: 세포함 | IS3: 등록일 | IT3: 특기사항 | IV3: EXCELSYS web version
AP4: 거래처 | AQ4: 거래처 | BA4: 1100 | BB4: 유동자산 | BE4: 1400 | BF4: (1)투자자산 | BG4: 1400 | BH4: (1)투자자산 | BO4: 1129 | BU4: =VLOOKUP(MAX(BV6:BV100),BV6:BW100,2,FALSE) -> 4800 | BY4: 2 | BZ4: 1504 | CA4: 1000 | CB4: 2010-01-01 | CC4: 비품 | CD4: 이월비품일체 | CE4: 우림가구상사 | CF4: 10000000 | DG4: <>현금예금 | DH4: 외상매출금 | DI4: 45342000 | DO4: code | DP4: 계정과목 | DQ4: 일 / 월 계 표 | EZ4: >4400 | FA4: <4500 | FB4: >0 | FC4: 계정과목 | FD4: 잔액 | FF4: 2010-06-03 | FG4: 20008 | FH4: 국민은행 | FI4: 224201-04-224210 | FJ4: -6314000 | FK4: 0 | FL4: 0 | FM4: -6314000 | FP4: 거래처 | FQ4: 계좌번호 | FR4: 일자 | FS4: 일자 | GA4: 99 | GC4: 10000 | GD4: 우리철강 | GE4: 김성경 | GF4: 111-11-11111 | GG4: 770707-2777777 | GH4: 도소매 | GI4: 철강제품 | GJ4: 150 - 834 | GK4: 서울 영등포구 문래동3가 36 | GL4: 772-3666 | GM4: 772-3667 | GQ4: FALSE | HI4: 20003 | HJ4: 하나은행 | HK4: 411-910001-21098 | HL4: 2010-01-12 | HM4: 보통예금 | HP4: 거래처 | HQ4: 계좌번호 | IC4: 10032 | ID4: 을지강재산업 | IE4: 우지언 | IF4: 182-81-38290 | IL4: 02-3245-6274 | IN4: 남상규 | IO4: 010-3274-5481 | IP4: FALSE | IQ4: FALSE | IR4: FALSE | IS4: 2010-01-25
BA5: 1200 | BB5: (1)당좌자산 | BE5: 1500 | BF5: (2)유형자산 | BG5: 1500 | BH5: (2)유형자산 | BS5: 계정과목 | BT5: 거래처 | BU5: 품명 | BV5: seq | BW5: 단가 | BY5: 3 | BZ5: 1505 | CA5: 1000 | CB5: 2010-01-01 | CC5: 비품상각누계액 | CD5: 이월비품일체 | CE5: 우리철강 | CG5: 3567900 | DH5: 대손충당금 | DJ5: 453420 | DP5: 보통예금 | EJ5: =AA2 -> 2010-01-01 | EZ5: code | FA5: code | FB5: 잔액 | FC5: 수입이자 | FD5: 20230000 | FG5: 20009 | FH5: 신한은행 | FI5: 651-231065-09 | FJ5: -17179000 | FK5: 0 | FL5: 0 | FM5: -17179000 | FP5: 국민은행 | FQ5: 875402-04-505384 | FR5: =CONCATENATE(">=",FF3) -> >=40325 | FS5: =CONCATENATE("<=",FF4) -> <=40332 | GA5: 1 | GB5: 1 | GC5: 10001 | GD5: 11 | GE5: 김성길 | GF5: 394-81-27583 | GH5: 제조,무역 | GI5: 철강제품 | GJ5: 790300 | GK5: 경북 포항시 남구 괴동동 1 | GL5: 11 | GM5: 12 | GN5: 13 | GO5: 14 | GQ5: FALSE | GS5: 2010-01-04 | GT5: 박인권과장 결혼기념이 4-3 사장집 주소 서초구 무지개아파트 111동506호 | HG5: 거래처 | HH5: 고객번호 | HI5: 20008 | HJ5: 국민은행 | HK5: 224201-04-224210 | HL5: 2010-01-13 | HP5: 국민은행 | HQ5: 224201-04-224210 | IV5: http://70007.mchol.com
BA6: 1201 | BB6: 현금 | BE6: 1300 | BF6: (2)재고자산 | BG6: 1300 | BH6: (2)재고자산 | BS6: 매출 | BT6: 가람공무 | BU6: 철근4 | BV6: 159 | BW6: 4800 | BY6: 4 | BZ6: 1207 | CA6: 1000 | CB6: 2010-01-01 | CC6: 외상매출금 | CD6: 이월 외상매출금 | CE6: 12 | CF6: 45342000 | DH6: 자본금 | DJ6: 140000000 | DP6: 외상매출금 | DS6: =DC1 -> 2010-01-01 | DT6: =DD1 -> 2010-01-15 | DU6: 까지 | ED6: 계정과목 | EE6: 일자 | EF6: code | EJ6: =ED1 -> 2010-02-09 | EZ6: >4500 | FA6: <4600 | FB6: >0 | FC6: 임대료 | FD6: 700000 | FG6: 20028 | FH6: 기업은행 | FI6: 1400-234012-01-001 | FJ6: 100000000 | FK6: 0 | FL6: 0 | FM6: 100000000 | FP6: 일자 | FQ6: 적요 | FR6: 차변 | FS6: 대변 | FT6: 잔액 | GA6: 1 | GB6: 2 | GC6: 10002 | GD6: 12 | GE6: 허경영 | GF6: 111-11-11111 | GH6: 도소매 | GI6: 건축자재 | GQ6: FALSE | GS6: 2010-01-04 | GT6: 자본금 10억 견실한 편임, | HG6: 국민은행 | HH6: 20008 | HI6: 20009 | HJ6: 신한은행 | HK6: 651-231065-09 | HL6: 2010-01-13 | HM6: 보통예금 | HP6: 국민은행 | HQ6: 875402-04-505384 | IV6: http://70007.mchol.com
BA7: 1202 | BB7: 현금예금 | BE7: 1600 | BF7: (3)무형자산 | BG7: 1600 | BH7: (3)무형자산 | BT7: =VLOOKUP(BT6,GD5:GP176,13,) -> FALSE | BY7: 5 | BZ7: 1208 | CA7: 1000 | CB7: 2010-01-01 | CC7: 대손충당금 | CD7: 대손예상액 | CE7: 우리철강 | CG7: 453420 | DH7: 차량운반구 | DI7: 32200000 | DP7: 대손충당금 | DQ7: Dr | DW7: Cr | EE7: =CONCATENATE("<=",ED1) -> <=40218 | EF7: <>3 | EH7: Dr | EM7: Cr | FG7: 20008 | FH7: 국민은행 | FI7: 875402-04-505384 | FJ7: 19500000 | FK7: 0 | FL7: 0 | FM7: 19500000 | GA7: 1 | GB7: 4 | GC7: 10004 | GD7: 13 | GE7: 하갑증 | GF7: 230-81-38273 | GH7: 건설 | GI7: 주택,일반 | GP7: FALSE | GQ7: FALSE | GR7: FALSE | GS7: 2010-01-05 | HG7: 기업은행 | HH7: 20028 | HI7: 20028 | HJ7: 기업은행 | HK7: 1400-234012-01-001 | HL7: 2010-01-23 | HM7: 보통예금 | IV7: http://user.chol.com/~d00re
BA8: 1203 | BB8: 보통예금 | BE8: 1700 | BF8: (4)기타비유동자산 | BG8: 1700 | BH8: (4)기타비유동자산 | BY8: 6 | BZ8: 3101 | CA8: 1000 | CB8: 2010-01-01 | CC8: 자본금 | CD8: 이월자본금 | CE8: 우리철강 | CG8: 140000000 | DH8: 차량운반구상각누계액 | DJ8: 14320220 | DP8: 부가세대지급금 | DQ8: 합계 | DR8: 대체 | DS8: 현금 | DT8: 계정과목 | DU8: 현금 | DV8: 대체 | DW8: 합계 | EB8: jul==> | EC8: =292-COUNTBLANK(ED9:ED300) -> 43 | ED8: 계정과목 | EG8: code | EH8: 잔액 | EI8: 합계 | EJ8: 계정과목 | EK8: code | EL8: 합계 | EM8: 잔액 | EO8: 자산 계 | ER8: 부채 및 자본 계 | EU8: 자산 계 | EV8: =SUM(EP16:EP104) -> 2322952000 | EX8: 부채 및 자본 계 | EY8: =SUM(ES16:ES102) -> 2322952000 | FG8: 20003 | FH8: 하나은행 | FI8: 101-910001-42091 | FJ8: 0 | FK8: 0 | FL8: 0 | FM8: 0 | GA8: 1 | GB8: 11 | GC8: 10011 | GD8: 가람공무 | GE8: 허인천 | GF8: 333-33-33333 | GG8: 111111111 | GH8: 전문건설 | GI8: 전기,배관 | GJ8: 123-112 | GK8: 서울 구로구 고척동 341-5 | GL8: 02-3430-2301 | GP8: FALSE | GQ8: FALSE | GR8: FALSE | GS8: 2010-01-13 | HG8: 신한은행 | HH8: 20009 | HI8: 20008 | HJ8: 국민은행 | HK8: 875402-04-505384 | HL8: 2010-02-01 | HM8: 보통예금 | IV8: http://acc.ahasw.com
BA9: 1204 | BB9: 당좌예금 | BE9: 4100 | BF9: Ⅰ.매출액 | BG9: 4100 | BH9: Ⅰ.매출액 | BY9: 7 | BZ9: 1516 | CA9: 1000 | CB9: 2010-01-01 | CC9: 차량운반구 | CD9: 7982sonata | CE9: 현대차강서대리점 | CF9: 32200000 | DH9: 상 품 | DI9: 5000000 | DP9: 상 품 | DQ9: 212021000 | DR9: 212021000 | DS9: 0 | DT9: 보통예금 | DU9: 25000000 | DV9: 129600000 | DW9: 154600000 | ED9: 현금 | EE9: 1201 | EG9: 1201 | EH9: 107811540 | EI9: 318149540 | EJ9: 현금 | EK9: 1201 | EL9: 210338000 | EM9: 0 | ET9: =EP8-ES8 -> 0 | EY9: =EV8-EY8 -> 0 | GA9: 1 | GB9: 41 | GC9: 10041 | GD9: 구로철강상사 | GE9: 구성회 | GF9: 555-01-98888 | GH9: 도소매 | GI9: 철강제품 | GL9: 02-364-5550 | GP9: FALSE | GQ9: FALSE | GR9: FALSE | GS9: 2010-05-14 | HG9: 하나은행 | HH9: 20003 | HI9: 20003 | HJ9: 하나은행 | HK9: 101-910001-42091 | HL9: 2010-02-01 | HM9: 보통예금 | IV9: ==========================
BA10: 1205 | BB10: 단기성예금 | BE10: 2100 | BF10: Ⅰ.유동부채 | BG10: 2100 | BH10: Ⅰ.유동부채 | BY10: 8 | BZ10: 1517 | CA10: 1000 | CB10: 2010-01-01 | CC10: 차량운반구상각누계액 | CD10: 7982sonata | CE10: 우리철강 | CG10: 14320220 | DH10: 상 품 | DI10: 20000000 | DP10: 비품 | DQ10: 199364000 | DR10: 199364000 | DS10: 0 | DT10: 외상매출금 | DU10: 1500000 | DV10: 24000000 | DW10: 25500000 | ED10: 보통예금 | EE10: 1203 | EG10: 1203 | EH10: 142804000 | EI10: 1122708000 | EJ10: 보통예금 | EK10: 1203 | EL10: 979904000 | EM10: 0 | EO10: =SUM(EO$8:EO8) -> 0 | EP10: =SUM(EP$8:EP8) -> 0 | EQ10: 합 계 | ES10: =SUM(ES$8:ES8) -> 0 | ET10: =SUM(ET$9:ET9) -> 0 | GA10: 2 | GB10: 8 | GC10: 20008 | GD10: 국민은행 | GF10: 1 | GP10: FALSE | GQ10: FALSE | GR10: FALSE | GS10: 2010-01-12 | HG10: 한국씨티은행 | HH10: 20038
BA11: 1206 | BB11: 유가증권 | BE11: 4200 | BF11: Ⅱ.매출원가 | BG11: 4200 | BH11: Ⅱ.매출원가 | BY11: 9 | BZ11: 1301 | CA11: 1000 | CB11: 2010-01-01 | CC11: 상 품 | CD11: 1,11,1000,1000 | CE11: 11 | CF11: 5000000 | CH11: 철근1 | CI11: 11 | CJ11: 1000 | CK11: 5000 | DH11: 매입 | DI11: 1000000 | DP11: 비품상각누계액 | DQ11: 0 | DR11: 0 | DS11: 0 | DT11: 대손충당금 | DU11: 0 | DV11: 453420 | DW11: 453420 | ED11: 외상매출금 | EE11: 1207 | EG11: 1207 | EH11: 229534000 | EI11: 387034000 | EJ11: 외상매출금 | EK11: 1207 | EL11: 157500000 | EM11: 0 | EP11: =SUMIF($EJ$9:$EJ$95,EO11,$EH$9:$EH$95) -> 0 | ES11: =SUMIF($EK$9:$EK$95,EQ11,$EM$9:$EM$95) -> 0 | GA11: 2 | GB11: 28 | GC11: 20028 | GD11: 기업은행 | GF11: 1 | GP11: FALSE | GQ11: FALSE | GR11: FALSE | GS11: 2010-01-23 | HG11: 현대화재해성 | HH11: 20027
AN12: 고객번호 | AO12: 거래처 | BA12: 1207 | BB12: 외상매출금 | BE12: 2200 | BF12: Ⅱ.비유동부채 | BG12: 2200 | BH12: Ⅱ.비유동부채 | BY12: 10 | BZ12: 1301 | CA12: 1000 | CB12: 2010-01-01 | CC12: 상 품 | CD12: 2,12,2000,3000 | CE12: 11 | CF12: 20000000 | CH12: 철근2 | CI12: 12 | CJ12: 2000 | CK12: 10000 | DH12: 매입 | DI12: 2000000 | DP12: 차량운반구 | DQ12: 37445000 | DR12: 37445000 | DS12: 0 | DT12: 부가세대지급금 | DU12: 0 | DV12: 0 | DW12: 0 | ED12: 대손충당금 | EE12: 1208 | EG12: 1208 | EH12: -453420 | EI12: 0 | EJ12: 대손충당금 | EK12: 1208 | EL12: 453420 | EM12: 0 | EP12: 대차대조표 | FC12: 영업외비용 | FD12: =COUNT(FD14:FD18) -> 1 | GA12: 3 | GB12: 5 | GC12: 30005 | GD12: 김희선 | GF12: 1 | GP12: FALSE | GQ12: FALSE | GR12: FALSE
BA13: 1208 | BB13: 대손충당금 | BE13: 3100 | BF13: Ⅲ.자본금 | BG13: 3100 | BH13: Ⅲ.자본금 | BY13: 11 | BZ13: 4202 | CA13: 1008 | CB13: 2010-01-04 | CC13: 매입 | CD13: 1,11,1000,1000 | CE13: 11 | CF13: 1000000 | CH13: 철근1 | CI13: 11 | CJ13: 1000 | CK13: 1000 | CV13: 4 | DH13: 부가세대지급금 | DI13: 300000 | DP13: 차량운반구상각누계액 | DQ13: 25000000 | DR13: 25000000 | DS13: 0 | DT13: 상 품 | DU13: 0 | DV13: 0 | DW13: 0 | ED13: 받을어음 | EE13: 1209 | EG13: 1209 | EH13: 35500000 | EI13: 35500000 | EJ13: 받을어음 | EK13: 1209 | EL13: 0 | EM13: 0 | EP13: =$EJ$6 -> 2010-02-09 | EU13: code | EV13: code | FC13: 계정과목 | FD13: 잔액 | GA13: 1 | GB13: 21 | GC13: 10021 | GD13: 나라컴퓨터 | GF13: 131-81-32019 | GL13: 02-3410-3293 | GP13: FALSE | GQ13: FALSE | GR13: FALSE | GS13: 2010-01-20 | GT13: NT
BA14: 1209 | BB14: 받을어음 | BE14: 3200 | BF14: Ⅳ.자본잉여금 | BG14: 3200 | BH14: Ⅳ.자본잉여금 | BY14: 12 | BZ14: 4202 | CA14: 1008 | CB14: 2010-01-04 | CC14: 매입 | CD14: 2,12,2000,1000 | CE14: 11 | CF14: 2000000 | CH14: 철근2 | CI14: 12 | CJ14: 2000 | CK14: 1000 | DH14: 외상매입금 | DJ14: 3300000 | DP14: 외상매입금 | DQ14: 10000000 | DR14: 10000000 | DS14: 0 | DT14: 비품 | DU14: 0 | DV14: 0 | DW14: 0 | ED14: 선급금 | EE14: 1217 | EG14: 1217 | EH14: 50000000 | EI14: 50000000 | EJ14: 선급금 | EK14: 1217 | EL14: 0 | EM14: 0 | EN14: =COUNT(EN16:EN100) -> 20 | EQ14: =COUNT(EQ16:EQ100) -> 8 | EU14: >4300 | EV14: <4400 | EW14: =COUNT(EW16:EW40) -> 10 | FC14: 기부금 | FD14: 1000000 | GA14: 3 | GB14: 25 | GC14: 30025 | GD14: 남부세무서 | GF14: 1 | GP14: FALSE | GQ14: FALSE | GR14: FALSE | GS14: 2010-01-21
BA15: 1210 | BB15: 할인어음 | BE15: 4300 | BF15: Ⅳ.판매비와관리비 | BG15: 4300 | BH15: Ⅳ.판매비와관리비 | BY15: 13 | BZ15: 1219 | CA15: 1008 | CB15: 2010-01-04 | CC15: 부가세대지급금 | CD15: 1 외 | CE15: 11 | CF15: 300000 | DH15: 매출 | DJ15: 600000 | DL15: 1000000 | DP15: 부가세예수금 | DQ15: 0 | DR15: 0 | DS15: 0 | DT15: 비품상각누계액 | DU15: 0 | DV15: 3567900 | DW15: 3567900 | ED15: 부가세대지급금 | EE15: 1219 | EG15: 1219 | EH15: 81355000 | EI15: 81355000 | EJ15: 부가세대지급금 | EK15: 1219 | EL15: 0 | EM15: 0 | EN15: code | EO15: 계정과목 | EP15: 금액 | EQ15: code | ER15: 계정과목 | ES15: 금액 | EU15: code | EV15: 계정과목 | EW15: 잔액 | GA15: 4 | GB15: 33 | GC15: 40033 | GD15: 내외빌딩관리 | GE15: 염상균 | GF15: 111-04-10394 | GP15: FALSE | GQ15: FALSE | GR15: FALSE | GS15: 2010-01-26
BA16: 1211 | BB16: 단기대여금 | BE16: 3300 | BF16: Ⅴ.자본조정 | BG16: 3300 | BH16: Ⅴ.자본조정 | BY16: 14 | BZ16: 2101 | CA16: 1008 | CB16: 2010-01-04 | CC16: 외상매입금 | CD16: 1 외 | CE16: 11 | CG16: 3300000 | DH16: 매출 | DJ16: 1200000 | DP16: 가수금 | DQ16: 32200000 | DR16: 32200000 | DS16: 0 | DT16: 차량운반구 | DU16: 0 | DV16: 0 | DW16: 0 | ED16: 선급법인세 | EE16: 1222 | EG16: 1222 | EH16: 23000 | EI16: 23000 | EJ16: 선급법인세 | EK16: 1222 | EL16: 0 | EM16: 0 | EN16: 1201 | EO16: 현금 | EP16: 107811540 | EQ16: 2101 | ER16: 외상매입금 | ES16: 364745000 | EU16: 4301 | EV16: 급여 | EW16: 13000000 | GA16: 3 | GB16: 29 | GC16: 30029 | GD16: 내일신문 | GE16: 장명국 | GF16: 1 | GP16: FALSE | GQ16: FALSE | GR16: FALSE | GS16: 2010-01-23
BA17: 1212 | BB17: 주주임원관계회사단기대여금 | BE17: 3400 | BF17: Ⅵ.기타포괄손익누계액 | BG17: 3400 | BH17: Ⅵ.기타포괄손익누계액 | BY17: 15 | BZ17: 4100 | CA17: 1009 | CB17: 2010-01-04 | CC17: 매출 | CD17: 1,11,1200,1000 | CE17: 12 | CG17: 600000 | CH17: 철근1 | CI17: 11 | CJ17: 1200 | CK17: 500 | CU17: 1000000 | CV17: 5 | DH17: 부가세예수금 | DJ17: 180000 | DP17: 자본금 | DQ17: 0 | DR17: 0 | DS17: 0 | DT17: 차량운반구상각누계액 | DU17: 0 | DV17: 14320220 | DW17: 14320220 | ED17: 상 품 | EE17: 1301 | EG17: 1301 | EH17: 25000000 | EI17: 25000000 | EJ17: 상 품 | EK17: 1301 | EL17: 0 | EM17: 0 | EN17: 1203 | EO17: 보통예금 | EP17: 142804000 | EQ17: 2104 | ER17: 지급어음 | ES17: 10000000 | EU17: 4303 | EV17: 보험료 | EW17: 3000000 | GA17: 1 | GB17: 7 | GC17: 10007 | GD17: 동양철관 | GE17: 양호승 | GF17: 444-81-44444 | GH17: 제조,무역 | GI17: 철관 | GJ17: 430 - 846 | GK17: 경기 안양시 만안구 박달1동 40-2 | GL17: 031-555-5555 | GN17: 이상열과장 | GP17: FALSE | GQ17: FALSE | GR17: FALSE | GS17: 2010-01-10
BA18: 1213 | BB18: 종업원단기대여금 | BE18: 4400 | BF18: Ⅵ.영업외수익 | BG18: 4400 | BH18: Ⅵ.영업외수익 | BY18: 16 | BZ18: 4100 | CA18: 1009 | CB18: 2010-01-04 | CC18: 매출 | CD18: 2,12,2400,1000 | CE18: 12 | CG18: 1200000 | CH18: 철근2 | CI18: 12 | CJ18: 2400 | CK18: 500 | DH18: 외상매출금 | DI18: 980000 | DP18: 매출 | DQ18: 168000000 | DR18: 118000000 | DS18: 50000000 | DT18: 외상매입금 | DU18: 500000 | DV18: 384795000 | DW18: 385295000 | ED18: 장기예금 | EE18: 1401 | EG18: 1401 | EH18: 4000000 | EI18: 4000000 | EJ18: 장기예금 | EK18: 1401 | EL18: 0 | EM18: 0 | EN18: 1207 | EO18: 외상매출금 | EP18: 229534000 | EQ18: 2109 | ER18: 미지급금 | ES18: 18740000 | EU18: 4304 | EV18: 복리후생비 | EW18: 23930000 | GA18: 1 | GB18: 26 | GC18: 10026 | GD18: 메리츠손해보험 | GF18: 1 | GP18: FALSE | GQ18: FALSE | GR18: FALSE | GS18: 2010-01-22
BA19: 1214 | BB19: 미수금 | BE19: 4500 | BF19: Ⅶ.영업외비용 | BG19: 4500 | BH19: Ⅶ.영업외비용 | BY19: 17 | BZ19: 2114 | CA19: 1009 | CB19: 2010-01-04 | CC19: 부가세예수금 | CD19: 1 외 | CE19: 12 | CG19: 180000 | DH19: 매출 | DJ19: 240000 | DL19: 240000 | DP19: 매입 | DQ19: 0 | DR19: 0 | DS19: 0 | DT19: 부가세예수금 | DU19: 330000 | DV19: 27983000 | DW19: 28313000 | ED19: 건 물 | EE19: 1502 | EG19: 1502 | EH19: 231000000 | EI19: 231000000 | EJ19: 건 물 | EK19: 1502 | EL19: 0 | EM19: 0 | EN19: 1208 | EO19: 대손충당금 | EP19: -453420 | EQ19: 2111 | ER19: 선수금 | ES19: 30000000 | EU19: 4305 | EV19: 여비교통비 | EW19: 1946000 | GA19: 1 | GB19: 15 | GC19: 10015 | GD19: 미니아트 | GF19: 113-04-10002 | GH19: 소매 | GI19: 문구,잡화 | GP19: FALSE | GQ19: FALSE | GR19: FALSE | GS19: 2010-01-13
BA20: 1215 | BB20: 분양미수금 | BE20: 3500 | BF20: Ⅶ.이익잉여금 | BG20: 3500 | BH20: Ⅶ.이익잉여금 | BY20: 18 | BZ20: 1207 | CA20: 1009 | CB20: 2010-01-04 | CC20: 외상매출금 | CD20: 1 외 | CE20: 12 | CF20: 980000 | DH20: 매출 | DJ20: 480000 | DL20: 160000 | DP20: 급여 | DQ20: 0 | DR20: 0 | DS20: 0 | DT20: 가수금 | DU20: 0 | DV20: 10000 | DW20: 10000 | ED20: 비품 | EE20: 1504 | EG20: 1504 | EH20: 13600000 | EI20: 13600000 | EJ20: 비품 | EK20: 1504 | EL20: 0 | EM20: 0 | EN20: 1209 | EO20: 받을어음 | EP20: 35500000 | EQ20: 2114 | ER20: 부가세예수금 | ES20: 72083000 | EU20: 4306 | EV20: 임차료 | EW20: 800000 | GA20: 4 | GB20: 39 | GC20: 40039 | GD20: 미인클럽 | GP20: FALSE | GQ20: FALSE | GR20: FALSE | GS20: 2010-04-13
BA21: 1216 | BB21: 공사미수금 | BE21: 4600 | BF21: Ⅸ.법인세비용 | BG21: 4600 | BH21: Ⅸ.법인세비용 | BY21: 19 | BZ21: 1201 | CA21: 1009 | CB21: 2010-01-04 | CC21: 현금 | CD21: 1 외 | CE21: 12 | CF21: 1000000 | DH21: 부가세예수금 | DJ21: 72000 | DP21: 복리후생비 | DQ21: 0 | DR21: 0 | DS21: 0 | DT21: 자본금 | DU21: 0 | DV21: 240000000 | DW21: 240000000 | ED21: 비품상각누계액 | EE21: 1505 | EG21: 1505 | EH21: -3567900 | EI21: 0 | EJ21: 비품상각누계액 | EK21: 1505 | EL21: 3567900 | EM21: 0 | EN21: 1217 | EO21: 선급금 | EP21: 50000000 | EQ21: 2214 | ER21: 임대보증금 | ES21: 30000000 | EU21: 4309 | EV21: 물류비 | EW21: 960000 | GA21: 4 | GB21: 31 | GC21: 40031 | GD21: 민관형 | GF21: 1 | GP21: FALSE | GQ21: FALSE | GR21: FALSE | GS21: 2010-01-23
BA22: 1217 | BB22: 선급금 | BE22: 4700 | BF22: Ⅹ.당기순손익 | BG22: 4700 | BH22: Ⅹ.당기순손익 | BY22: 20 | BZ22: 4100 | CA22: 1010 | CB22: 2010-01-04 | CC22: 매출 | CD22: 1,11,1200,200 | CE22: 12 | CG22: 240000 | CH22: 철근1 | CI22: 11 | CJ22: 1200 | CK22: 200 | CU22: 240000 | CV22: 5 | DH22: 외상매출금 | DI22: 392000 | DP22: 여비교통비 | DQ22: 0 | DR22: 0 | DS22: 0 | DT22: 매출 | DU22: 84000000 | DV22: 214050000 | DW22: 298050000 | ED22: 구축물 | EE22: 1506 | EG22: 1506 | EH22: 32000000 | EI22: 32000000 | EJ22: 구축물 | EK22: 1506 | EL22: 0 | EM22: 0 | EN22: 1219 | EO22: 부가세대지급금 | EP22: 81355000 | EQ22: 3101 | ER22: 자본금 | ES22: 740000000 | EU22: 4312 | EV22: 광고선전비 | EW22: 2834000 | GA22: 1 | GB22: 10 | GC22: 10010 | GD22: 민주종합건재 | GE22: 김자유 | GF22: 333-33-33333 | GH22: 도소매 | GI22: 건자재 | GJ22: 123-345 | GK22: 경기 성남시 야탑동 213-2 | GP22: TRUE | GQ22: FALSE | GR22: FALSE | GS22: 2010-01-13
BA23: 1218 | BB23: 이연법인세자산 | BE23: 1308 | BF23: 가설재 | BG23: 1308 | BH23: 가설재 | BY23: 21 | BZ23: 4100 | CA23: 1010 | CB23: 2010-01-04 | CC23: 매출 | CD23: 2,12,2400,200 | CE23: 12 | CG23: 480000 | CH23: 철근2 | CI23: 12 | CJ23: 2400 | CK23: 200 | CU23: 160000 | DH23: 자본금 | DJ23: 100000000 | DP23: 차량유지비 | DQ23: 374450000 | DR23: 356450000 | DS23: 18000000 | DT23: 매입 | DU23: 0 | DV23: 0 | DW23: 0 | ED23: 기계장치 | EE23: 1508 | EG23: 1508 | EH23: 43740000 | EI23: 43740000 | EJ23: 기계장치 | EK23: 1508 | EL23: 0 | EM23: 0 | EN23: 1222 | EO23: 선급법인세 | EP23: 23000 | EQ23: 3506 | ER23: 미처리결손금 | ES23: -104092000 | EU23: 4313 | EV23: 차량유지비 | EW23: 656000 | EZ23: 과 목 | FA23: 금 액 | GA23: 1 | GB23: 16 | GC23: 10016 | GD23: 세창주유소 | GF23: 1 | GP23: FALSE | GQ23: FALSE | GR23: FALSE | GS23: 2010-01-13
BA24: 1219 | BB24: 부가세대지급금 | BE24: 2199 | BF24: 가수금 | BG24: 2199 | BH24: 가수금 | BY24: 22 | BZ24: 2114 | CA24: 1010 | CB24: 2010-01-04 | CC24: 부가세예수금 | CD24: 1 외 | CE24: 12 | CG24: 72000 | DH24: 보통예금 | DI24: 100000000 | DP24: 연구비 | DQ24: 13000000 | DR24: 0 | DS24: 13000000 | DT24: 급여 | DU24: 0 | DV24: 0 | DW24: 0 | ED24: 차량운반구 | EE24: 1516 | EG24: 1516 | EH24: 32200000 | EI24: 32200000 | EJ24: 차량운반구 | EK24: 1516 | EL24: 0 | EM24: 0 | EN24: 1301 | EO24: 상 품 | EP24: 25000000 | EU24: 4314 | EV24: 연구비 | EW24: 2500000 | EY24: I. | EZ24: 매 출 액 | FB24: =SUMIF(EJ$9:EJ$64,"매출",EM$9:EM$64) -> 735750000 | GA24: 4 | GB24: 35 | GC24: 40035 | GD24: 신성상회 | GE24: 강금성 | GF24: 420-04-40093 | GL24: 02-754-6012 | GP24: FALSE | GQ24: FALSE | GR24: FALSE | GS24: 2010-01-28
BA25: 1220 | BB25: 선급비용 | BE25: 1299 | BF25: 가지급금 | BG25: 1299 | BH25: 가지급금 | BY25: 23 | BZ25: 1207 | CA25: 1010 | CB25: 2010-01-04 | CC25: 외상매출금 | CD25: 1 외 | CE25: 12 | CF25: 392000 | DH25: 매입 | DI25: 2000000 | DP25: 소모품비 | DQ25: 2230000 | DR25: 0 | DS25: 2230000 | DT25: 복리후생비 | DU25: 0 | DV25: 0 | DW25: 0 | ED25: 차량운반구상각누계액 | EE25: 1517 | EG25: 1517 | EH25: -14320220 | EI25: 0 | EJ25: 차량운반구상각누계액 | EK25: 1517 | EL25: 14320220 | EM25: 0 | EN25: 1401 | EO25: 장기예금 | EP25: 4000000 | EU25: 4319 | EV25: 소모품비 | EW25: 196000 | EY25: II. | EZ25: 매출 원가 | FB25: =FA$42+FA$43+FA$44 -> 809950000 | GA25: 2 | GB25: 9 | GC25: 20009 | GD25: 신한은행 | GF25: 1 | GP25: FALSE | GQ25: FALSE | GR25: FALSE | GS25: 2010-01-12
BA26: 1221 | BB26: 미수수익 | BE26: 4310 | BF26: 감가상각비 | BG26: 4310 | BH26: 감가상각비 | BY26: 24 | BZ26: 1201 | CA26: 1010 | CB26: 2010-01-04 | CC26: 현금 | CD26: 1 외 | CE26: 12 | CF26: 400000 | DH26: 매입 | DI26: 6000000 | DQ26: 1676000 | DR26: 0 | DS26: 1676000 | DT26: 여비교통비 | DU26: 0 | DV26: 0 | DW26: 0 | ED26: 개발비 | EE26: 1607 | EG26: 1607 | EH26: 11250000 | EI26: 11250000 | EJ26: 개발비 | EK26: 1607 | EL26: 0 | EM26: 0 | EN26: 1502 | EO26: 건 물 | EP26: 231000000 | EY26: III. | EZ26: =IF(FB26>=0,"매출총이익","매출총손실") -> 매출총손실 | FB26: =FB$40-FB$41 -> -74200000 | GA26: 2 | GB26: 38 | GC26: 20038 | GD26: 신한카드 | GP26: FALSE | GQ26: FALSE | GR26: FALSE | GS26: 2010-04-13
BA27: 1222 | BB27: 선급법인세 | BE27: 3202 | BF27: 감자차익 | BG27: 3202 | BH27: 감자차익 | BY27: 25 | BZ27: 3101 | CA27: 1011 | CB27: 2010-01-05 | CC27: 자본금 | CD27: 자본금 납입 | CE27: 0 | CG27: 100000000 | CV27: 2 | DH27: 부가세대지급금 | DI27: 800000 | DQ27: 462000 | DR27: 0 | DS27: 462000 | DT27: 차량유지비 | DU27: 0 | DV27: 0 | DW27: 0 | ED27: 임차보증금 | EE27: 1705 | EG27: 1705 | EH27: 100000000 | EI27: 100000000 | EJ27: 임차보증금 | EK27: 1705 | EL27: 0 | EM27: 0 | EN27: 1504 | EO27: 비품 | EP27: 13600000 | EY27: IV. | EZ27: 판매비와 일반관리비 | FB27: =SUM(EW$16:EW$38) -> 49822000 | GA27: 4 | GB27: 37 | GC27: 40037 | GD27: 아주자동차매매 | GE27: 박규식 | GF27: 197-38-38732 | GP27: FALSE | GQ27: FALSE | GR27: FALSE | GS27: 2010-01-29
BA28: 1299 | BB28: 가지급금 | BE28: 1607 | BF28: 개발비 | BG28: 1607 | BH28: 개발비 | BY28: 26 | BZ28: 1203 | CA28: 1011 | CB28: 2010-01-05 | CC28: 보통예금 | CD28: 자본금 납입 | CE28: 하나은행 | CF28: 100000000 | CO28: 411-910001-21098 | DH28: 외상매입금 | DJ28: 2000000 | DQ28: 2500000 | DR28: 2500000 | DS28: 0 | DT28: 연구비 | DU28: 0 | DV28: 0 | DW28: 0 | ED28: 보증금 | EE28: 1706 | EG28: 1706 | EH28: 40000000 | EI28: 40000000 | EJ28: 보증금 | EK28: 1706 | EL28: 0 | EM28: 0 | EN28: 1505 | EO28: 비품상각누계액 | EP28: -3567900 | EY28: V. | EZ28: =IF(FB28>=0,"영업이익","영업손실") -> 영업손실 | FB28: =$FB$45-$FB$46 -> -124022000 | GA28: 1 | GB28: 6 | GC28: 10006 | GD28: 연합화물 | GE28: 김인철 | GF28: 123-34-34455 | GH28: 운송 | GI28: 화물 | GJ28: 422 - 800 | GK28: 경기 부천시 소사구 괴안동 산16 | GL28: 032-321-3456 | GN28: 김사장 | GO28: 010-3949-7839 | GP28: FALSE | GQ28: FALSE | GR28: FALSE
BA29: 1300 | BB29: (2)재고자산 | BE29: 4325 | BF29: 개발비상각 | BG29: 4325 | BH29: 개발비상각 | BY29: 27 | BZ29: 4202 | CA29: 1012 | CB29: 2010-01-05 | CC29: 매입 | CD29: 1,11,1000,2000 | CE29: 11 | CF29: 2000000 | CH29: 철근1 | CI29: 11 | CJ29: 1000 | CK29: 2000 | CV29: 5 | DH29: 보통예금 | DJ29: 6800000 | DQ29: 196000 | DR29: 0 | DS29: 196000 | DT29: 소모품비 | DU29: 0 | DV29: 0 | DW29: 0 | ED29: 외상매입금 | EE29: 2101 | EG29: 2101 | EH29: 0 | EI29: 198000000 | EJ29: 외상매입금 | EK29: 2101 | EL29: 562745000 | EM29: 364745000 | EN29: 1506 | EO29: 구축물 | EP29: 32000000 | EY29: VI | EZ29: 영업외 수익 | FB29: =SUM(FD$5:FD$11) -> 20930000 | GA29: 1 | GB29: 19 | GC29: 10019 | GD29: 영종식당 | GF29: 1 | GP29: FALSE | GQ29: FALSE | GR29: FALSE | GS29: 2010-01-15
BA30: 1301 | BB30: 상 품 | BE30: 1609 | BF30: 개업비 | BG30: 1609 | BH30: 개업비 | BY30: 28 | BZ30: 4202 | CA30: 1012 | CB30: 2010-01-05 | CC30: 매입 | CD30: 2,12,2000,3000 | CE30: 11 | CF30: 6000000 | CH30: 철근2 | CI30: 12 | CJ30: 2000 | CK30: 3000 | DH30: 매입 | DI30: 1000000 | ED30: 지급어음 | EE30: 2104 | EG30: 2104 | EH30: 0 | EI30: 0 | EJ30: 지급어음 | EK30: 2104 | EL30: 10000000 | EM30: 10000000 | EN30: 1508 | EO30: 기계장치 | EP30: 43740000 | EY30: VII | EZ30: 영업외 비용 | FB30: =SUM(FD$14:FD$18) -> 1000000 | GA30: 1 | GB30: 20 | GC30: 10020 | GD30: 용산건설 | GF30: 143-81-12549 | GJ30: 130-230 | GK30: 서울시 용산구 서빙고동 2305 | GL30: 02-430-4930 | GP30: FALSE | GQ30: FALSE | GR30: FALSE | GS30: 2010-01-16 | GT30: NT
BA31: 1302 | BB31: 제 품 | BE31: 1502 | BF31: 건 물 | BG31: 1502 | BH31: 건 물 | BY31: 29 | BZ31: 1219 | CA31: 1012 | CB31: 2010-01-05 | CC31: 부가세대지급금 | CD31: 1 외 | CE31: 11 | CF31: 800000 | DH31: 매입 | DI31: 2000000 | ED31: 미지급금 | EE31: 2109 | EG31: 2109 | EH31: 0 | EI31: 0 | EJ31: 미지급금 | EK31: 2109 | EL31: 18740000 | EM31: 18740000 | EN31: 1516 | EO31: 차량운반구 | EP31: 32200000 | EY31: VIII | EZ31: =IF(FB31>=0,"세전당기순이익","세전당기순손실") -> 세전당기순손실 | FB31: =FB$28+FB$29-FB$30 -> -104092000 | GA31: 1 | GB31: 23 | GC31: 10023 | GD31: 우림가구상사 | GF31: 601-05-230931 | GP31: FALSE | GQ31: FALSE | GR31: FALSE | GS31: 2010-01-21
BA32: 1303 | BB32: 반제품 | BE32: 1503 | BF32: 건물상각누계액 | BG32: 1503 | BH32: 건물상각누계액 | BY32: 30 | BZ32: 2101 | CA32: 1012 | CB32: 2010-01-05 | CC32: 외상매입금 | CD32: 1 외 | CE32: 11 | CG32: 2000000 | DH32: 부가세대지급금 | DI32: 300000 | ED32: 선수금 | EE32: 2111 | EG32: 2111 | EH32: 0 | EI32: 0 | EJ32: 선수금 | EK32: 2111 | EL32: 30000000 | EM32: 30000000 | EN32: 1517 | EO32: 차량운반구상각누계액 | EP32: -14320220 | EY32: IX | EZ32: 법인세비용 | FB32: =SUMIF($EJ$9:$EJ$100,$EZ$32,$EI$9:$EJ$100) -> 0 | GA32: 1 | GB32: 32 | GC32: 10032 | GD32: 을지강재산업 | GE32: 우지언 | GF32: 182-81-38290 | GH32: 도소매 | GI32: 철강제품 | GJ32: 123-456 | GK32: 서울 중구 을지로2가 272-59 | GL32: 02-3245-6274 | GN32: 남상규 | GO32: 010-3274-5481 | GQ32: FALSE | GS32: 2010-01-25
BA33: 1304 | BB33: 재공품 | BE33: 1514 | BF33: 건설용장비 | BG33: 1514 | BH33: 건설용장비 | BY33: 31 | BZ33: 1203 | CA33: 1012 | CB33: 2010-01-05 | CC33: 보통예금 | CD33: 1 외 411-910001-21098 | CE33: 하나은행 | CG33: 6800000 | CO33: 411-910001-21098 | DH33: 외상매입금 | DJ33: 1000000 | DQ33: 1078544000 | DR33: 992980000 | DS33: 85564000 | DT33: 합 계 | DU33: 111330000 | DV33: 1038779540 | DW33: 1150109540 | ED33: 부가세예수금 | EE33: 2114 | EG33: 2114 | EH33: 0 | EI33: 0 | EJ33: 부가세예수금 | EK33: 2114 | EL33: 72083000 | EM33: 72083000 | EN33: 1607 | EO33: 개발비 | EP33: 11250000 | EY33: X | EZ33: =IF(FB33>=0,"당기순이익","당기순손실") -> 당기순손실 | FB33: =$FB$31-$FB$32 -> -104092000 | GA33: 1 | GB33: 12 | GC33: 10012 | GD33: 이우차체공업 | GE33: 이성우 | GF33: 444-81-22222 | GH33: 제조 | GI33: 자체,자동차부품 | GJ33: 331-222 | GK33: 경기도 안산시 성곡동 213-4 | GL33: 031-431-2321 | GP33: FALSE | GQ33: FALSE | GR33: FALSE | GS33: 2010-01-13
BA34: 1305 | BB34: 제 조 | BE34: 1515 | BF34: 건설용장비상각누계액 | BG34: 1515 | BH34: 건설용장비상각누계액 | BY34: 32 | BZ34: 4202 | CA34: 1013 | CB34: 2010-01-05 | CC34: 매입 | CD34: 1,11,1000,1000 | CE34: 11 | CF34: 1000000 | CH34: 철근1 | CI34: 11 | CJ34: 1000 | CK34: 1000 | CV34: 5 | DH34: 보통예금 | DJ34: 2300000 | DQ34: 71565540 | DS34: 71565540 | DT34: 금일/전일잔액 | DU34: 0 | DW34: 0 | ED34: 가수금 | EE34: 2199 | EG34: 2199 | EH34: 0 | EI34: 10000 | EJ34: 가수금 | EK34: 2199 | EL34: 10000 | EM34: 0 | EN34: 1705 | EO34: 임차보증금 | EP34: 100000000 | EZ34: =100-COUNTBLANK(EZ40:EZ138) -> 27 | GA34: 2 | GB34: 17 | GC34: 20017 | GD34: 임창식 | GF34: 1 | GP34: FALSE | GQ34: FALSE | GR34: FALSE | GS34: 2010-01-13
D35: =CD1 -> 1136 | BA35: 1306 | BB35: 원재료 | BE35: 1518 | BF35: 건설중인 자산 | BG35: 1518 | BH35: 건설중인 자산 | BY35: 33 | BZ35: 4202 | CA35: 1013 | CB35: 2010-01-05 | CC35: 매입 | CD35: 2,12,2000,1000 | CE35: 11 | CF35: 2000000 | CH35: 철근2 | CI35: 12 | CJ35: 2000 | CK35: 1000 | DH35: 가수금 | DJ35: 10000 | DQ35: 1150109540 | DR35: 992980000 | DS35: 157129540 | DT35: 총 합 계 | DU35: 111330000 | DV35: 1038779540 | DW35: 1150109540 | ED35: 임대보증금 | EE35: 2214 | EG35: 2214 | EH35: 0 | EI35: 0 | EJ35: 임대보증금 | EK35: 2214 | EL35: 30000000 | EM35: 30000000 | EN35: 1706 | EO35: 보증금 | EP35: 40000000 | GA35: 1 | GB35: 14 | GC35: 10014 | GD35: 직원 | GF35: 1 | GP35: FALSE | GQ35: FALSE | GR35: FALSE | GS35: 2010-01-13
H36: =I38-J38 -> 0 | BA36: 1307 | BB36: 원자재 | BE36: 4315 | BF36: 경상개발비 | BG36: 4315 | BH36: 경상개발비 | BY36: 34 | BZ36: 1219 | CA36: 1013 | CB36: 2010-01-05 | CC36: 부가세대지급금 | CD36: 1 외 | CE36: 11 | CF36: 300000 | DH36: 보통예금 | DI36: 10000 | ED36: 자본금 | EE36: 3101 | EG36: 3101 | EH36: 0 | EI36: 0 | EJ36: 자본금 | EK36: 3101 | EL36: 740000000 | EM36: 740000000 | FA36: 손 익 계 산 서 | GA36: 1 | GB36: 40 | GC36: 10040 | GD36: 포스코 | GE36: 이철준 | GF36: 430-81-34093 | GG36: 100112-012324 | GH36: 제조,무역 | GI36: 철강제품 | GJ36: 999-999 | GK36: 포항시 고등동 | GL36: 333-3333 | GP36: FALSE | GQ36: FALSE | GR36: FALSE | GS36: 2010-05-13
C37: =MAX(C41:C46)-1 -> -1 | G37: =K37&" "&L37&" "&M37&" "&N37 ->  | BA37: 1308 | BB37: 가설재 | BE37: 1216 | BF37: 공사미수금 | BG37: 1216 | BH37: 공사미수금 | BY37: 35 | BZ37: 2101 | CA37: 1013 | CB37: 2010-01-05 | CC37: 외상매입금 | CD37: 1 외 | CE37: 11 | CG37: 1000000 | DH37: 연구비 | DI37: 2500000 | ED37: 매출 | EE37: 4100 | EG37: 4100 | EH37: 0 | EI37: 0 | EJ37: 매출 | EK37: 4100 | EL37: 735750000 | EM37: 735750000 | FA37: =AA2 -> 2010-01-01 | FB37: 부터 | GA37: 2 | GB37: 3 | GC37: 20003 | GD37: 하나은행 | GF37: 1 | GP37: FALSE | GQ37: FALSE | GR37: FALSE | GS37: 2010-01-05
A38: =ABS(C37+B38+C38+B39+B36+C36)+1 -> 2 | B38: =E38-B40 -> 0 | C38: =ABS(C39-C40) -> 0 | E38: =SUM(F39:H39) -> 0 | I38: =SUM(I41:I61) -> 0 | J38: =SUM(J41:J61) -> 0 | BA38: 1309 | BB38: 저장품 | BE38: 2112 | BF38: 공사선수금 | BG38: 2112 | BH38: 공사선수금 | BY38: 36 | BZ38: 1203 | CA38: 1013 | CB38: 2010-01-05 | CC38: 보통예금 | CD38: 1 외 411-910001-21098 | CE38: 하나은행 | CG38: 2300000 | CO38: 411-910001-21098 | DH38: 보통예금 | DJ38: 2500000 | ED38: 매입 | EE38: 4202 | EG38: 4202 | EH38: 809950000 | EI38: 809950000 | EJ38: 매입 | EK38: 4202 | EL38: 0 | EM38: 0 | FA38: =ED1 -> 2010-02-09 | FB38: 까지 | GA38: 1 | GB38: 22 | GC38: 10022 | GD38: 하나테크놀러지 | GE38: 진갑용 | GF38: 129-81-38439 | GP38: FALSE | GQ38: FALSE | GR38: FALSE | GS38: 2010-01-20
B39: =C39-D39 -> 0 | C39: =MAX(F39:H39) -> 0 | D39: =MIN(F39:H39) -> 0 | E39: =I39+J39 -> 0 | F39: =15-COUNTBLANK(F41:F55) -> 0 | G39: =15-COUNTBLANK(G41:G55) -> 0 | H39: =15-COUNTBLANK(H41:H55) -> 0 | I39: =COUNT(I41:I55) -> 0 | J39: =COUNT(J41:J55) -> 0 | BA39: 1311 | BB39: 미착상품 | BE39: 2108 | BF39: 공사손실충당부채 | BG39: 2108 | BH39: 공사손실충당부채 | BY39: 37 | BZ39: 2199 | CA39: 1014 | CB39: 2010-01-06 | CC39: 가수금 | CD39: 가수입금 | CE39: 12 | CG39: 10000 | CV39: 2 | DH39: 여비교통비 | DI39: 50000 | DK39: 50000 | ED39: 급여 | EE39: 4301 | EG39: 4301 | EH39: 13000000 | EI39: 13000000 | EJ39: 급여 | EK39: 4301 | EL39: 0 | EM39: 0 | EZ39: 과 목 | FA39: 금 액 | GA39: 4 | GB39: 36 | GC39: 40036 | GD39: 한일설비제작 | GE39: 임선동 | GF39: 471-81-38492 | GH39: 제조 | GI39: 기계설비 | GP39: FALSE | GQ39: FALSE | GR39: FALSE | GS39: 2010-01-29
B40: =SUM(B41:B55) -> 0 | C40: =SUM(C41:C55) -> 0 | D40: 전표번호 | E40: 일자 | F40: 계정과목 | G40: 적요 | H40: 거래처 | I40: 차변 | J40: 대변 | K40: 품명 | L40: 규격 | M40: 단가 | N40: 수량 | O40: code | P40: 구분 | Q40: 부서 | R40: 계좌번호 | S40: 만기일 | T40: 지급장소 | U40: 발행인 | V40: 금리 | W40: 지급 | X40: 입금 | Y40: 행 | BA40: 1312 | BB40: 미착재료 | BE40: 4103 | BF40: 공사수입 | BG40: 4103 | BH40: 공사수입 | BY40: 38 | BZ40: 1203 | CA40: 1014 | CB40: 2010-01-06 | CC40: 보통예금 | CD40: 가수입금 | CE40: 하나은행 | CF40: 10000 | CO40: 411-910001-21098 | DH40: 보통예금 | DJ40: 20000000 | DL40: 20000000 | ED40: 보험료 | EE40: 4303 | EG40: 4303 | EH40: 3000000 | EI40: 3000000 | EJ40: 보험료 | EK40: 4303 | EL40: 0 | EM40: 0 | EY40: I. | EZ40: 매 출 액 | FB40: =SUMIF(EJ$9:EJ$64,"매출",EM$9:EM$64) -> 735750000 | GA40: 1 | GB40: 24 | GC40: 10024 | GD40: 현대차강서대리점 | GF40: 540-45-23540 | GP40: FALSE | GQ40: FALSE | GR40: FALSE | GS40: 2010-01-21
B41: =3-COUNTBLANK(F41:H41) -> 0 | C41: =COUNT(I41:J41) -> 0 | BA41: 1313 | BB41: 완성주택 | BE41: 1405 | BF41: 관계회사장기대여금 | BG41: 1405 | BH41: 관계회사장기대여금 | BY41: 39 | BZ41: 4314 | CA41: 1015 | CB41: 2010-01-08 | CC41: 연구비 | CD41: 프포잭트q | CE41: 13 | CF41: 2500000 | CV41: 2 | DH41: 매출 | DJ41: 2400000 | ED41: 복리후생비 | EE41: 4304 | EG41: 4304 | EH41: 23930000 | EI41: 23930000 | EJ41: 복리후생비 | EK41: 4304 | EL41: 0 | EM41: 0 | EO41: 자산 계 | EP41: 1161476000 | ER41: 부채 및 자본 계 | ES41: 1161476000 | EY41: II. | EZ41: 매출 원가 | FB41: =FA$42+FA$43+FA$44 -> 809950000 | GA41: 2 | GB41: 27 | GC41: 20027 | GD41: 현대화재해성 | GF41: 1 | GP41: FALSE | GQ41: FALSE | GR41: FALSE | GS41: 2010-01-22
B42: 0 | C42: 0 | BA42: 1314 | BB42: 미완성주택 | BE42: 2205 | BF42: 관계회사장기차입금 | BG42: 2205 | BH42: 관계회사장기차입금 | BY42: 40 | BZ42: 1203 | CA42: 1015 | CB42: 2010-01-08 | CC42: 보통예금 | CD42: 프포잭트q | CE42: 하나은행 | CG42: 2500000 | CO42: 411-910001-21098 | DH42: 부가세예수금 | DJ42: 240000 | ED42: 여비교통비 | EE42: 4305 | EG42: 4305 | EH42: 1946000 | EI42: 1946000 | EJ42: 여비교통비 | EK42: 4305 | EL42: 0 | EM42: 0 | EZ42: 기초상품재고액 | FA42: =SUMIF(EJ9:EJ71,"상 품",EL9:EL71) -> 0 | GA42: 1 | GB42: 18 | GC42: 10018 | GD42: 형제카센타 | GF42: 1 | GP42: FALSE | GQ42: FALSE | GR42: FALSE | GS42: 2010-01-14
B43: 0 | C43: 0 | BA43: 1315 | BB43: 용지 | BE43: 4312 | BF43: 광고선전비 | BG43: 4312 | BH43: 광고선전비 | BY43: 41 | BZ43: 4305 | CA43: 1016 | CB43: 2010-01-08 | CC43: 여비교통비 | CD43: 시내교통비 | CE43: 13 | CF43: 50000 | CT43: 50000 | CV43: 2 | DH43: 외상매출금 | DI43: 2640000 | ED43: 임차료 | EE43: 4306 | EG43: 4306 | EH43: 800000 | EI43: 800000 | EJ43: 임차료 | EK43: 4306 | EL43: 0 | EM43: 0 | EZ43: 당기매입액 | FA43: =SUMIF(EJ9:EJ93,"매입",EI9:EI93)-FA42 -> 809950000 | GA43: 3 | GB43: 30 | GC43: 30030 | GD43: 홍성광고 | GE43: 김태희 | GF43: 610-34-76382 | GP43: FALSE | GQ43: FALSE | GR43: FALSE | GS43: 2010-01-23
B44: 0 | C44: 0 | BA44: 1316 | BB44: 미성공사 | BE44: 1603 | BF44: 광업권 | BG44: 1603 | BH44: 광업권 | BY44: 42 | BZ44: 1201 | CA44: 1016 | CB44: 2010-01-08 | CC44: 현금 | CD44: 시내교통비 | CE44: 13 | CG44: 50000 | DH44: 매입 | DI44: 1100000 | DK44: 1000000 | ED44: 물류비 | EE44: 4309 | EG44: 4309 | EH44: 960000 | EI44: 960000 | EJ44: 물류비 | EK44: 4309 | EL44: 0 | EM44: 0 | EZ44: 기말상품재고액 | FA44: =IF(CD1>=9999,-SUMIF(EJ9:EJ62,"상 품",EH9:EH62),0) -> 0 | GA44: 1 | GB44: 34 | GC44: 10034 | GD44: 회기철재 | GE44: 김철웅 | GF44: 435-05-38035 | GH44: 도소매 | GI44: 철제품 | GL44: 02-345-3451 | GN44: 유과장 | GP44: FALSE | GQ44: FALSE | GR44: FALSE | GS44: 2010-01-28
B45: 0 | C45: 0 | BA45: 1400 | BB45: (1)투자자산 | BE45: 1506 | BF45: 구축물 | BG45: 1506 | BH45: 구축물 | BY45: 43 | BZ45: 1203 | CA45: 1017 | CB45: 2010-01-08 | CC45: 보통예금 | CD45: 예금인출 | CE45: 하나은행 | CG45: 20000000 | CO45: 411-910001-21098 | CU45: 20000000 | CV45: 2 | DH45: 매입 | DI45: 1950000 | ED45: 광고선전비 | EE45: 4312 | EG45: 4312 | EH45: 2834000 | EI45: 2834000 | EJ45: 광고선전비 | EK45: 4312 | EL45: 0 | EM45: 0 | EY45: III. | EZ45: =IF(FB45>0,"매출총이익","매출총손실") -> 매출총손실 | FB45: =FB$40-FB$41 -> -74200000 | GA45: 1 | GB45: 13 | GC45: 10013 | GD45: ini제철 | GE45: 우신철 | GF45: 123-81-98263 | GH45: 제조,무역 | GI45: 철강제품 | GJ45: 310-302 | GK45: 인천시 동구 송림동 345-12 | GL45: 032-763-0981 | GP45: FALSE | GQ45: FALSE | GR45: FALSE | GS45: 2010-01-13
B46: 0 | C46: 0 | BA46: 1401 | BB46: 장기예금 | BE46: 1507 | BF46: 구축물상각누계액 | BG46: 1507 | BH46: 구축물상각누계액 | BY46: 44 | BZ46: 1201 | CA46: 1017 | CB46: 2010-01-08 | CC46: 현금 | CD46: 예금인출 | CE46: 하나은행 | CF46: 20000000 | DH46: 부가세대지급금 | DI46: 305000 | ED46: 차량유지비 | EE46: 4313 | EG46: 4313 | EH46: 656000 | EI46: 656000 | EJ46: 차량유지비 | EK46: 4313 | EL46: 0 | EM46: 0 | EY46: IV. | EZ46: 판매비와 일반관리비 | FB46: =SUM(EW$16:EW$38) -> 49822000
B47: 0 | C47: 0 | BA47: 1402 | BB47: 장기투자증권 | BE47: 4301 | BF47: 급여 | BG47: 4301 | BH47: 급여 | BY47: 45 | BZ47: 4100 | CA47: 1018 | CB47: 2010-01-08 | CC47: 매출 | CD47: 1,11,1200,2000 | CE47: 12 | CG47: 2400000 | CH47: 철근1 | CI47: 11 | CJ47: 1200 | CK47: 2000 | CV47: 3 | DH47: 외상매입금 | DJ47: 2355000 | ED47: 연구비 | EE47: 4314 | EG47: 4314 | EH47: 2500000 | EI47: 2500000 | EJ47: 연구비 | EK47: 4314 | EL47: 0 | EM47: 0 | EZ47: 급여 | FA47: 13000000
B48: 0 | C48: 0 | BA48: 1403 | BB48: 지분법적용투자주식 | BE48: 1508 | BF48: 기계장치 | BG48: 1508 | BH48: 기계장치 | BY48: 46 | BZ48: 2114 | CA48: 1018 | CB48: 2010-01-08 | CC48: 부가세예수금 | CD48: 1 | CE48: 12 | CG48: 240000 | DH48: 외상매출금 | DJ48: 1500000 | ED48: 소모품비 | EE48: 4319 | EG48: 4319 | EH48: 196000 | EI48: 196000 | EJ48: 소모품비 | EK48: 4319 | EL48: 0 | EM48: 0 | EZ48: 보험료 | FA48: 3000000
B49: 0 | C49: 0 | BA49: 1404 | BB49: 장기대여금 | BE49: 1509 | BF49: 기계장치상각누계액 | BG49: 1509 | BH49: 기계장치상각누계액 | BY49: 47 | BZ49: 1207 | CA49: 1018 | CB49: 2010-01-08 | CC49: 외상매출금 | CD49: 1 | CE49: 12 | CF49: 2640000 | DH49: 보통예금 | DI49: 1500000 | ED49: 수입이자 | EE49: 4401 | EG49: 4401 | EH49: 0 | EI49: 0 | EJ49: 수입이자 | EK49: 4401 | EL49: 20230000 | EM49: 20230000 | EZ49: 복리후생비 | FA49: 23930000
B50: 0 | C50: 0 | BA50: 1405 | BB50: 관계회사장기대여금 | BE50: 4514 | BF50: 기부금 | BG50: 4514 | BH50: 기부금 | BY50: 48 | BZ50: 4202 | CA50: 1019 | CB50: 2010-01-08 | CC50: 매입 | CD50: 1,11,1100,1000 | CE50: 11 | CF50: 1100000 | CH50: 철근1 | CI50: 11 | CJ50: 1100 | CK50: 1000 | CT50: 1000000 | CV50: 5 | DH50: 여비교통비 | DI50: 52000 | DK50: 52000 | ED50: 임대료 | EE50: 4404 | EG50: 4404 | EH50: 0 | EI50: 0 | EJ50: 임대료 | EK50: 4404 | EL50: 700000 | EM50: 700000 | EZ50: 여비교통비 | FA50: 1946000
B51: 0 | C51: 0 | BA51: 1406 | BB51: 주주임원종업원장기대여금 | BE51: 3502 | BF51: 기업합리화적립금 | BG51: 3502 | BH51: 기업합리화적립금 | BY51: 49 | BZ51: 4202 | CA51: 1019 | CB51: 2010-01-08 | CC51: 매입 | CD51: 2,12,1950,1000 | CE51: 11 | CF51: 1950000 | CH51: 철근2 | CI51: 12 | CJ51: 1950 | CK51: 1000 | DH51: 외상매출금 | DJ51: 1500000 | DL51: 1500000 | ED51: 기부금 | EE51: 4514 | EG51: 4514 | EH51: 1000000 | EI51: 1000000 | EJ51: 기부금 | EK51: 4514 | EL51: 0 | EM51: 0 | EZ51: 임차료 | FA51: 800000
B52: 0 | C52: 0 | BA52: 1407 | BB52: 투자부동산 | BE52: 4503 | BF52: 기타 대손상각비 | BG52: 4503 | BH52: 기타 대손상각비 | BY52: 50 | BZ52: 1219 | CA52: 1019 | CB52: 2010-01-08 | CC52: 부가세대지급금 | CD52: 1 외 | CE52: 11 | CF52: 305000 | DH52: 매출 | DJ52: 2400000 | EZ52: 물류비 | FA52: 960000
B53: 0 | C53: 0 | BA53: 1500 | BB53: (2)유형자산 | BE53: 4107 | BF53: 기타매출 | BG53: 4107 | BH53: 기타매출 | BY53: 51 | BZ53: 2101 | CA53: 1019 | CB53: 2010-01-08 | CC53: 외상매입금 | CD53: 1 외 | CE53: 11 | CG53: 2355000 | DH53: 매출 | DJ53: 600000 | EZ53: 광고선전비 | FA53: 2834000
B54: 0 | C54: 0 | BA54: 1501 | BB54: 토 지 | BE54: 2116 | BF54: 기타예수금 | BG54: 2116 | BH54: 기타예수금 | BY54: 52 | BZ54: 1201 | CA54: 1019 | CB54: 2010-01-08 | CC54: 현금 | CD54: 1 외 | CE54: 11 | CG54: 1000000 | DH54: 부가세예수금 | DJ54: 300000 | EH54: =SUM(EH$8:EH52) -> 2022248000 | EI54: =SUM(EI$8:EI52) -> 3586341540 | EJ54: 합 계 | EL54: =SUM(EL$8:EL52) -> 3586341540 | EM54: =SUM(EM$9:EM53) -> 2022248000 | EZ54: 차량유지비 | FA54: 656000
B55: 0 | C55: 0 | BA55: 1502 | BB55: 건 물 | BE55: 1211 | BF55: 단기대여금 | BG55: 1211 | BH55: 단기대여금 | BY55: 53 | BZ55: 1207 | CA55: 1020 | CB55: 2010-01-09 | CC55: 외상매출금 | CD55: 외상대금 입금 | CE55: 12 | CG55: 1500000 | CV55: 2 | DH55: 외상매출금 | DI55: 3300000 | EZ55: 연구비 | FA55: 2500000
BA56: 1503 | BB56: 건물상각누계액 | BE56: 1205 | BF56: 단기성예금 | BG56: 1205 | BH56: 단기성예금 | BY56: 54 | BZ56: 1203 | CA56: 1020 | CB56: 2010-01-09 | CC56: 보통예금 | CD56: 외상대금 입금 | CE56: 하나은행 | CF56: 1500000 | CO56: 411-910001-21098 | DH56: 매입 | DI56: 1000000 | EZ56: 소모품비 | FA56: 196000
BA57: 1504 | BB57: 비품 | BE57: 2102 | BF57: 단기차입금 | BG57: 2102 | BH57: 단기차입금 | BY57: 55 | BZ57: 4305 | CA57: 1021 | CB57: 2010-01-09 | CC57: 여비교통비 | CD57: 시외출장여비 | CE57: 김희선 | CF57: 52000 | CT57: 52000 | CV57: 2 | DH57: 매입 | DI57: 2000000 | EY57: V. | EZ57: =IF(FB57>=0,"영업이익","영업손실") -> 영업손실 | FB57: =$FB$45-$FB$46 -> -124022000
BA58: 1505 | BB58: 비품상각누계액 | BE58: 2210 | BF58: 단체퇴직급여충당부채 | BG58: 2210 | BH58: 단체퇴직급여충당부채 | BY58: 56 | BZ58: 1201 | CA58: 1021 | CB58: 2010-01-09 | CC58: 현금 | CD58: 시외출장여비 | CE58: 김희선 | CG58: 52000 | DH58: 부가세대지급금 | DI58: 300000 | EY58: VI | EZ58: 영업외 수익 | FB58: =SUM(FD$5:FD$11) -> 20930000
B59: =IF(B44=0,"",1) ->  | BA59: 1506 | BB59: 구축물 | BE59: 1204 | BF59: 당좌예금 | BG59: 1204 | BH59: 당좌예금 | BY59: 57 | BZ59: 1207 | CA59: 1022 | CB59: 2010-01-09 | CC59: 외상매출금 | CD59: 외상대금입금 | CE59: 12 | CG59: 1500000 | CU59: 1500000 | CV59: 2 | DH59: 외상매입금 | DJ59: 3300000 | EZ59: 수입이자 | FA59: 20230000
B60: =IF(B45=0,"",1) ->  | BA60: 1507 | BB60: 구축물상각누계액 | BE60: 4316 | BF60: 대손상각비(충당금전입액포함) | BG60: 4316 | BH60: 대손상각비(충당금전입액포함) | BY60: 58 | BZ60: 1201 | CA60: 1022 | CB60: 2010-01-09 | CC60: 현금 | CD60: 외상대금입금 | CE60: 12 | CF60: 1500000 | DH60: 매입 | DI60: 3000000 | DK60: 2000000 | EZ60: 임대료 | FA60: 700000
B61: =IF(B46=0,"",1) ->  | BA61: 1508 | BB61: 기계장치 | BE61: 1208 | BF61: 대손충당금 | BG61: 1208 | BH61: 대손충당금 | BY61: 59 | BZ61: 4100 | CA61: 1023 | CB61: 2010-01-09 | CC61: 매출 | CD61: 2,12,2400,1000 | CE61: 13 | CG61: 2400000 | CH61: 철근2 | CI61: 12 | CJ61: 2400 | CK61: 1000 | CV61: 4 | DH61: 매입 | DI61: 4000000 | EY61: VII | EZ61: 영업외 비용 | FB61: =SUM(FD$14:FD$18) -> 1000000
BA62: 1509 | BB62: 기계장치상각누계액 | BE62: 4416 | BF62: 대손충당금환입 | BG62: 4416 | BH62: 대손충당금환입 | BY62: 60 | BZ62: 4100 | CA62: 1023 | CB62: 2010-01-09 | CC62: 매출 | CD62: 1,11,1200,500 | CE62: 13 | CG62: 600000 | CH62: 철근1 | CI62: 11 | CJ62: 1200 | CK62: 500 | DH62: 매입 | DI62: 5000000 | EZ62: 기부금 | FA62: 1000000
BA63: 1510 | BB63: 선박 | BE63: 3401 | BF63: 매도가능증권평가손익 | BG63: 3401 | BH63: 매도가능증권평가손익 | BY63: 61 | BZ63: 2114 | CA63: 1023 | CB63: 2010-01-09 | CC63: 부가세예수금 | CD63: 2 외 | CE63: 13 | CG63: 300000 | DH63: 부가세대지급금 | DI63: 1200000 | EY63: VIII | EZ63: =IF(FB63>=0,"세전당기순이익","세전당기순손실") -> 세전당기순손실 | FB63: =FB$28+FB$29-FB$30 -> -104092000
BA64: 1511 | BB64: 선박상각누계액 | BE64: 4202 | BF64: 매입 | BG64: 4202 | BH64: 매입 | BY64: 62 | BZ64: 1207 | CA64: 1023 | CB64: 2010-01-09 | CC64: 외상매출금 | CD64: 2 외 | CE64: 13 | CF64: 3300000 | DH64: 외상매입금 | DJ64: 11200000 | EY64: IX | EZ64: 법인세비용 | FB64: =SUMIF($EJ$9:$EJ$100,$EZ$32,$EI$9:$EJ$100) -> 0
BA65: 1512 | BB65: 항공기 | BE65: 4409 | BF65: 매입할인 | BG65: 4409 | BH65: 매입할인 | BY65: 63 | BZ65: 4202 | CA65: 1024 | CB65: 2010-01-09 | CC65: 매입 | CD65: 1,11,1000,1000 | CE65: 11 | CF65: 1000000 | CH65: 철근1 | CI65: 11 | CJ65: 1000 | CK65: 1000 | CV65: 4 | DH65: 외상매입금 | DI65: 5000000 | EY65: X | EZ65: =IF(FB65>=0,"당기순이익","당기순손실") -> 당기순손실 | FB65: =$FB$31-$FB$32 -> -104092000
BA66: 1513 | BB66: 항공기상각누계액 | BE66: 4100 | BF66: 매출 | BG66: 4100 | BH66: 매출 | BY66: 64 | BZ66: 4202 | CA66: 1024 | CB66: 2010-01-09 | CC66: 매입 | CD66: 2,12,2000,1000 | CE66: 11 | CF66: 2000000 | CH66: 철근2 | CI66: 12 | CJ66: 2000 | CK66: 1000 | DH66: 보통예금 | DJ66: 5000000
BA67: 1514 | BB67: 건설용장비 | BE67: 4509 | BF67: 매출할인 | BG67: 4509 | BH67: 매출할인 | BY67: 65 | BZ67: 1219 | CA67: 1024 | CB67: 2010-01-09 | CC67: 부가세대지급금 | CD67: 1 외 | CE67: 11 | CF67: 300000 | DH67: 매입 | DI67: 1000000 | DK67: 1000000
D68: 계정과목 | BA68: 1515 | BB68: 건설용장비상각누계액 | BE68: 4309 | BF68: 물류비 | BG68: 4309 | BH68: 물류비 | BY68: 66 | BZ68: 2101 | CA68: 1024 | CB68: 2010-01-09 | CC68: 외상매입금 | CD68: 1 외 | CE68: 11 | CG68: 3300000 | DH68: 매입 | DI68: 2000000 | DK68: 2000000
D69: 현금 | BA69: 1516 | BB69: 차량운반구 | BE69: 3304 | BF69: 미교부주식배당금 | BG69: 3304 | BH69: 미교부주식배당금 | BY69: 67 | BZ69: 4202 | CA69: 1025 | CB69: 2010-01-09 | CC69: 매입 | CD69: 3,33,3000,1000 | CE69: 11 | CF69: 3000000 | CH69: 철근3 | CI69: 33 | CJ69: 3000 | CK69: 1000 | CT69: 2000000 | CV69: 6 | DH69: 매입 | DI69: 3000000 | DK69: 2000000
D70: 현금예금 | BA70: 1517 | BB70: 차량운반구상각누계액 | BE70: 4317 | BF70: 미분양주택관리비 | BG70: 4317 | BH70: 미분양주택관리비 | BY70: 68 | BZ70: 4202 | CA70: 1025 | CB70: 2010-01-09 | CC70: 매입 | CD70: 4,44,4000,1000 | CE70: 11 | CF70: 4000000 | CH70: 철근4 | CI70: 44 | CJ70: 4000 | CK70: 1000 | DH70: 매입 | DI70: 4000000
D71: 전표번호 | E71: 일자 | F71: 계정과목 | G71: 적요 | H71: 거래처 | I71: 차변 | J71: 대변 | BA71: 1518 | BB71: 건설중인 자산 | BE71: 1316 | BF71: 미성공사 | BG71: 1316 | BH71: 미성공사 | BY71: 69 | BZ71: 4202 | CA71: 1025 | CB71: 2010-01-09 | CC71: 매입 | CD71: 5,55,5000,1000 | CE71: 11 | CF71: 5000000 | CH71: 철근5 | CI71: 55 | CJ71: 5000 | CK71: 1000 | DH71: 매입 | DI71: 5000000
D72: 1135 | E72: 2010-09-27 | F72: 현금 | G72: 강관#1 외 | H72: 가람공무 | I72: 10120000 | BA72: 1600 | BB72: (3)무형자산 | BE72: 1214 | BF72: 미수금 | BG72: 1214 | BH72: 미수금 | BY72: 70 | BZ72: 1219 | CA72: 1025 | CB72: 2010-01-09 | CC72: 부가세대지급금 | CD72: 3 외 | CE72: 11 | CF72: 1200000 | DH72: 부가세대지급금 | DI72: 1500000
BA73: 1601 | BB73: 영업권 | BE73: 1221 | BF73: 미수수익 | BG73: 1221 | BH73: 미수수익 | BY73: 71 | BZ73: 2101 | CA73: 1025 | CB73: 2010-01-09 | CC73: 외상매입금 | CD73: 3 외 | CE73: 11 | CG73: 11200000 | DH73: 외상매입금 | DJ73: 11500000
BA74: 1602 | BB74: 산업재산권 | BE74: 1314 | BF74: 미완성주택 | BG74: 1314 | BH74: 미완성주택 | BY74: 72 | BZ74: 1201 | CA74: 1025 | CB74: 2010-01-09 | CC74: 현금 | CD74: 3 외 | CE74: 11 | CG74: 2000000 | DH74: 매입 | DI74: 10000000
BA75: 1603 | BB75: 광업권 | BE75: 2109 | BF75: 미지급금 | BG75: 2109 | BH75: 미지급금 | BY75: 73 | BZ75: 2101 | CA75: 1026 | CB75: 2010-01-09 | CC75: 외상매입금 | CD75: 외상매입대금지급 | CE75: 11 | CF75: 5000000 | CV75: 2 | DH75: 매입 | DI75: 7000000
BA76: 1604 | BB76: 어업권 | BE76: 2110 | BF76: 미지급배당금 | BG76: 2110 | BH76: 미지급배당금 | BY76: 74 | BZ76: 1203 | CA76: 1026 | CB76: 2010-01-09 | CC76: 보통예금 | CD76: 외상매입대금지급 | CE76: 하나은행 | CG76: 5000000 | CO76: 411-910001-21098 | DH76: 부가세대지급금 | DI76: 1700000
BA77: 1605 | BB77: 차지권 | BE77: 2118 | BF77: 미지급법인세 | BG77: 2118 | BH77: 미지급법인세 | BY77: 75 | BZ77: 4202 | CA77: 1027 | CB77: 2010-01-10 | CC77: 매입 | CD77: 1,11,1000,1000 | CE77: 11 | CF77: 1000000 | CH77: 철근1 | CI77: 11 | CJ77: 1000 | CK77: 1000 | CT77: 1000000 | CV77: 8 | DH77: 외상매입금 | DJ77: 18700000
D78: 계정과목 | E78: 계정과목 | BA78: 1606 | BB78: 창업비 | BE78: 2120 | BF78: 미지급비용 | BG78: 2120 | BH78: 미지급비용 | BY78: 76 | BZ78: 4202 | CA78: 1027 | CB78: 2010-01-10 | CC78: 매입 | CD78: 2,12,2000,1000 | CE78: 11 | CF78: 2000000 | CH78: 철근2 | CI78: 12 | CJ78: 2000 | CK78: 1000 | CT78: 2000000 | DH78: 외상매입금 | DI78: 1000000
D79: <>현금 | E79: <>현금예금 | F79: =20-COUNTBLANK(F81:F100) -> 4 | H79: =COUNT(I81:J99) -> 4 | I79: =SUM(I81:I101) -> 10120000 | J79: =SUM(J81:J101) -> 10120000 | K79: =J79-I79 -> 0 | BA79: 1607 | BB79: 개발비 | BE79: 1311 | BF79: 미착상품 | BG79: 1311 | BH79: 미착상품 | BY79: 77 | BZ79: 4202 | CA79: 1027 | CB79: 2010-01-10 | CC79: 매입 | CD79: 3,33,3000,1000 | CE79: 11 | CF79: 3000000 | CH79: 철근3 | CI79: 33 | CJ79: 3000 | CK79: 1000 | CT79: 2000000 | DH79: 보통예금 | DJ79: 1000000
D80: 전표번호 | E80: 일자 | F80: 계정과목 | G80: 적요 | H80: 거래처 | I80: 차변 | J80: 대변 | K80: 품명 | L80: 규격 | M80: 단가 | N80: 수량 | O80: code | P80: 구분 | Q80: 부서 | R80: 계좌번호 | S80: 만기일 | T80: 지급장소 | U80: 발행인 | V80: 금리 | W80: 지급 | X80: 입금 | Y80: 행 | BA80: 1608 | BB80: 사용수익기부자산가액 | BE80: 1312 | BF80: 미착재료 | BG80: 1312 | BH80: 미착재료 | BY80: 78 | BZ80: 4202 | CA80: 1027 | CB80: 2010-01-10 | CC80: 매입 | CD80: 4,44,4000,1000 | CE80: 11 | CF80: 4000000 | CH80: 철근4 | CI80: 44 | CJ80: 4000 | CK80: 1000 | DH80: 매입 | DI80: 10000000
D81: 1135 | E81: 2010-09-27 | F81: 매출 | G81: 강관#1 33*10M 120000 10 | H81: 가람공무 | J81: 1200000 | K81: 강관#1 | L81: 33*10M | M81: 120000 | N81: 10 | X81: 1200000 | Y81: 4 | BA81: 1609 | BB81: 개업비 | BE81: 3506 | BF81: 미처분이익잉여금 | BG81: 3506 | BH81: 미처분이익잉여금 | BY81: 79 | BZ81: 4202 | CA81: 1027 | CB81: 2010-01-10 | CC81: 매입 | CD81: 5,55,5000,1000 | CE81: 11 | CF81: 5000000 | CH81: 철근5 | CI81: 55 | CJ81: 5000 | CK81: 1000 | DH81: 매입 | DI81: 7000000
D82: 1135 | E82: 2010-09-27 | F82: 매출 | G82: 강관#2 25*10m 80000 100 | H82: 가람공무 | J82: 8000000 | K82: 강관#2 | L82: 25*10m | M82: 80000 | N82: 100 | X82: 8000000 | BA82: 1610 | BB82: 사채발행비 | BE82: 1303 | BF82: 반제품 | BG82: 1303 | BH82: 반제품 | BY82: 80 | BZ82: 1219 | CA82: 1027 | CB82: 2010-01-10 | CC82: 부가세대지급금 | CD82: 1 외 | CE82: 11 | CF82: 1500000 | DH82: 매입 | DI82: 5000000
D83: 1135 | E83: 2010-09-27 | F83: 부가세예수금 | G83: 강관#1 외 | H83: 가람공무 | J83: 920000 | X83: 920000 | BA83: 1700 | BB83: (4)기타비유동자산 | BE83: 1209 | BF83: 받을어음 | BG83: 1209 | BH83: 받을어음 | BY83: 81 | BZ83: 2101 | CA83: 1027 | CB83: 2010-01-10 | CC83: 외상매입금 | CD83: 1 외 | CE83: 11 | CG83: 11500000 | DH83: 매입 | DI83: 4000000
D84: 1135 | E84: 2010-09-27 | F84: 현금 | G84: 강관#1 외 | H84: 가람공무 | I84: 10120000 | BA84: 1701 | BB84: 장기외상매출금 | BE84: 3302 | BF84: 배당건설이자 | BG84: 3302 | BH84: 배당건설이자 | BY84: 82 | BZ84: 1201 | CA84: 1027 | CB84: 2010-01-10 | CC84: 현금 | CD84: 1 외 | CE84: 11 | CG84: 5000000 | DH84: 매입 | DI84: 30000000
D85: 1135 | E85: 2010-09-27 | BA85: 1702 | BB85: 장기받을어음 | BE85: 4403 | BF85: 배당금수익 | BG85: 4403 | BH85: 배당금수익 | BY85: 83 | BZ85: 4202 | CA85: 1028 | CB85: 2010-01-10 | CC85: 매입 | CD85: 강관#1,33*10M,100000,100 | CE85: 동양철관 | CF85: 10000000 | CH85: 강관#1 | CI85: 33*10M | CJ85: 100000 | CK85: 100 | CV85: 4 | DH85: 매입 | DI85: 30000000
D86: 1135 | E86: 2010-09-27 | BA86: 1703 | BB86: 장기미수금 | BE86: 4601 | BF86: 법인세비용 | BG86: 4601 | BH86: 법인세비용 | BY86: 84 | BZ86: 4202 | CA86: 1028 | CB86: 2010-01-10 | CC86: 매입 | CD86: 강관#2,25*10m,70000,100 | CE86: 동양철관 | CF86: 7000000 | CH86: 강관#2 | CI86: 25*10m | CJ86: 70000 | CK86: 100 | DH86: 부가세대지급금 | DI86: 8600000
D87: 1135 | E87: 2010-09-27 | BA87: 1704 | BB87: 장기선급금 | BE87: 4516 | BF87: 법인세추납액 | BG87: 4516 | BH87: 법인세추납액 | BY87: 85 | BZ87: 1219 | CA87: 1028 | CB87: 2010-01-10 | CC87: 부가세대지급금 | CD87: 강관#1 외 | CE87: 동양철관 | CF87: 1700000 | DH87: 외상매입금 | DJ87: 94600000
D88: 1135 | E88: 2010-09-27 | BA88: 1705 | BB88: 임차보증금 | BE88: 4415 | BF88: 법인세환급액 | BG88: 4415 | BH88: 법인세환급액 | BY88: 86 | BZ88: 2101 | CA88: 1028 | CB88: 2010-01-10 | CC88: 외상매입금 | CD88: 강관#1 외 | CE88: 동양철관 | CG88: 18700000 | DH88: 매출 | DJ88: 12000000 | DL88: 10000000
D89: 1135 | E89: 2010-09-27 | BA89: 1706 | BB89: 보증금 | BE89: 3505 | BF89: 별도적립금 | BG89: 3505 | BH89: 별도적립금 | BY89: 87 | BZ89: 2101 | CA89: 1029 | CB89: 2010-01-11 | CC89: 외상매입금 | CD89: 외상대금지급 | CE89: 11 | CF89: 1000000 | CV89: 2 | DH89: 매출 | DJ89: 800000
D90: 1135 | E90: 2010-09-27 | BA90: 1707 | BB90: 이연법인세자산 | BE90: 1706 | BF90: 보증금 | BG90: 1706 | BH90: 보증금 | BY90: 88 | BZ90: 1203 | CA90: 1029 | CB90: 2010-01-11 | CC90: 보통예금 | CD90: 외상대금지급 | CE90: 하나은행 | CG90: 1000000 | CO90: 411-910001-21098 | DH90: 매출 | DJ90: 12000000
D91: 1135 | E91: 2010-09-27 | BA91: 2100 | BB91: Ⅰ.유동부채 | BE91: 1203 | BF91: 보통예금 | BG91: 1203 | BH91: 보통예금 | BY91: 89 | BZ91: 4202 | CA91: 1030 | CB91: 2010-01-11 | CC91: 매입 | CD91: 강관#1,33*10M,100000,100 | CE91: 동양철관 | CF91: 10000000 | CH91: 강관#1 | CI91: 33*10M | CJ91: 100000 | CK91: 100 | CV91: 8 | DH91: 매출 | DJ91: 13000000
D92: 1135 | E92: 2010-09-27 | BA92: 2101 | BB92: 외상매입금 | BE92: 3102 | BF92: 보통주자본금 | BG92: 3102 | BH92: 보통주자본금 | BY92: 90 | BZ92: 4202 | CA92: 1030 | CB92: 2010-01-11 | CC92: 매입 | CD92: 강관#2,25*10m,70000,100 | CE92: 동양철관 | CF92: 7000000 | CH92: 강관#2 | CI92: 25*10m | CJ92: 70000 | CK92: 100 | DH92: 부가세예수금 | DJ92: 3780000
D93: 1135 | E93: 2010-09-27 | BA93: 2102 | BB93: 단기차입금 | BE93: 4303 | BF93: 보험료 | BG93: 4303 | BH93: 보험료 | BY93: 91 | BZ93: 4202 | CA93: 1030 | CB93: 2010-01-11 | CC93: 매입 | CD93: 스테인레스관#1,100*10,50000,100 | CE93: 동양철관 | CF93: 5000000 | CH93: 스테인레스관#1 | CI93: 100*10 | CJ93: 50000 | CK93: 100 | DH93: 외상매출금 | DI93: 10000000
D94: 1135 | E94: 2010-09-27 | BA94: 2103 | BB94: 유동성사채 | BE94: 4420 | BF94: 보험차익 | BG94: 4420 | BH94: 보험차익 | BY94: 92 | BZ94: 4202 | CA94: 1030 | CB94: 2010-01-11 | CC94: 매입 | CD94: 스테인레스관#2,80*10,40000,100 | CE94: 동양철관 | CF94: 4000000 | CH94: 스테인레스관#2 | CI94: 80*10 | CJ94: 40000 | CK94: 100 | DH94: 보통예금 | DI94: 21580000
D95: 1135 | E95: 2010-09-27 | BA95: 2104 | BB95: 지급어음 | BE95: 4304 | BF95: 복리후생비 | BG95: 4304 | BH95: 복리후생비 | BY95: 93 | BZ95: 4202 | CA95: 1030 | CB95: 2010-01-11 | CC95: 매입 | CD95: H-Beam,50*50*10,1000000,30 | CE95: 동양철관 | CF95: 30000000 | CH95: H-Beam | CI95: 50*50*10 | CJ95: 1000000 | CK95: 30 | DH95: 매출 | DJ95: 1200000
D96: 1135 | E96: 2010-09-27 | BA96: 2105 | BB96: 유동성장기차입금 | BE96: 3000 | BF96: 부 채 총 계(Ⅰ+Ⅱ) | BG96: 3000 | BH96: 부 채 총 계(Ⅰ+Ⅱ) | BY96: 94 | BZ96: 4202 | CA96: 1030 | CB96: 2010-01-11 | CC96: 매입 | CD96: I-Beam,30*40*10,500000,60 | CE96: 동양철관 | CF96: 30000000 | CH96: I-Beam | CI96: 30*40*10 | CJ96: 500000 | CK96: 60 | DH96: 매출 | DJ96: 4800000
D97: 1135 | E97: 2010-09-27 | BA97: 2107 | BB97: 어음차입금 | BE97: 1219 | BF97: 부가세대지급금 | BG97: 1219 | BH97: 부가세대지급금 | BY97: 95 | BZ97: 1219 | CA97: 1030 | CB97: 2010-01-11 | CC97: 부가세대지급금 | CD97: 강관#1 외 | CE97: 동양철관 | CF97: 8600000 | DH97: 매출 | DJ97: 2000000
D98: 1135 | E98: 2010-09-27 | BA98: 2108 | BB98: 공사손실충당부채 | BE98: 2114 | BF98: 부가세예수금 | BG98: 2114 | BH98: 부가세예수금 | BY98: 96 | BZ98: 2101 | CA98: 1030 | CB98: 2010-01-11 | CC98: 외상매입금 | CD98: 강관#1 외 | CE98: 동양철관 | CG98: 94600000 | DH98: 매출 | DJ98: 2500000
D99: 1135 | E99: 2010-09-27 | BA99: 2109 | BB99: 미지급금 | BE99: 4105 | BF99: 부동산임대수입 | BG99: 4105 | BH99: 부동산임대수입 | BY99: 97 | BZ99: 4100 | CA99: 1031 | CB99: 2010-01-13 | CC99: 매출 | CD99: 강관#1,33*10M,120000,100 | CE99: 민주종합건재 | CG99: 12000000 | CH99: 강관#1 | CI99: 33*10M | CJ99: 120000 | CK99: 100 | CU99: 10000000 | CV99: 8 | DH99: 매출 | DJ99: 3000000
D100: 1135 | E100: 2010-09-27 | BA100: 2110 | BB100: 미지급배당금 | BE100: 1215 | BF100: 분양미수금 | BG100: 1215 | BH100: 분양미수금 | BY100: 98 | BZ100: 4100 | CA100: 1031 | CB100: 2010-01-13 | CC100: 매출 | CD100: 강관#2,25*10m,8000,100 | CE100: 민주종합건재 | CG100: 800000 | CH100: 철근5 | CI100: 55 | CJ100: 8000 | CK100: 100 | DH100: 매출 | DJ100: 6000000
BA101: 2111 | BB101: 선수금 | BE101: 2113 | BF101: 분양선수금 | BG101: 2113 | BH101: 분양선수금 | BY101: 99 | BZ101: 4100 | CA101: 1031 | CB101: 2010-01-13 | CC101: 매출 | CD101: H-Beam,50*50*10,1200000,10 | CE101: 민주종합건재 | CG101: 12000000 | CH101: H-Beam | CI101: 50*50*10 | CJ101: 1200000 | CK101: 10 | DH101: 부가세예수금 | DJ101: 1950000
BA102: 2112 | BB102: 공사선수금 | BE102: 4106 | BF102: 분양수입 | BG102: 4106 | BH102: 분양수입 | BY102: 100 | BZ102: 4100 | CA102: 1031 | CB102: 2010-01-13 | CC102: 매출 | CD102: I-Beam,30*40*10,650000,20 | CE102: 민주종합건재 | CG102: 13000000 | CH102: I-Beam | CI102: 30*40*10 | CJ102: 650000 | CK102: 20 | DH102: 외상매출금 | DI102: 10000000
BA103: 2113 | BB103: 분양선수금 | BE103: 1504 | BF103: 비품 | BG103: 1504 | BH103: 비품 | BY103: 101 | BZ103: 2114 | CA103: 1031 | CB103: 2010-01-13 | CC103: 부가세예수금 | CD103: 강관#1 외 | CE103: 민주종합건재 | CG103: 3780000 | DH103: 보통예금 | DI103: 11450000
BA104: 2114 | BB104: 부가세예수금 | BE104: 1505 | BF104: 비품상각누계액 | BG104: 1505 | BH104: 비품상각누계액 | BY104: 102 | BZ104: 1207 | CA104: 1031 | CB104: 2010-01-13 | CC104: 외상매출금 | CD104: 강관#1 외 | CE104: 민주종합건재 | CF104: 10000000 | DH104: 매입 | DI104: 1050000 | DK104: 1050000
BA105: 2115 | BB105: 제세예수금 | BE105: 2201 | BF105: 사 채 | BG105: 2201 | BH105: 사 채 | BY105: 103 | BZ105: 1203 | CA105: 1031 | CB105: 2010-01-13 | CC105: 보통예금 | CD105: 강관#1 외 651-231065-09 | CE105: 신한은행 | CF105: 21580000 | CO105: 651-231065-09 | DH105: 매입 | DI105: 1050000 | DK105: 1050000
BA106: 2116 | BB106: 기타예수금 | BE106: 1608 | BF106: 사용수익기부자산가액 | BG106: 1608 | BH106: 사용수익기부자산가액 | BY106: 104 | BZ106: 1201 | CA106: 1031 | CB106: 2010-01-13 | CC106: 현금 | CD106: 강관#1 외 | CE106: 민주종합건재 | CF106: 10000000 | DH106: 매입 | DI106: 6400000 | DK106: 6400000
BA107: 2117 | BB107: 수선충당부채 | BE107: 1610 | BF107: 사채발행비 | BG107: 1610 | BH107: 사채발행비 | BY107: 105 | BZ107: 4100 | CA107: 1032 | CB107: 2010-01-13 | CC107: 매출 | CD107: 1,11,1200,1000 | CE107: 가람공무 | CG107: 1200000 | CH107: 철근1 | CI107: 11 | CJ107: 1200 | CK107: 1000 | CV107: 9 | DH107: 매입 | DI107: 8200000 | DK107: 1500000
BA108: 2118 | BB108: 미지급법인세 | BE108: 4323 | BF108: 사채발행비상각 | BG108: 4323 | BH108: 사채발행비상각 | BY108: 106 | BZ108: 4100 | CA108: 1032 | CB108: 2010-01-13 | CC108: 매출 | CD108: 2,12,2400,2000 | CE108: 가람공무 | CG108: 4800000 | CH108: 철근2 | CI108: 12 | CJ108: 2400 | CK108: 2000 | DH108: 매입 | DI108: 5200000
BA109: 2119 | BB109: 이연법인세부채 | BE109: 4515 | BF109: 사채상환손실 | BG109: 4515 | BH109: 사채상환손실 | BY109: 107 | BZ109: 4100 | CA109: 1032 | CB109: 2010-01-13 | CC109: 매출 | CD109: 3,33,4000,500 | CE109: 가람공무 | CG109: 2000000 | CH109: 철근3 | CI109: 33 | CJ109: 4000 | CK109: 500 | DH109: 매입 | DI109: 5000000
BA110: 2120 | BB110: 미지급비용 | BE110: 4414 | BF110: 사채상환이익 | BG110: 4414 | BH110: 사채상환이익 | BY110: 108 | BZ110: 4100 | CA110: 1032 | CB110: 2010-01-13 | CC110: 매출 | CD110: 4,44,5000,500 | CE110: 가람공무 | CG110: 2500000 | CH110: 철근4 | CI110: 44 | CJ110: 5000 | CK110: 500 | DH110: 매입 | DI110: 3500000
BA111: 2121 | BB111: 선수수익 | BE111: 4502 | BF111: 사채이자 | BG111: 4502 | BH111: 사채이자 | BY111: 109 | BZ111: 4100 | CA111: 1032 | CB111: 2010-01-13 | CC111: 매출 | CD111: 5,55,6000,500 | CE111: 가람공무 | CG111: 3000000 | CH111: 철근5 | CI111: 55 | CJ111: 6000 | CK111: 500 | DH111: 매입 | DI111: 5000000
BA112: 2199 | BB112: 가수금 | BE112: 4324 | BF112: 사채할인발행차금상각 | BG112: 4324 | BH112: 사채할인발행차금상각 | BY112: 110 | BZ112: 4100 | CA112: 1032 | CB112: 2010-01-13 | CC112: 매출 | CD112: 강관#1,33*10M,120000,50 | CE112: 가람공무 | CG112: 6000000 | CH112: 강관#1 | CI112: 33*10M | CJ112: 120000 | CK112: 50 | DH112: 매입 | DI112: 4000000
BA113: 2200 | BB113: Ⅱ.비유동부채 | BE113: 1602 | BF113: 산업재산권 | BG113: 1602 | BH113: 산업재산권 | BY113: 111 | BZ113: 2114 | CA113: 1032 | CB113: 2010-01-13 | CC113: 부가세예수금 | CD113: 1 외 | CE113: 가람공무 | CG113: 1950000 | DH113: 매입 | DI113: 30000000
BA114: 2201 | BB114: 사 채 | BE114: 1301 | BF114: 상 품 | BG114: 1301 | BH114: 상 품 | BY114: 112 | BZ114: 1207 | CA114: 1032 | CB114: 2010-01-13 | CC114: 외상매출금 | CD114: 1 외 | CE114: 가람공무 | CF114: 10000000 | DH114: 매입 | DI114: 25000000
BA115: 2202 | BB115: 전환사채 | BE115: 4101 | BF115: 상품매출 | BG115: 4101 | BH115: 상품매출 | BY115: 113 | BZ115: 1203 | CA115: 1032 | CB115: 2010-01-13 | CC115: 보통예금 | CD115: 1 외 224201-04-224210 | CE115: 국민은행 | CF115: 11450000 | CO115: 224201-04-224210 | DH115: 매입 | DI115: 100000000
BA116: 2203 | BB116: 신주인수권부사채 | BE116: 1217 | BF116: 선급금 | BG116: 1217 | BH116: 선급금 | BY116: 114 | BZ116: 4202 | CA116: 1033 | CB116: 2010-01-13 | CC116: 매입 | CD116: 1,11,1050,1000 | CE116: ini제철 | CF116: 1050000 | CH116: 철근1 | CI116: 11 | CJ116: 1050 | CK116: 1000 | CT116: 1050000 | CV116: 16 | DH116: 매입 | DI116: 30000000
BA117: 2204 | BB117: 장기차입금 | BE117: 1222 | BF117: 선급법인세 | BG117: 1222 | BH117: 선급법인세 | BY117: 115 | BZ117: 4202 | CA117: 1033 | CB117: 2010-01-13 | CC117: 매입 | CD117: 2,12,2100,500 | CE117: ini제철 | CF117: 1050000 | CH117: 철근2 | CI117: 12 | CJ117: 2100 | CK117: 500 | CT117: 1050000 | DH117: 부가세대지급금 | DI117: 22440000
BA118: 2205 | BB118: 관계회사장기차입금 | BE118: 1220 | BF118: 선급비용 | BG118: 1220 | BH118: 선급비용 | BY118: 116 | BZ118: 4202 | CA118: 1033 | CB118: 2010-01-13 | CC118: 매입 | CD118: 3,33,3200,2000 | CE118: ini제철 | CF118: 6400000 | CH118: 철근3 | CI118: 33 | CJ118: 3200 | CK118: 2000 | CT118: 6400000 | DH118: 외상매입금 | DJ118: 236840000
BA119: 2206 | BB119: 주주임원종업원장기차입금 | BE119: 1510 | BF119: 선박 | BG119: 1510 | BH119: 선박 | BY119: 117 | BZ119: 4202 | CA119: 1033 | CB119: 2010-01-13 | CC119: 매입 | CD119: 4,44,4100,2000 | CE119: ini제철 | CF119: 8200000 | CH119: 철근4 | CI119: 44 | CJ119: 4100 | CK119: 2000 | CT119: 1500000 | DH119: 외상매입금 | DI119: 50000000
BA120: 2207 | BB120: 장기성외상매입금 | BE120: 1511 | BF120: 선박상각누계액 | BG120: 1511 | BH120: 선박상각누계액 | BY120: 118 | BZ120: 4202 | CA120: 1033 | CB120: 2010-01-13 | CC120: 매입 | CD120: 5,55,5200,1000 | CE120: ini제철 | CF120: 5200000 | CH120: 철근5 | CI120: 55 | CJ120: 5200 | CK120: 1000 | DH120: 보통예금 | DJ120: 50000000
BA121: 2208 | BB121: 장기성지급어음 | BE121: 2111 | BF121: 선수금 | BG121: 2111 | BH121: 선수금 | BY121: 119 | BZ121: 4202 | CA121: 1033 | CB121: 2010-01-13 | CC121: 매입 | CD121: 강관#1,33*10M,100000,50 | CE121: ini제철 | CF121: 5000000 | CH121: 강관#1 | CI121: 33*10M | CJ121: 100000 | CK121: 50 | DH121: 외상매출금 | DJ121: 1000000
E122: 계정과목 | BA122: 2209 | BB122: 퇴직급여충당부채 | BE122: 2121 | BF122: 선수수익 | BG122: 2121 | BH122: 선수수익 | BY122: 120 | BZ122: 4202 | CA122: 1033 | CB122: 2010-01-13 | CC122: 매입 | CD122: 강관#2,25*10m,70000,50 | CE122: ini제철 | CF122: 3500000 | CH122: 강관#2 | CI122: 25*10m | CJ122: 70000 | CK122: 50 | DH122: 보통예금 | DI122: 1000000
E123: 현금 | BA123: 2210 | BB123: 단체퇴직급여충당부채 | BE123: 4311 | BF123: 세금과공과 | BG123: 4311 | BH123: 세금과공과 | BY123: 121 | BZ123: 4202 | CA123: 1033 | CB123: 2010-01-13 | CC123: 매입 | CD123: 스테인레스관#1,100*10,50000,100 | CE123: ini제철 | CF123: 5000000 | CH123: 스테인레스관#1 | CI123: 100*10 | CJ123: 50000 | CK123: 100 | DH123: 보통예금 | DJ123: 5000000 | DL123: 5000000
E124: 현금예금 | BA124: 2211 | BB124: 장기제품보증충당부채 | BE124: 4319 | BF124: 소모품비 | BG124: 4319 | BH124: 소모품비 | BY124: 122 | BZ124: 4202 | CA124: 1033 | CB124: 2010-01-13 | CC124: 매입 | CD124: 스테인레스관#2,80*10,40000,100 | CE124: ini제철 | CF124: 4000000 | CH124: 스테인레스관#2 | CI124: 80*10 | CJ124: 40000 | CK124: 100 | DH124: 여비교통비 | DI124: 120000 | DK124: 120000
E125: 계정과목 | F125: 적요 | G125: 거래처 | H125: 차변 | I125: 대변 | BA125: 2212 | BB125: 이연법인세부채 | BE125: 4701 | BF125: 손익 | BG125: 4701 | BH125: 손익 | BY125: 123 | BZ125: 4202 | CA125: 1033 | CB125: 2010-01-13 | CC125: 매입 | CD125: 아연도강판,0.5*4*5,300000,100 | CE125: ini제철 | CF125: 30000000 | CH125: 아연도강판 | CI125: 0.5*4*5 | CJ125: 300000 | CK125: 100 | DH125: 급여 | DI125: 3000000 | DK125: 3000000
E126: 현금 | F126: 강관#1 외 | G126: 가람공무 | H126: 10120000 | BA126: 2213 | BB126: 장기공사선수금 | BE126: 4308 | BF126: 수선유지비 | BG126: 4308 | BH126: 수선유지비 | BY126: 124 | BZ126: 4202 | CA126: 1033 | CB126: 2010-01-13 | CC126: 매입 | CD126: 아연동강판,0.3*4*5,250000,100 | CE126: ini제철 | CF126: 25000000 | CH126: 아연동강판 | CI126: 0.3*4*5 | CJ126: 250000 | CK126: 100 | DH126: 외상매입금 | DI126: 1000000
BA127: 2214 | BB127: 임대보증금 | BE127: 2117 | BF127: 수선충당부채 | BG127: 2117 | BH127: 수선충당부채 | BY127: 125 | BZ127: 4202 | CA127: 1033 | CB127: 2010-01-13 | CC127: 매입 | CD127: H-Beam,50*50*10,1000000,100 | CE127: ini제철 | CF127: 100000000 | CH127: H-Beam | CI127: 50*50*10 | CJ127: 1000000 | CK127: 100 | DH127: 보통예금 | DJ127: 1000000
BA128: 3000 | BB128: 부 채 총 계(Ⅰ+Ⅱ) | BE128: 4401 | BF128: 수입이자 | BG128: 4401 | BH128: 수입이자 | BY128: 126 | BZ128: 4202 | CA128: 1033 | CB128: 2010-01-13 | CC128: 매입 | CD128: I-Beam,30*40*10,500000,60 | CE128: ini제철 | CF128: 30000000 | CH128: I-Beam | CI128: 30*40*10 | CJ128: 500000 | CK128: 60 | DH128: 여비교통비 | DI128: 1200000 | DK128: 1200000
BA129: 3000 | BB129: 자 본 총 계(Ⅲ+～Ⅶ) | BE129: 4318 | BF129: 수주비 | BG129: 4318 | BH129: 수주비 | BY129: 127 | BZ129: 1219 | CA129: 1033 | CB129: 2010-01-13 | CC129: 부가세대지급금 | CD129: 1 외 | CE129: ini제철 | CF129: 22440000 | DH129: 외상매입금 | DI129: 1000000
BA130: 3100 | BB130: Ⅲ.자본금 | BE130: 4326 | BF130: 시험연구비상각 | BG130: 4326 | BH130: 시험연구비상각 | BY130: 128 | BZ130: 2101 | CA130: 1033 | CB130: 2010-01-13 | CC130: 외상매입금 | CD130: 1 외 | CE130: ini제철 | CG130: 236840000 | DH130: 보통예금 | DJ130: 1000000
BA131: 3101 | BB131: 자본금 | BE131: 4322 | BF131: 신주발행비상각 | BG131: 4322 | BH131: 신주발행비상각 | BY131: 129 | BZ131: 1201 | CA131: 1033 | CB131: 2010-01-13 | CC131: 현금 | CD131: 1 외 | CE131: ini제철 | CG131: 10000000 | DH131: 외상매출금 | DJ131: 1500000
BA132: 3102 | BB132: 보통주자본금 | BE132: 2203 | BF132: 신주인수권부사채 | BG132: 2203 | BH132: 신주인수권부사채 | BY132: 130 | BZ132: 2101 | CA132: 1034 | CB132: 2010-01-13 | CC132: 외상매입금 | CD132: 외상대금지급 | CE132: 동양철관 | CF132: 50000000 | CV132: 2 | DH132: 보통예금 | DI132: 1500000
BA133: 3103 | BB133: 우선주자본금 | BE133: 1604 | BF133: 어업권 | BG133: 1604 | BH133: 어업권 | BY133: 131 | BZ133: 1203 | CA133: 1034 | CB133: 2010-01-13 | CC133: 보통예금 | CD133: 외상대금지급 | CE133: 하나은행 | CG133: 50000000 | CO133: 411-910001-21098 | DH133: 복리후생비 | DI133: 2000000 | DK133: 2000000
BA134: 3200 | BB134: Ⅳ.자본잉여금 | BE134: 2107 | BF134: 어음차입금 | BG134: 2107 | BH134: 어음차입금 | BY134: 132 | BZ134: 1207 | CA134: 1035 | CB134: 2010-01-13 | CC134: 외상매출금 | CD134: 외상대금 회수 | CE134: 12 | CG134: 1000000 | CV134: 2 | DH134: 소모품비 | DI134: 196000 | DK134: 196000
BA135: 3201 | BB135: 주식발행초과금 | BE135: 4305 | BF135: 여비교통비 | BG135: 4305 | BH135: 여비교통비 | BY135: 133 | BZ135: 1203 | CA135: 1035 | CB135: 2010-01-13 | CC135: 보통예금 | CD135: 외상대금 회수 | CE135: 하나은행 | CF135: 1000000 | CO135: 411-910001-21098 | DH135: 차량유지비 | DI135: 83000 | DK135: 83000
BA136: 3202 | BB136: 감자차익 | BE136: 4314 | BF136: 연구비 | BG136: 4314 | BH136: 연구비 | BY136: 134 | BZ136: 1203 | CA136: 1036 | CB136: 2010-01-13 | CC136: 보통예금 | CD136: 예금인출 | CE136: 국민은행 | CG136: 5000000 | CO136: 224201-04-224210 | CU136: 5000000 | CV136: 2 | DH136: 외상매입금 | DJ136: 500000 | DL136: 500000
BA137: 3203 | BB137: 합병차익 | BE137: 1601 | BF137: 영업권 | BG137: 1601 | BH137: 영업권 | BY137: 135 | BZ137: 1201 | CA137: 1036 | CB137: 2010-01-13 | CC137: 현금 | CD137: 예금인출 | CE137: 국민은행 | CF137: 5000000 | DH137: 매출 | DJ137: 1150000 | DL137: 1150000
BA138: 3204 | BB138: 재평가적립금 | BE138: 1313 | BF138: 완성주택 | BG138: 1313 | BH138: 완성주택 | BY138: 136 | BZ138: 4305 | CA138: 1037 | CB138: 2010-01-13 | CC138: 여비교통비 | CD138: 시내 출장여비 | CE138: 김희선 | CF138: 120000 | CT138: 120000 | CV138: 2 | DH138: 매출 | DJ138: 3450000 | DL138: 3450000
BA139: 3300 | BB139: Ⅴ.자본조정 | BE139: 2101 | BF139: 외상매입금 | BG139: 2101 | BH139: 외상매입금 | BY139: 137 | BZ139: 1201 | CA139: 1037 | CB139: 2010-01-13 | CC139: 현금 | CD139: 시내 출장여비 | CE139: 김희선 | CG139: 120000 | DH139: 매출 | DJ139: 5700000 | DL139: 5400000
BA140: 3301 | BB140: 주식할인발행차금 | BE140: 1207 | BF140: 외상매출금 | BG140: 1207 | BH140: 외상매출금 | BY140: 138 | BZ140: 4301 | CA140: 1038 | CB140: 2010-01-13 | CC140: 급여 | CD140: 1 월분 급여지급 | CE140: 직원 | CF140: 3000000 | CT140: 3000000 | CV140: 2 | DH140: 매출 | DJ140: 4800000
BA141: 3302 | BB141: 배당건설이자 | BE141: 4508 | BF141: 외화환산손실 | BG141: 4508 | BH141: 외화환산손실 | BY141: 139 | BZ141: 1201 | CA141: 1038 | CB141: 2010-01-13 | CC141: 현금 | CD141: 1 월분 급여지급 | CE141: 직원 | CG141: 3000000 | DH141: 부가세예수금 | DJ141: 1510000
BA142: 3303 | BB142: 자기주식 | BE142: 4408 | BF142: 외화환산이익 | BG142: 4408 | BH142: 외화환산이익 | BY142: 140 | BZ142: 2101 | CA142: 1039 | CB142: 2010-01-13 | CC142: 외상매입금 | CD142: 외상대급지급 | CE142: 11 | CF142: 1000000 | CV142: 2 | DH142: 보통예금 | DI142: 6610000
BA143: 3304 | BB143: 미교부주식배당금 | BE143: 4507 | BF143: 외환차손 | BG143: 4507 | BH143: 외환차손 | BY143: 141 | BZ143: 1203 | CA143: 1039 | CB143: 2010-01-13 | CC143: 보통예금 | CD143: 외상대급지급 | CE143: 하나은행 | CG143: 1000000 | CO143: 411-910001-21098 | DH143: 매출 | DJ143: 2400000
BA144: 3400 | BB144: Ⅵ.기타포괄손익누계액 | BE144: 4407 | BF144: 외환차익 | BG144: 4407 | BH144: 외환차익 | BY144: 142 | BZ144: 4305 | CA144: 1040 | CB144: 2010-01-13 | CC144: 여비교통비 | CD144: 직원해외여비 | CE144: 직원 | CF144: 1200000 | CT144: 1200000 | CV144: 2 | DH144: 부가세예수금 | DJ144: 240000
BA145: 3401 | BB145: 매도가능증권평가손익 | BE145: 1315 | BF145: 용지 | BG145: 1315 | BH145: 용지 | BY145: 143 | BZ145: 1201 | CA145: 1040 | CB145: 2010-01-13 | CC145: 현금 | CD145: 직원해외여비 | CE145: 직원 | CG145: 1200000 | DH145: 외상매출금 | DI145: 1800000
BA146: 3402 | BB146: 해외사업환산손익 | BE146: 3103 | BF146: 우선주자본금 | BG146: 3103 | BH146: 우선주자본금 | BY146: 144 | BZ146: 2101 | CA146: 1041 | CB146: 2010-01-13 | CC146: 외상매입금 | CD146: 외상대금지급 | CE146: 동양철관 | CF146: 1000000 | CV146: 2 | DH146: 보통예금 | DI146: 840000
BA147: 3403 | BB147: 지분법자본변동 | BE147: 4104 | BF147: 운송수입 | BG147: 4104 | BH147: 운송수입 | BY147: 145 | BZ147: 1203 | CA147: 1041 | CB147: 2010-01-13 | CC147: 보통예금 | CD147: 외상대금지급 | CE147: 신한은행 | CG147: 1000000 | CO147: 651-231065-09 | DH147: 매출 | DJ147: 2400000 | DL147: 1300000
BA148: 3404 | BB148: 파생상품평가손익 | BE148: 1307 | BF148: 원자재 | BG148: 1307 | BH148: 원자재 | BY148: 146 | BZ148: 1207 | CA148: 1042 | CB148: 2010-01-13 | CC148: 외상매출금 | CD148: 외상대금 입금 | CE148: 13 | CG148: 1500000 | CV148: 2 | DH148: 부가세예수금 | DJ148: 240000
BA149: 3500 | BB149: Ⅶ.이익잉여금 | BE149: 1306 | BF149: 원재료 | BG149: 1306 | BH149: 원재료 | BY149: 147 | BZ149: 1203 | CA149: 1042 | CB149: 2010-01-13 | CC149: 보통예금 | CD149: 외상대금 입금 | CE149: 국민은행 | CF149: 1500000 | CO149: 224201-04-224210 | DH149: 외상매출금 | DI149: 1340000
BA150: 3501 | BB150: 이익준비금 | BE150: 1206 | BF150: 유가증권 | BG150: 1206 | BH150: 유가증권 | BY150: 148 | BZ150: 4304 | CA150: 1043 | CB150: 2010-01-13 | CC150: 복리후생비 | CD150: 직원 신체단련비 | CE150: 직원 | CF150: 2000000 | CT150: 2000000 | CV150: 2 | DH150: 외상매입금 | DI150: 10000000
BA151: 3502 | BB151: 기업합리화적립금 | BE151: 4402 | BF151: 유가증권이자 | BG151: 4402 | BH151: 유가증권이자 | BY151: 149 | BZ151: 1201 | CA151: 1043 | CB151: 2010-01-13 | CC151: 현금 | CD151: 직원 신체단련비 | CE151: 직원 | CG151: 2000000 | DH151: 보통예금 | DJ151: 10000000
BA152: 3503 | BB152: 재무구조개선적립금 | BE152: 4504 | BF152: 유가증권처분손실 | BG152: 4504 | BH152: 유가증권처분손실 | BY152: 150 | BZ152: 4319 | CA152: 1044 | CB152: 2010-01-13 | CC152: 소모품비 | CD152: 사무용문구류 구입 | CE152: 미니아트 | CF152: 196000 | CT152: 196000 | CV152: 2 | DH152: 여비교통비 | DI152: 74000 | DK152: 74000
BA153: 3504 | BB153: 임의적립금 | BE153: 4405 | BF153: 유가증권처분이익 | BG153: 4405 | BH153: 유가증권처분이익 | BY153: 151 | BZ153: 1201 | CA153: 1044 | CB153: 2010-01-13 | CC153: 현금 | CD153: 사무용문구류 구입 | CE153: 미니아트 | CG153: 196000 | DH153: 차량유지비 | DI153: 329000 | DK153: 329000
BA154: 3505 | BB154: 별도적립금 | BE154: 4505 | BF154: 유가증권평가손실 | BG154: 4505 | BH154: 유가증권평가손실 | BY154: 152 | BZ154: 4313 | CA154: 1045 | CB154: 2010-01-13 | CC154: 차량유지비 | CD154: 7982유류대 | CE154: 세창주유소 | CF154: 83000 | CT154: 83000 | CV154: 2 | DH154: 매출 | DJ154: 2100000
BA155: 3506 | BB155: 미처분이익잉여금 | BE155: 4406 | BF155: 유가증권평가이익 | BG155: 4406 | BH155: 유가증권평가이익 | BY155: 153 | BZ155: 1201 | CA155: 1045 | CB155: 2010-01-13 | CC155: 현금 | CD155: 7982유류대 | CE155: 세창주유소 | CG155: 83000 | DH155: 매출 | DJ155: 2700000
BA156: 3507 | BB156: 이월이익잉여금 | BE156: 2103 | BF156: 유동성사채 | BG156: 2103 | BH156: 유동성사채 | BY156: 154 | BZ156: 2101 | CA156: 1046 | CB156: 2010-01-13 | CC156: 외상매입금 | CD156: 외상대금 입금 | CE156: 13 | CG156: 500000 | CU156: 500000 | CV156: 2 | DH156: 부가세예수금 | DJ156: 480000
E157: 분개전표 | BA157: 4100 | BB157: Ⅰ.매출액 | BE157: 2105 | BF157: 유동성장기차입금 | BG157: 2105 | BH157: 유동성장기차입금 | BY157: 155 | BZ157: 1201 | CA157: 1046 | CB157: 2010-01-13 | CC157: 현금 | CD157: 외상대금 입금 | CE157: 13 | CF157: 500000 | DH157: 외상매출금 | DI157: 3000000
BA158: 4100 | BB158: 매출 | BE158: 1100 | BF158: 유동자산 | BG158: 1100 | BH158: 유동자산 | BY158: 156 | BZ158: 4100 | CA158: 1047 | CB158: 2010-01-14 | CC158: 매출 | CD158: 1,11,1150,1000 | CE158: 민주종합건재 | CG158: 1150000 | CH158: 철근1 | CI158: 11 | CJ158: 1150 | CK158: 1000 | CU158: 1150000 | CV158: 7 | DH158: 보통예금 | DI158: 2280000
E159: 일자 | F159: =E81 -> 2010-09-27 | BA159: 4101 | BB159: 상품매출 | BE159: 4513 | BF159: 유무형자산처분손실 | BG159: 4513 | BH159: 유무형자산처분손실 | BY159: 157 | BZ159: 4100 | CA159: 1047 | CB159: 2010-01-14 | CC159: 매출 | CD159: 2,12,2300,1500 | CE159: 민주종합건재 | CG159: 3450000 | CH159: 철근2 | CI159: 12 | CJ159: 2300 | CK159: 1500 | CU159: 3450000 | DH159: 매출 | DJ159: 600000
BA160: 4102 | BB160: 제품매출 | BE160: 4413 | BF160: 유무형자산처분이익 | BG160: 4413 | BH160: 유무형자산처분이익 | BY160: 158 | BZ160: 4100 | CA160: 1047 | CB160: 2010-01-14 | CC160: 매출 | CD160: 3,33,3800,1500 | CE160: 민주종합건재 | CG160: 5700000 | CH160: 철근3 | CI160: 33 | CJ160: 3800 | CK160: 1500 | CU160: 5400000 | DH160: 매출 | DJ160: 24000000
E161: 계정과목 | F161: 적 요 | G161: 거래처 | H161: 차 변 | I161: 대 변 | BA161: 4103 | BB161: 공사수입 | BE161: 2119 | BF161: 이연법인세부채 | BG161: 2119 | BH161: 이연법인세부채 | BY161: 159 | BZ161: 4100 | CA161: 1047 | CB161: 2010-01-14 | CC161: 매출 | CD161: 4,44,4800,1000 | CE161: 민주종합건재 | CG161: 4800000 | CH161: 철근4 | CI161: 44 | CJ161: 4800 | CK161: 1000 | DH161: 매출 | DJ161: 6500000
E162: =F81 -> 매출 | F162: =G81 -> 강관#1 33*10M 120000 10 | G162: 가람공무 | H162: =I81 -> 0 | I162: 1200000 | BA162: 4104 | BB162: 운송수입 | BE162: 2212 | BF162: 이연법인세부채 | BG162: 2212 | BH162: 이연법인세부채 | BY162: 160 | BZ162: 2114 | CA162: 1047 | CB162: 2010-01-14 | CC162: 부가세예수금 | CD162: 1 외 | CE162: 민주종합건재 | CG162: 1510000 | DH162: 부가세예수금 | DJ162: 3110000
E163: =F82 -> 매출 | F163: 강관#2 25*10m 80000 100 | G163: =H82 -> 가람공무 | H163: 0 | I163: 8000000 | BA163: 4105 | BB163: 부동산임대수입 | BE163: 1218 | BF163: 이연법인세자산 | BG163: 1218 | BH163: 이연법인세자산 | BY163: 161 | BZ163: 1203 | CA163: 1047 | CB163: 2010-01-14 | CC163: 보통예금 | CD163: 1 외 224201-04-224210 | CE163: 국민은행 | CF163: 6610000 | CO163: 224201-04-224210 | DH163: 외상매출금 | DI163: 16000000
E164: 부가세예수금 | F164: 강관#1 외 | G164: 가람공무 | H164: 0 | I164: 920000 | BA164: 4106 | BB164: 분양수입 | BE164: 1707 | BF164: 이연법인세자산 | BG164: 1707 | BH164: 이연법인세자산 | BY164: 162 | BZ164: 1201 | CA164: 1047 | CB164: 2010-01-14 | CC164: 현금 | CD164: 1 외 | CE164: 민주종합건재 | CF164: 10000000 | DH164: 보통예금 | DI164: 18210000
E165: 현금 | F165: 강관#1 외 | G165: 가람공무 | H165: 10120000 | I165: 0 | BA165: 4107 | BB165: 기타매출 | BE165: 4201 | BF165: 이월상품 | BG165: 4201 | BH165: 이월상품 | BY165: 163 | BZ165: 4100 | CA165: 1048 | CB165: 2010-01-14 | CC165: 매출 | CD165: 강관#1,33*10M,120000,20 | CE165: 13 | CG165: 2400000 | CH165: 강관#1 | CI165: 33*10M | CJ165: 120000 | CK165: 20 | CV165: 4 | DH165: 매출 | DJ165: 17500000
E166: 0 | F166: 0 | G166: 0 | H166: 0 | I166: 0 | BA166: 4200 | BB166: Ⅱ.매출원가 | BE166: 3507 | BF166: 이월이익잉여금 | BG166: 3507 | BH166: 이월이익잉여금 | BY166: 164 | BZ166: 2114 | CA166: 1048 | CB166: 2010-01-14 | CC166: 부가세예수금 | CD166: 강관#1 | CE166: 13 | CG166: 240000 | DH166: 매출 | DJ166: 14500000
E167: 0 | F167: 0 | G167: 0 | H167: 0 | I167: 0 | BA167: 4201 | BB167: 이월상품 | BE167: 3501 | BF167: 이익준비금 | BG167: 3501 | BH167: 이익준비금 | BY167: 165 | BZ167: 1207 | CA167: 1048 | CB167: 2010-01-14 | CC167: 외상매출금 | CD167: 강관#1 | CE167: 13 | CF167: 1800000 | DH167: 부가세예수금 | DJ167: 3200000
E168: 0 | F168: 0 | G168: 0 | H168: 0 | I168: 0 | BA168: 4202 | BB168: 매입 | BE168: 4404 | BF168: 임대료 | BG168: 4404 | BH168: 임대료 | BY168: 166 | BZ168: 1203 | CA168: 1048 | CB168: 2010-01-14 | CC168: 보통예금 | CD168: 강관#1 651-231065-09 | CE168: 신한은행 | CF168: 840000 | CO168: 651-231065-09 | DH168: 외상매출금 | DI168: 20000000
E169: 0 | F169: 0 | G169: 0 | H169: 0 | I169: 0 | BA169: 4300 | BB169: Ⅳ.판매비와관리비 | BE169: 2214 | BF169: 임대보증금 | BG169: 2214 | BH169: 임대보증금 | BY169: 167 | BZ169: 4100 | CA169: 1049 | CB169: 2010-01-14 | CC169: 매출 | CD169: 강관#1,33*10M,120000,20 | CE169: 13 | CG169: 2400000 | CH169: 강관#1 | CI169: 33*10M | CJ169: 120000 | CK169: 20 | CU169: 1300000 | CV169: 4 | DH169: 보통예금 | DI169: 15200000
E170: 합 계 | H170: =I79 -> 10120000 | I170: =J79 -> 10120000 | BA170: 4301 | BB170: 급여 | BE170: 3504 | BF170: 임의적립금 | BG170: 3504 | BH170: 임의적립금 | BY170: 168 | BZ170: 2114 | CA170: 1049 | CB170: 2010-01-14 | CC170: 부가세예수금 | CD170: 강관#1 | CE170: 13 | CG170: 240000 | DH170: 매출 | DJ170: 3500000
BA171: 4302 | BB171: 퇴직급여(충당금전입액포함) | BE171: 4306 | BF171: 임차료 | BG171: 4306 | BH171: 임차료 | BY171: 169 | BZ171: 1207 | CA171: 1049 | CB171: 2010-01-14 | CC171: 외상매출금 | CD171: 강관#1 | CE171: 13 | CF171: 1340000 | DH171: 매출 | DJ171: 2850000
BA172: 4303 | BB172: 보험료 | BE172: 1705 | BF172: 임차보증금 | BG172: 1705 | BH172: 임차보증금 | BY172: 170 | BZ172: 1201 | CA172: 1049 | CB172: 2010-01-14 | CC172: 현금 | CD172: 강관#1 | CE172: 13 | CF172: 1300000 | DH172: 부가세예수금 | DJ172: 635000
BA173: 4304 | BB173: 복리후생비 | BE173: 3000 | BF173: 자 본 총 계(Ⅲ+～Ⅶ) | BG173: 3000 | BH173: 자 본 총 계(Ⅲ+～Ⅶ) | BY173: 171 | BZ173: 2101 | CA173: 1051 | CB173: 2010-01-14 | CC173: 외상매입금 | CD173: 외상대금 지급 | CE173: 동양철관 | CF173: 10000000 | CV173: 2 | DH173: 외상매출금 | DI173: 3000000
E174: 계정과목 | F174: 계정과목 | BA174: 4305 | BB174: 여비교통비 | BE174: 3303 | BF174: 자기주식 | BG174: 3303 | BH174: 자기주식 | BY174: 172 | BZ174: 1203 | CA174: 1051 | CB174: 2010-01-14 | CC174: 보통예금 | CD174: 외상대금 지급 | CE174: 신한은행 | CG174: 10000000 | CO174: 651-231065-09 | DH174: 보통예금 | DI174: 3985000
E175: <>현금 | F175: <>현금예금 | BA175: 4306 | BB175: 임차료 | BE175: 3101 | BF175: 자본금 | BG175: 3101 | BH175: 자본금 | BY175: 173 | BZ175: 4305 | CA175: 1052 | CB175: 2010-01-14 | CC175: 여비교통비 | CD175: 시내출장여비 | CE175: 임창식 | CF175: 74000 | CT175: 74000 | CV175: 2 | DH175: 매출 | DJ175: 2300000 | DL175: 1000000
E176: 계정과목 | F176: 적요 | G176: 거래처 | H176: 차변 | I176: 대변 | BA176: 4307 | BB176: 접대비 | BE176: 999.99 | BF176: 자산 | BG176: 999.99 | BH176: 자산 | BY176: 174 | BZ176: 1201 | CA176: 1052 | CB176: 2010-01-14 | CC176: 현금 | CD176: 시내출장여비 | CE176: 임창식 | CG176: 74000 | DH176: 매출 | DJ176: 3900000
E177: 매출 | F177: 강관#1 33*10M 120000 10 | G177: 가람공무 | I177: 1200000 | BA177: 4308 | BB177: 수선유지비 | BE177: 4418 | BF177: 자산수증이익 | BG177: 4418 | BH177: 자산수증이익 | BY177: 175 | BZ177: 4313 | CA177: 1053 | CB177: 2010-01-14 | CC177: 차량유지비 | CD177: 7974수리비 | CE177: 형제카센타 | CF177: 329000 | CT177: 329000 | CV177: 2 | DH177: 매출 | DJ177: 1200000
E178: 매출 | F178: 강관#2 25*10m 80000 100 | G178: 가람공무 | I178: 8000000 | BA178: 4309 | BB178: 물류비 | BE178: 4320 | BF178: 잡비 | BG178: 4320 | BH178: 잡비 | BY178: 176 | BZ178: 1201 | CA178: 1053 | CB178: 2010-01-14 | CC178: 현금 | CD178: 7974수리비 | CE178: 형제카센타 | CG178: 329000 | DH178: 부가세예수금 | DJ178: 740000
E179: 부가세예수금 | F179: 강관#1 외 | G179: 가람공무 | I179: 920000 | BA179: 4310 | BB179: 감가상각비 | BE179: 2213 | BF179: 장기공사선수금 | BG179: 2213 | BH179: 장기공사선수금 | BY179: 177 | BZ179: 4100 | CA179: 1054 | CB179: 2010-01-14 | CC179: 매출 | CD179: 스테인레스관#1,100*10,70000,30 | CE179: 가람공무 | CG179: 2100000 | CH179: 스테인레스관#1 | CI179: 100*10 | CJ179: 70000 | CK179: 30 | CV179: 5 | DH179: 외상매출금 | DI179: 3000000
BA180: 4311 | BB180: 세금과공과 | BE180: 1404 | BF180: 장기대여금 | BG180: 1404 | BH180: 장기대여금 | BY180: 178 | BZ180: 4100 | CA180: 1054 | CB180: 2010-01-14 | CC180: 매출 | CD180: 스테인레스관#2,80*10,54000,50 | CE180: 가람공무 | CG180: 2700000 | CH180: 스테인레스관#2 | CI180: 80*10 | CJ180: 54000 | CK180: 50 | DH180: 보통예금 | DI180: 4140000
BA181: 4312 | BB181: 광고선전비 | BE181: 1703 | BF181: 장기미수금 | BG181: 1703 | BH181: 장기미수금 | BY181: 179 | BZ181: 2114 | CA181: 1054 | CB181: 2010-01-14 | CC181: 부가세예수금 | CD181: 스테인레스관#1 외 | CE181: 가람공무 | CG181: 480000 | DH181: 매출 | DJ181: 2400000 | DL181: 2400000
BA182: 4313 | BB182: 차량유지비 | BE182: 1702 | BF182: 장기받을어음 | BG182: 1702 | BH182: 장기받을어음 | BY182: 180 | BZ182: 1207 | CA182: 1054 | CB182: 2010-01-14 | CC182: 외상매출금 | CD182: 스테인레스관#1 외 | CE182: 가람공무 | CF182: 3000000 | DH182: 매출 | DJ182: 400000 | DL182: 400000
BA183: 4314 | BB183: 연구비 | BE183: 1704 | BF183: 장기선급금 | BG183: 1704 | BH183: 장기선급금 | BY183: 181 | BZ183: 1203 | CA183: 1054 | CB183: 2010-01-14 | CC183: 보통예금 | CD183: 스테인레스관#1 외 224201-04-224210 | CE183: 국민은행 | CF183: 2280000 | CO183: 224201-04-224210 | DH183: 부가세예수금 | DJ183: 280000 | DL183: 280000
BA184: 4315 | BB184: 경상개발비 | BE184: 2207 | BF184: 장기성외상매입금 | BG184: 2207 | BH184: 장기성외상매입금 | BY184: 182 | BZ184: 4100 | CA184: 1055 | CB184: 2010-01-14 | CC184: 매출 | CD184: 1,11,1200,500 | CE184: 12 | CG184: 600000 | CH184: 철근1 | CI184: 11 | CJ184: 1200 | CK184: 500 | CV184: 6 | DH184: 매출 | DJ184: 60000000 | DL184: 30000000
BA185: 4316 | BB185: 대손상각비(충당금전입액포함) | BE185: 2208 | BF185: 장기성지급어음 | BG185: 2208 | BH185: 장기성지급어음 | BY185: 183 | BZ185: 4100 | CA185: 1055 | CB185: 2010-01-14 | CC185: 매출 | CD185: H-Beam,50*50*10,1200000,20 | CE185: 12 | CG185: 24000000 | CH185: H-Beam | CI185: 50*50*10 | CJ185: 1200000 | CK185: 20 | DH185: 부가세예수금 | DJ185: 6000000
BA186: 4317 | BB186: 미분양주택관리비 | BE186: 1401 | BF186: 장기예금 | BG186: 1401 | BH186: 장기예금 | BY186: 184 | BZ186: 4100 | CA186: 1055 | CB186: 2010-01-14 | CC186: 매출 | CD186: I-Beam,30*40*10,650000,10 | CE186: 12 | CG186: 6500000 | CH186: I-Beam | CI186: 30*40*10 | CJ186: 650000 | CK186: 10 | DH186: 외상매출금 | DI186: 36000000
BA187: 4318 | BB187: 수주비 | BE187: 1701 | BF187: 장기외상매출금 | BG187: 1701 | BH187: 장기외상매출금 | BY187: 185 | BZ187: 2114 | CA187: 1055 | CB187: 2010-01-14 | CC187: 부가세예수금 | CD187: 1 외 | CE187: 12 | CG187: 3110000 | DH187: 외상매출금 | DJ187: 10000000
BA188: 4319 | BB188: 소모품비 | BE188: 2211 | BF188: 장기제품보증충당부채 | BG188: 2211 | BH188: 장기제품보증충당부채 | BY188: 186 | BZ188: 1207 | CA188: 1055 | CB188: 2010-01-14 | CC188: 외상매출금 | CD188: 1 외 | CE188: 12 | CF188: 16000000 | DH188: 보통예금 | DI188: 10000000
BA189: 4320 | BB189: 잡비 | BE189: 2204 | BF189: 장기차입금 | BG189: 2204 | BH189: 장기차입금 | BY189: 187 | BZ189: 1203 | CA189: 1055 | CB189: 2010-01-14 | CC189: 보통예금 | CD189: 1 외 224201-04-224210 | CE189: 국민은행 | CF189: 18210000 | CO189: 224201-04-224210 | DH189: 급여 | DI189: 10000000 | DK189: 10000000
BA190: 4321 | BB190: 창업비상각 | BE190: 1402 | BF190: 장기투자증권 | BG190: 1402 | BH190: 장기투자증권 | BY190: 188 | BZ190: 4100 | CA190: 1056 | CB190: 2010-01-14 | CC190: 매출 | CD190: 아연도강판,0.5*4*5,350000,50 | CE190: 이우차체공업 | CG190: 17500000 | CH190: 아연도강판 | CI190: 0.5*4*5 | CJ190: 350000 | CK190: 50 | CV190: 5 | DH190: 차량유지비 | DI190: 50000 | DK190: 50000
BA191: 4322 | BB191: 신주발행비상각 | BE191: 4511 | BF191: 장기투자증권손상차손 | BG191: 4511 | BH191: 장기투자증권손상차손 | BY191: 189 | BZ191: 4100 | CA191: 1056 | CB191: 2010-01-14 | CC191: 매출 | CD191: 아연동강판,0.3*4*5,290000,50 | CE191: 이우차체공업 | CG191: 14500000 | CH191: 아연동강판 | CI191: 0.3*4*5 | CJ191: 290000 | CK191: 50 | DH191: 복리후생비 | DI191: 230000 | DK191: 230000
BA192: 4323 | BB192: 사채발행비상각 | BE192: 4411 | BF192: 장기투자증권손상차손환입 | BG192: 4411 | BH192: 장기투자증권손상차손환입 | BY192: 190 | BZ192: 2114 | CA192: 1056 | CB192: 2010-01-14 | CC192: 부가세예수금 | CD192: 아연도강판 외 | CE192: 이우차체공업 | CG192: 3200000 | DH192: 여비교통비 | DI192: 60000 | DK192: 60000
BA193: 4324 | BB193: 사채할인발행차금상각 | BE193: 4506 | BF193: 재고자산감모손실 | BG193: 4506 | BH193: 재고자산감모손실 | BY193: 191 | BZ193: 1207 | CA193: 1056 | CB193: 2010-01-14 | CC193: 외상매출금 | CD193: 아연도강판 외 | CE193: 이우차체공업 | CF193: 20000000 | DH193: 외상매입금 | DI193: 20000000 | DK193: 20000000
BA194: 4325 | BB194: 개발비상각 | BE194: 1304 | BF194: 재공품 | BG194: 1304 | BH194: 재공품 | BY194: 192 | BZ194: 1203 | CA194: 1056 | CB194: 2010-01-14 | CC194: 보통예금 | CD194: 아연도강판 외 411-910001-21098 | CE194: 하나은행 | CF194: 15200000 | CO194: 411-910001-21098 | DH194: 매출 | DJ194: 600000 | DL194: 600000
BA195: 4326 | BB195: 시험연구비상각 | BE195: 3503 | BF195: 재무구조개선적립금 | BG195: 3503 | BH195: 재무구조개선적립금 | BY195: 193 | BZ195: 4100 | CA195: 1057 | CB195: 2010-01-14 | CC195: 매출 | CD195: 아연도강판,0.5*4*5,350000,10 | CE195: 이우차체공업 | CG195: 3500000 | CH195: 아연도강판 | CI195: 0.5*4*5 | CJ195: 350000 | CK195: 10 | CV195: 5 | DH195: 매출 | DJ195: 3600000 | DL195: 3600000
BA196: 4400 | BB196: Ⅵ.영업외수익 | BE196: 3204 | BF196: 재평가적립금 | BG196: 3204 | BH196: 재평가적립금 | BY196: 194 | BZ196: 4100 | CA196: 1057 | CB196: 2010-01-14 | CC196: 매출 | CD196: 아연동강판,0.3*4*5,285000,10 | CE196: 이우차체공업 | CG196: 2850000 | CH196: 아연동강판 | CI196: 0.3*4*5 | CJ196: 285000 | CK196: 10 | DH196: 매출 | DJ196: 2000000 | DL196: 2000000
BA197: 4401 | BB197: 수입이자 | BE197: 4519 | BF197: 재해손실 | BG197: 4519 | BH197: 재해손실 | BY197: 195 | BZ197: 2114 | CA197: 1057 | CB197: 2010-01-14 | CC197: 부가세예수금 | CD197: 아연도강판 외 | CE197: 이우차체공업 | CG197: 635000 | DH197: 매출 | DJ197: 5000000 | DL197: 3800000
BA198: 4402 | BB198: 유가증권이자 | BE198: 1309 | BF198: 저장품 | BG198: 1309 | BH198: 저장품 | BY198: 196 | BZ198: 1207 | CA198: 1057 | CB198: 2010-01-14 | CC198: 외상매출금 | CD198: 아연도강판 외 | CE198: 이우차체공업 | CF198: 3000000 | DH198: 매출 | DJ198: 9000000
BA199: 4403 | BB199: 배당금수익 | BE199: 4518 | BF199: 전기오류수정손실 | BG199: 4518 | BH199: 전기오류수정손실 | BY199: 197 | BZ199: 1203 | CA199: 1057 | CB199: 2010-01-14 | CC199: 보통예금 | CD199: 아연도강판 외 651-231065-09 | CE199: 신한은행 | CF199: 3985000 | CO199: 651-231065-09 | DH199: 매출 | DJ199: 1200000
BA200: 4404 | BB200: 임대료 | BE200: 4417 | BF200: 전기오류수정이익 | BG200: 4417 | BH200: 전기오류수정이익 | BY200: 198 | BZ200: 4100 | CA200: 1058 | CB200: 2010-01-14 | CC200: 매출 | CD200: 강관#1,33*10M,115000,20 | CE200: 13 | CG200: 2300000 | CH200: 강관#1 | CI200: 33*10M | CJ200: 115000 | CK200: 20 | CU200: 1000000 | CV200: 7 | DH200: 매출 | DJ200: 160000 | DQ200: =SUM(DQ9:DQ99) -> 3378763080 | DR200: =SUM(DR9:DR99) -> 2978940000 | DS200: =SUM(DS9:DS99) -> 399823080 | DT200: 합 계 | DU200: =SUM(DU9:DU99) -> 333990000 | DV200: =SUM(DV9:DV99) -> 3116338620 | DW200: =SUM(DW9:DW54) -> 3450328620
... 302 more rows

Sheet 분개장
A1: 발행 | B1: 전표번호 | C1: FALSE | Q1: 2010-01-15 | R1: 2010-01-30 | T1: 일자 | U1: 일자
A2: =C$1 -> FALSE | B2: 1123 | E2: =COUNT(E9:E1000) -> 186 | J2: 46 | T2: =CONCATENATE(">=",Q1) -> >=40193 | U2: =CONCATENATE("<=",R1) -> <=40208 | AF2: =Q1 -> 2010-01-15 | AG2: 부터 | AH2: =R1 -> 2010-01-30 | AI2: 까지
A3: FALSE | B3: 1120 | H3: 분 개 장
A4: FALSE | B4: 1121
A5: FALSE | B5: 1122
A6: FALSE | Y6: 4
A7: FALSE | M7: =COUNT(M9:M1000) -> 53
A8: FALSE | D8: 전체 | E8: 전표번호 | F8: 일자 | G8: 계정과목 | H8: 적요 | I8: 거래처 | J8: 차변 | K8: 대변 | L8: 부서 | M8: 행
A9: FALSE | E9: 1064 | F9: 2010-01-15 | G9: 차량유지비 | H9: 7982유류대 | I9: 세창주유소 | J9: 50000 | M9: 2 | Q9: =COUNT(E9:E10078) -> 186
A10: FALSE | E10: 1064 | F10: 2010-01-15 | G10: 현금 | H10: 7982유류대 | I10: 세창주유소 | K10: 50000
A11: FALSE | E11: 1065 | F11: 2010-01-15 | G11: 복리후생비 | H11: 직원 야근식대 | I11: 영종식당 | J11: 230000 | M11: 2 | T11: 합 계 | V11: =SUM(V$8:V10) -> 0 | W11: =SUM(W$8:W10) -> 0
A12: FALSE | E12: 1065 | F12: 2010-01-15 | G12: 현금 | H12: 직원 야근식대 | I12: 영종식당 | K12: 230000
A13: FALSE | E13: 1066 | F13: 2010-01-15 | G13: 여비교통비 | H13: 시외 출장여비 | I13: 임창식 | J13: 60000 | M13: 2 | R13: 발행 | S13: 전표번호 | T13: 전표번호
A14: FALSE | E14: 1066 | F14: 2010-01-15 | G14: 현금 | H14: 시외 출장여비 | I14: 임창식 | K14: 60000 | R14: TRUE
A15: FALSE | E15: 1067 | F15: 2010-01-15 | G15: 외상매입금 | H15: 외상대금 지급 | I15: ini제철 | J15: 20000000 | M15: 2 | S15: 전표번호
A16: FALSE | E16: 1067 | F16: 2010-01-15 | G16: 현금 | H16: 외상대금 지급 | I16: ini제철 | K16: 20000000 | Q16: 1 | R16: =Q16-Q17 -> 1
A17: FALSE | E17: 1069 | F17: 2010-01-15 | G17: 매출 | H17: 1,11,1200,500 | I17: 가람공무 | K17: 600000 | M17: 11 | Q17: =COUNT(S16:S167) -> 0
A18: FALSE | E18: 1069 | F18: 2010-01-15 | G18: 매출 | H18: 2,12,2400,1500 | I18: 가람공무 | K18: 3600000
A19: FALSE | E19: 1069 | F19: 2010-01-15 | G19: 매출 | H19: 3,33,4000,500 | I19: 가람공무 | K19: 2000000
A20: FALSE | E20: 1069 | F20: 2010-01-15 | G20: 매출 | H20: 4,44,5000,1000 | I20: 가람공무 | K20: 5000000
A21: FALSE | E21: 1069 | F21: 2010-01-15 | G21: 매출 | H21: 5,55,6000,1500 | I21: 가람공무 | K21: 9000000
A22: FALSE | E22: 1069 | F22: 2010-01-15 | G22: 매출 | H22: 강관#1,33*10M,120000,10 | I22: 가람공무 | K22: 1200000
A23: FALSE | E23: 1069 | F23: 2010-01-15 | G23: 매출 | H23: 강관#2,25*10m,8000,20 | I23: 가람공무 | K23: 160000
A24: FALSE | E24: 1069 | F24: 2010-01-15 | G24: 부가세예수금 | H24: 1 외 | I24: 가람공무 | K24: 2156000
A25: FALSE | E25: 1069 | F25: 2010-01-15 | G25: 외상매출금 | H25: 1 외 | I25: 가람공무 | J25: 10000000
A26: FALSE | E26: 1069 | F26: 2010-01-15 | G26: 보통예금 | H26: 1 외 651-231065-09 | I26: 신한은행 | J26: 3716000
A27: FALSE | E27: 1069 | F27: 2010-01-15 | G27: 현금 | H27: 1 외 | I27: 가람공무 | J27: 10000000
A28: FALSE | E28: 1070 | F28: 2010-01-15 | G28: 매출 | H28: H-Beam,50*50*10,1200000,10 | I28: 민주종합건재 | K28: 12000000 | M28: 5
A29: FALSE | E29: 1070 | F29: 2010-01-15 | G29: 매출 | H29: I-Beam,30*40*10,650000,30 | I29: 민주종합건재 | K29: 19500000
A30: FALSE | E30: 1070 | F30: 2010-01-15 | G30: 부가세예수금 | H30: H-Beam 외 | I30: 민주종합건재 | K30: 3150000 | W30: 전표번호
A31: FALSE | E31: 1070 | F31: 2010-01-15 | G31: 외상매출금 | H31: H-Beam 외 | I31: 민주종합건재 | J31: 24650000 | V31: =COUNT(AA33:AB53) -> 2 | W31: 1123
A32: FALSE | E32: 1070 | F32: 2010-01-15 | G32: 현금 | H32: H-Beam 외 | I32: 민주종합건재 | J32: 10000000 | V32: 전표번호 | W32: 일자 | X32: 계정과목 | Y32: 적요 | Z32: 거래처 | AA32: 차변 | AB32: 대변 | AC32: 부서
A33: FALSE | E33: 1071 | F33: 2010-01-15 | G33: 매출 | H33: 1,,1250,400 | I33: 13 | K33: 500000 | M33: 3 | V33: 1123 | W33: 2010-04-12 | X33: 접대비 | Y33: 거래처 접대 | Z33: 미인클럽 | AA33: 500000
A34: =C$1 -> FALSE | E34: 1071 | F34: 2010-01-15 | G34: 부가세예수금 | H34: 1 | I34: 13 | K34: 50000 | V34: 1123 | W34: 2010-04-12 | X34: 미지급금 | Y34: 거래처 접대 | Z34: 신한카드 | AB34: 500000
A35: FALSE | E35: 1071 | F35: 2010-01-15 | G35: 현금 | H35: 1 | I35: 13 | J35: 550000
A36: FALSE | E36: 1072 | F36: 2010-01-15 | G36: 외상매출금 | H36: 외상대금 회수 | I36: 민주종합건재 | K36: 10000000 | M36: 2
A37: FALSE | E37: 1072 | F37: 2010-01-15 | G37: 보통예금 | H37: 외상대금 회수 | I37: 신한은행 | J37: 10000000
A38: FALSE | E38: 1073 | F38: 2010-01-15 | G38: 외상매입금 | H38: 외상대금 지급 | I38: ini제철 | J38: 80000000 | M38: 4
A39: FALSE | E39: 1073 | F39: 2010-01-15 | G39: 보통예금 | H39: 외상대금 지급 | I39: 하나은행 | K39: 30000000
A40: FALSE | E40: 1073 | F40: 2010-01-15 | G40: 보통예금 | H40: 외상대금 지급 | I40: 신한은행 | K40: 20000000
A41: FALSE | E41: 1073 | F41: 2010-01-15 | G41: 현금 | H41: 외상대금 지급 | I41: ini제철 | K41: 30000000
A42: FALSE | E42: 1074 | F42: 2010-01-15 | G42: 여비교통비 | H42: 시내 출장여비 | I42: 임창식 | J42: 120000 | M42: 2
A43: FALSE | E43: 1074 | F43: 2010-01-15 | G43: 현금 | H43: 시내 출장여비 | I43: 임창식 | K43: 120000
A44: FALSE | E44: 1075 | F44: 2010-01-15 | G44: 매출 | H44: 1,11,1200,400 | I44: 12 | K44: 480000 | M44: 7
A45: FALSE | E45: 1075 | F45: 2010-01-15 | G45: 매출 | H45: 2,12,2400,600 | I45: 12 | K45: 1440000
A46: FALSE | E46: 1075 | F46: 2010-01-15 | G46: 매출 | H46: 3,33,4000,500 | I46: 12 | K46: 2000000
A47: FALSE | E47: 1075 | F47: 2010-01-15 | G47: 매출 | H47: 4,44,5000,1000 | I47: 12 | K47: 5000000
A48: FALSE | E48: 1075 | F48: 2010-01-15 | G48: 매출 | H48: 강관#1,33*10M,120000,50 | I48: 12 | K48: 6000000
A49: FALSE | E49: 1075 | F49: 2010-01-15 | G49: 외상매출금 | H49: 1 외 | I49: 12 | J49: 7920000
A50: FALSE | E50: 1075 | F50: 2010-01-15 | G50: 현금 | H50: 1 외 | I50: 12 | J50: 7000000
A51: FALSE | E51: 1076 | F51: 2010-01-20 | G51: 매입 | H51: 강관#1,33*10M,100000,500 | I51: 동양철관 | J51: 50000000 | M51: 7
A52: FALSE | E52: 1076 | F52: 2010-01-20 | G52: 매입 | H52: 강관#2,25*10m,70000,500 | I52: 동양철관 | J52: 35000000
A53: FALSE | E53: 1076 | F53: 2010-01-20 | G53: 매입 | H53: L형관#2,20*40*40,30000,400 | I53: 동양철관 | J53: 12000000
A54: FALSE | E54: 1076 | F54: 2010-01-20 | G54: 부가세대지급금 | H54: 강관#1 외 | I54: 동양철관 | J54: 9700000 | X54: 분 개 전 표
A55: FALSE | E55: 1076 | F55: 2010-01-20 | G55: 외상매입금 | H55: 강관#1 외 | I55: 동양철관 | K55: 16700000
A56: FALSE | E56: 1076 | F56: 2010-01-20 | G56: 보통예금 | H56: 강관#1 외 224201-04-224210 | I56: 국민은행 | K56: 40000000 | X56: 일자 | Y56: =$W$33 -> 2010-04-12 | AA56: 부서명 | AB56: =$AC$33 -> 0
A57: FALSE | E57: 1076 | F57: 2010-01-20 | G57: 현금 | H57: 강관#1 외 | I57: 동양철관 | K57: 50000000 | AA57: 전표번호 | AB57: =$V$33 -> 1123
A58: FALSE | E58: 1077 | F58: 2010-01-20 | G58: 비품 | H58: PC 3대 dell 2312 | I58: 나라컴퓨터 | J58: 3600000 | M58: 3 | X58: 계정과목 | Y58: 적요 | Z58: 거래처 | AA58: 차변 | AB58: 대변
A59: FALSE | E59: 1077 | F59: 2010-01-20 | G59: 부가세대지급금 | H59: PC 3대 dell 2312 | I59: 나라컴퓨터 | J59: 360000 | X59: =X33 -> 접대비 | Y59: 거래처 접대 | Z59: 미인클럽 | AA59: 500000 | AB59: =AB33 -> 0
A60: FALSE | E60: 1077 | F60: 2010-01-20 | G60: 보통예금 | H60: PC 3대 dell 2312 | I60: 국민은행 | K60: 3960000 | X60: 미지급금 | Y60: 거래처 접대 | Z60: 신한카드 | AA60: 0 | AB60: =AB34 -> 500000
A61: FALSE | E61: 1078 | F61: 2010-01-20 | G61: 개발비 | H61: projectQ개발비지급 | I61: 하나테크놀러지 | J61: 11250000 | M61: 2 | X61: 0 | Y61: 0 | Z61: 0 | AA61: 0 | AB61: 0
A62: FALSE | E62: 1078 | F62: 2010-01-20 | G62: 보통예금 | H62: projectQ개발비지급 | I62: 국민은행 | K62: 11250000 | X62: =X36 -> 0 | Y62: 0 | Z62: 0 | AA62: 0 | AB62: 0
A63: FALSE | E63: 1080 | F63: 2010-01-21 | G63: 수입이자 | H63: 예금이자 | I63: 하나은행 | K63: 230000 | M63: 3 | X63: 0 | Y63: 0 | Z63: 0 | AA63: 0 | AB63: 0
A64: FALSE | E64: 1080 | F64: 2010-01-21 | G64: 선급법인세 | H64: 예금이자 원천세 | I64: 하나은행 | J64: 23000 | X64: 0 | Y64: 0 | Z64: 0 | AA64: 0 | AB64: 0
A65: FALSE | E65: 1080 | F65: 2010-01-21 | G65: 보통예금 | H65: 예금이자 입금 | I65: 하나은행 | J65: 207000 | X65: 0 | Y65: 0 | Z65: 0 | AA65: 0 | AB65: 0
A66: =C$1 -> FALSE | E66: 1081 | F66: 2010-01-22 | G66: 자본금 | H66: 자본증자 | I66: 우리철강 | K66: 500000000 | M66: 2 | X66: 0 | Y66: 0 | Z66: 0 | AA66: 0 | AB66: 0
A67: FALSE | E67: 1081 | F67: 2010-01-22 | G67: 보통예금 | H67: 자본증자금입금 | I67: 신한은행 | J67: 500000000 | Y67: 합 계 | AA67: =SUM(AA59:AA66) -> 500000 | AB67: =SUM(AB59:AB66) -> 500000
A68: FALSE | E68: 1082 | F68: 2010-01-22 | G68: 보험료 | H68: 화재보험 가입 | I68: 현대화재해성 | J68: 3000000 | M68: 2
A69: FALSE | E69: 1082 | F69: 2010-01-22 | G69: 현금 | H69: 화재보험 가입 | I69: 현대화재해성 | K69: 3000000 | V69: 계정과목
A70: FALSE | E70: 1083 | F70: 2010-01-22 | G70: 매출 | H70: H-Beam,50*50*10,1200000,30 | I70: 민주종합건재 | K70: 36000000 | M70: 5 | V70: 매출
A71: FALSE | E71: 1083 | F71: 2010-01-22 | G71: 부가세예수금 | H71: H-Beam | I71: 민주종합건재 | K71: 3600000 | V71: 매입 | AC71: =COUNT(AA73:AB87)/2 -> 2.5 | AD71: =IF(AC71=1,""," 외") -> 외
A72: FALSE | E72: 1083 | F72: 2010-01-22 | G72: 외상매출금 | H72: H-Beam | I72: 민주종합건재 | J72: 14650000 | V72: 전표번호 | W72: 일자 | X72: 계정과목 | Y72: 적요 | Z72: 거래처 | AA72: 차변 | AB72: 대변 | AC72: 부서
A73: FALSE | E73: 1083 | F73: 2010-01-22 | G73: 보통예금 | H73: H-Beam 411-910001-21098 | I73: 하나은행 | J73: 14950000 | V73: 1095 | W73: 2010-01-25 | X73: 매입 | Y73: 냉연강판#1 30mm*1*50 13000000 10 | Z73: ini제철 | AA73: 130000000
A74: FALSE | E74: 1083 | F74: 2010-01-22 | G74: 현금 | H74: H-Beam | I74: 민주종합건재 | J74: 10000000 | V74: 1095 | W74: 2010-01-25 | X74: 매입 | Y74: 냉연강판#2 20mm*0.8*50 8000000 10 | Z74: ini제철 | AA74: 80000000
A75: FALSE | E75: 1085 | F75: 2010-01-22 | G75: 매출 | H75: 2,12,2400,8000 | I75: 가람공무 | K75: 19200000 | M75: 4 | V75: 1095 | W75: 2010-01-25 | X75: 매입 | Y75: 아연도강판 0.5*4*5 300000 50 | Z75: ini제철 | AA75: 15000000
A76: FALSE | E76: 1085 | F76: 2010-01-22 | G76: 매출 | H76: 스테인레스관#1,100*10,70000,100 | I76: 가람공무 | K76: 7000000 | V76: 1095 | W76: 2010-01-25 | X76: 매입 | Y76: 아연도강판 0.5*4*5 300000 50 | Z76: ini제철 | AA76: 12500000
A77: FALSE | E77: 1085 | F77: 2010-01-22 | G77: 부가세예수금 | H77: 2 외 | I77: 가람공무 | K77: 2620000 | V77: 1095 | W77: 2010-01-25 | X77: 매입 | Y77: 아연도강판 0.5*4*5 300000 50 | Z77: ini제철 | AA77: 30000000
A78: FALSE | E78: 1085 | F78: 2010-01-22 | G78: 현금 | H78: 2 외 | I78: 가람공무 | J78: 28820000
A79: FALSE | E79: 1086 | F79: 2010-01-22 | G79: 수입이자 | H79: 이자수입 | I79: 신한은행 | K79: 20000000 | M79: 2
A80: FALSE | E80: 1086 | F80: 2010-01-22 | G80: 보통예금 | H80: 이자수입 | I80: 신한은행 | J80: 20000000
A81: FALSE | E81: 1087 | F81: 2010-01-23 | G81: 차량유지비 | H81: 7982수리비 | I81: 형제카센타 | J81: 194000 | M81: 2
A82: FALSE | E82: 1087 | F82: 2010-01-23 | G82: 보통예금 | H82: 7982수리비 | I82: 국민은행 | K82: 194000
A83: FALSE | E83: 1088 | F83: 2010-01-23 | G83: 물류비 | H83: 상품운송비 | I83: 연합화물 | J83: 420000 | M83: 2
A84: FALSE | E84: 1088 | F84: 2010-01-23 | G84: 현금 | H84: 상품운송비 | I84: 연합화물 | K84: 420000
A85: FALSE | E85: 1089 | F85: 2010-01-23 | G85: 광고선전비 | H85: 내일신문 광고료 | I85: 내일신문 | J85: 2300000 | M85: 4
A86: FALSE | E86: 1089 | F86: 2010-01-23 | G86: 임차료 | H86: 사무실임차료 | I86: 메리츠손해보험 | J86: 800000
A87: FALSE | E87: 1089 | F87: 2010-01-23 | G87: 기부금 | H87: 아이티돕기 성금 | I87: 내일신문 | J87: 1000000
A88: FALSE | E88: 1089 | F88: 2010-01-23 | G88: 현금 | H88: 내일신문 광고료 외 | I88: 내일신문 외 | K88: 4100000 | X88: =X73 -> 매입 | Y88: =CONCATENATE(Y73,AD71) -> 냉연강판#1 30mm*1*50 13000000 10 외 | Z88: =Z73 -> ini제철 | AA88: =SUM(AA73:AA87) -> 267500000 | AB88: =SUM(AB73:AB87) -> 0
A89: FALSE | E89: 1090 | F89: 2010-01-23 | G89: 구축물 | H89: 광고용 대형판넬 | I89: 홍성광고 | J89: 32000000 | M89: 2
A90: FALSE | E90: 1090 | F90: 2010-01-23 | G90: 보통예금 | H90: 광고용 대형판넬 | I90: 신한은행 | K90: 32000000
A91: FALSE | E91: 1091 | F91: 2010-01-23 | G91: 보통예금 | H91: 은행이체 | I91: 신한은행 | K91: 100000000 | M91: 2
A92: FALSE | E92: 1091 | F92: 2010-01-23 | G92: 보통예금 | H92: 은행이체 | I92: 국민은행 | J92: 100000000 | V92: 계정과목 | W92: 계정과목
A93: FALSE | E93: 1092 | F93: 2010-01-23 | G93: 건 물 | H93: 업무용건물 매입 | I93: 민관형 | J93: 231000000 | M93: 2 | V93: <>매입 | W93: <>매출
A94: FALSE | E94: 1092 | F94: 2010-01-23 | G94: 보통예금 | H94: 업무용건물 매입 | I94: 신한은행 | K94: 231000000 | V94: 전표번호 | W94: 일자 | X94: 계정과목 | Y94: 적요 | Z94: 거래처 | AA94: 차변 | AB94: 대변 | AC94: 부서
A95: FALSE | E95: 1093 | F95: 2010-01-25 | G95: 매입 | H95: 스테인레스관#1,100*10,50000,100 | I95: 동양철관 | J95: 5000000 | M95: 8 | V95: 1095 | W95: 2010-01-25 | X95: 부가세대지급금 | Y95: 냉연강판#1 외 | Z95: ini제철 | AA95: 28250000
A96: FALSE | E96: 1093 | F96: 2010-01-25 | G96: 매입 | H96: 스테인레스관#2,80*10,40000,200 | I96: 동양철관 | J96: 8000000 | V96: 1095 | W96: 2010-01-25 | X96: 외상매입금 | Y96: 냉연강판#1 외 | Z96: ini제철 | AB96: 160750000
A97: FALSE | E97: 1093 | F97: 2010-01-25 | G97: 매입 | H97: L형관#2,20*40*40,30000,100 | I97: 동양철관 | J97: 3000000 | V97: 1095 | W97: 2010-01-25 | X97: 보통예금 | Y97: 냉연강판#1 외 651-231065-09 | Z97: 신한은행 | AB97: 150000000
A98: FALSE | E98: 1093 | F98: 2010-01-25 | G98: 매입 | H98: 철근5,55,5000,1000 | I98: 동양철관 | J98: 5000000
A99: FALSE | E99: 1093 | F99: 2010-01-25 | G99: 부가세대지급금 | H99: 스테인레스관#1 외 | I99: 동양철관 | J99: 2100000
A100: FALSE | E100: 1093 | F100: 2010-01-25 | G100: 지급어음 | H100: 스테인레스관#1 외 | I100: 동양철관 | K100: 10000000
A101: FALSE | E101: 1093 | F101: 2010-01-25 | G101: 보통예금 | H101: 스테인레스관#1 외 224201-04-224210 | I101: 국민은행 | K101: 3100000
A102: FALSE | E102: 1093 | F102: 2010-01-25 | G102: 현금 | H102: 스테인레스관#1 외 | I102: 동양철관 | K102: 10000000
A103: =$C$1 -> FALSE | E103: 1094 | F103: 2010-01-25 | G103: 매입 | H103: 강관#2 25*10m 70000 500 | I103: 동양철관 | J103: 35000000 | M103: 3
A104: FALSE | E104: 1094 | F104: 2010-01-25 | G104: 부가세대지급금 | H104: 강관#2 | I104: 동양철관 | J104: 3500000
A105: FALSE | E105: 1094 | F105: 2010-01-25 | G105: 현금 | H105: 강관#2 | I105: 동양철관 | K105: 38500000
A106: FALSE | E106: 1095 | F106: 2010-01-25 | G106: 매입 | H106: 냉연강판#1 30mm*1*50 13000000 10 | I106: ini제철 | J106: 130000000 | M106: 9 | X106: 분 개 전 표
A107: FALSE | E107: 1095 | F107: 2010-01-25 | G107: 매입 | H107: 냉연강판#2 20mm*0.8*50 8000000 10 | I107: ini제철 | J107: 80000000
A108: FALSE | E108: 1095 | F108: 2010-01-25 | G108: 매입 | H108: 아연도강판 0.5*4*5 300000 50 | I108: ini제철 | J108: 15000000 | X108: 일자 | Y108: =$W$33 -> 2010-04-12 | AA108: 부서명 | AB108: =$AC$33 -> 0
A109: FALSE | E109: 1095 | F109: 2010-01-25 | G109: 매입 | H109: 아연도강판 0.5*4*5 300000 50 | I109: ini제철 | J109: 12500000 | AA109: 전표번호 | AB109: =$V$33 -> 1123
A110: FALSE | E110: 1095 | F110: 2010-01-25 | G110: 매입 | H110: 아연도강판 0.5*4*5 300000 50 | I110: ini제철 | J110: 30000000 | X110: 계정과목 | Y110: 적 요 | Z110: 거래처 | AA110: 차 변 | AB110: 대 변
A111: FALSE | E111: 1095 | F111: 2010-01-25 | G111: 매입 | H111: 아연도강판 0.5*4*5 300000 50 | I111: ini제철 | J111: 15000000 | X111: =X33 -> 접대비 | Y111: =Y33 -> 거래처 접대 | Z111: =Z33 -> 미인클럽 | AA111: =AA33 -> 500000 | AB111: =AB33 -> 0
A112: FALSE | E112: 1095 | F112: 2010-01-25 | G112: 부가세대지급금 | H112: 냉연강판#1 외 | I112: ini제철 | J112: 28250000 | X112: =X34 -> 미지급금 | Y112: 거래처 접대 | Z112: 신한카드 | AA112: 0 | AB112: 500000
A113: FALSE | E113: 1095 | F113: 2010-01-25 | G113: 외상매입금 | H113: 냉연강판#1 외 | I113: ini제철 | K113: 160750000 | X113: 0 | Y113: 0 | Z113: 0 | AA113: 0 | AB113: 0
A114: FALSE | E114: 1095 | F114: 2010-01-25 | G114: 보통예금 | H114: 냉연강판#1 외 651-231065-09 | I114: 신한은행 | K114: 150000000 | X114: 0 | Y114: 0 | Z114: 0 | AA114: 0 | AB114: 0
A115: FALSE | E115: 1096 | F115: 2010-01-25 | G115: 매출 | H115: 철근1 11 1200 3000 | I115: 을지강재산업 | K115: 3600000 | M115: 13 | X115: 0 | Y115: 0 | Z115: 0 | AA115: 0 | AB115: 0
A116: FALSE | E116: 1096 | F116: 2010-01-25 | G116: 매출 | H116: 강관#1 33*10M 120000 200 | I116: 을지강재산업 | K116: 24000000 | X116: 0 | Y116: 0 | Z116: 0 | AA116: 0 | AB116: 0
A117: FALSE | E117: 1096 | F117: 2010-01-25 | G117: 매출 | H117: 강관#2 25*10m 80000 500 | I117: 을지강재산업 | K117: 40000000 | X117: 0 | Y117: 0 | Z117: 0 | AA117: 0 | AB117: 0
A118: FALSE | E118: 1096 | F118: 2010-01-25 | G118: 매출 | H118: 냉연강판#1 30mm*1*50 15500000 5 | I118: 을지강재산업 | K118: 77500000 | X118: 0 | Y118: 0 | Z118: 0 | AA118: 0 | AB118: 0
A119: FALSE | E119: 1096 | F119: 2010-01-25 | G119: 매출 | H119: 스테인레스관#1 100*10 70000 100 | I119: 을지강재산업 | K119: 7000000 | X119: 0 | Y119: 0 | Z119: 0 | AA119: 0 | AB119: 0
A120: FALSE | E120: 1096 | F120: 2010-01-25 | G120: 매출 | H120: 아연도강판 0.5*4*5 350000 160 | I120: 을지강재산업 | K120: 56000000 | X120: 0 | Y120: 0 | Z120: 0 | AA120: 0 | AB120: 0
A121: FALSE | E121: 1096 | F121: 2010-01-25 | G121: 매출 | H121: 아연동강판 0.3*4*5 290000 30 | I121: 을지강재산업 | K121: 8700000 | X121: 0 | Y121: 0 | Z121: 0 | AA121: 0 | AB121: 0
A122: FALSE | E122: 1096 | F122: 2010-01-25 | G122: 매출 | H122: H-Beam 50*50*10 1200000 5 | I122: 을지강재산업 | K122: 6000000 | X122: 0 | Y122: 0 | Z122: 0 | AA122: 0 | AB122: 0
A123: FALSE | E123: 1096 | F123: 2010-01-25 | G123: 매출 | H123: I-Beam 30*40*10 650000 30 | I123: 을지강재산업 | K123: 19500000 | X123: 0 | Y123: 0 | Z123: 0 | AA123: 0 | AB123: 0
A124: FALSE | E124: 1096 | F124: 2010-01-25 | G124: 부가세예수금 | H124: 철근1 외 | I124: 을지강재산업 | K124: 24230000 | X124: 0 | Y124: 0 | Z124: 0 | AA124: 0 | AB124: 0
A125: FALSE | E125: 1096 | F125: 2010-01-25 | G125: 외상매출금 | H125: 철근1 외 | I125: 을지강재산업 | J125: 150000000 | X125: 0 | Y125: 0 | Z125: 0 | AA125: 0 | AB125: 0
A126: FALSE | E126: 1096 | F126: 2010-01-25 | G126: 보통예금 | H126: 철근1 외 411-910001-21098 | I126: 하나은행 | J126: 66530000 | X126: 0 | Y126: 0 | Z126: 0 | AA126: 0 | AB126: 0
A127: FALSE | E127: 1096 | F127: 2010-01-25 | G127: 현금 | H127: 철근1 외 | I127: 을지강재산업 | J127: 50000000 | X127: 0 | Y127: 0 | Z127: 0 | AA127: 0 | AB127: 0
A128: FALSE | E128: 1097 | F128: 2010-01-25 | G128: 보통예금 | H128: 외상대금 입금 | I128: 국민은행 | J128: 30000000 | M128: 4 | X128: 0 | Y128: 0 | Z128: 0 | AA128: 0 | AB128: 0
A129: FALSE | E129: 1097 | F129: 2010-01-25 | G129: 보통예금 | H129: 외상대금 입금 | I129: 신한은행 | J129: 40000000 | X129: 0 | Y129: 0 | Z129: 0 | AA129: 0 | AB129: 0
A130: FALSE | E130: 1097 | F130: 2010-01-25 | G130: 보통예금 | H130: 외상대금 입금 | I130: 하나은행 | J130: 20000000 | X130: 0 | Y130: 0 | Z130: 0 | AA130: 0 | AB130: 0
A131: =$C$1 -> FALSE | E131: 1097 | F131: 2010-01-25 | G131: 외상매출금 | H131: 외상대금 입금 | I131: 을지강재산업 | K131: 90000000 | X131: 0 | Y131: 0 | Z131: 0 | AA131: 0 | AB131: 0
A132: FALSE | E132: 1098 | F132: 2010-01-25 | G132: 가수금 | H132: 가수금 과오입금지급 | I132: 김희선 | J132: 10000 | M132: 2 | X132: 합 계 | AA132: =SUM(AA111:AA131) -> 500000 | AB132: =SUM(AB111:AB131) -> 500000
A133: FALSE | E133: 1098 | F133: 2010-01-25 | G133: 현금 | H133: 가수금 과오입금지급 | I133: 김희선 | K133: 10000
A134: FALSE | E134: 1099 | F134: 2010-01-25 | G134: 여비교통비 | H134: 시내 출장여비 | I134: 임창식 | J134: 120000 | M134: 2
A135: FALSE | E135: 1099 | F135: 2010-01-25 | G135: 현금 | H135: 시내 출장여비 | I135: 임창식 | K135: 120000
A136: FALSE | E136: 1100 | F136: 2010-01-25 | G136: 복리후생비 | H136: 직원 설날보너스 | I136: 직원 | J136: 7400000 | M136: 2 | X136: 거래취소
A137: FALSE | E137: 1100 | F137: 2010-01-25 | G137: 현금 | H137: 직원 설날보너스 | I137: 직원 | K137: 7400000
A138: FALSE | E138: 1101 | F138: 2010-01-25 | G138: 외상매출금 | H138: 외상대금입금 | I138: 을지강재산업 | K138: 17000000 | M138: 3
A139: FALSE | E139: 1101 | F139: 2010-01-25 | G139: 외상매출금 | H139: 외상대금입금 | I139: 민주종합건재 | K139: 14000000 | X139: 4
A140: FALSE | E140: 1101 | F140: 2010-01-25 | G140: 현금 | H140: 외상대금입금 외 | I140: 을지강재산업 | J140: 31000000 | X140: 계정과목 | Y140: 적 요 | Z140: 거래처 | AA140: 차 변 | AB140: 대 변
A141: FALSE | E141: 1102 | F141: 2010-01-26 | G141: 임차보증금 | H141: 건물임대차보증금 | I141: 내외빌딩관리 | J141: 100000000 | M141: 2
A142: FALSE | E142: 1102 | F142: 2010-01-26 | G142: 보통예금 | H142: 건물임대차보증금 | I142: 국민은행 | K142: 100000000
A143: FALSE | E143: 1103 | F143: 2010-01-28 | G143: 외상매입금 | H143: 외상대금 지급 | I143: ini제철 | J143: 30000000 | M143: 3
A144: FALSE | E144: 1103 | F144: 2010-01-28 | G144: 보통예금 | H144: 외상대금 지급 | I144: 하나은행 | K144: 20000000
A145: FALSE | E145: 1103 | F145: 2010-01-28 | G145: 현금 | H145: 외상대금 지급 | I145: ini제철 | K145: 10000000
A146: FALSE | E146: 1104 | F146: 2010-01-28 | G146: 외상매출금 | H146: 외상대금 입금 | I146: 민주종합건재 | K146: 10000000 | M146: 3
A147: FALSE | E147: 1104 | F147: 2010-01-28 | G147: 보통예금 | H147: 외상대금 입금 | I147: 국민은행 | J147: 6000000
A148: FALSE | E148: 1104 | F148: 2010-01-28 | G148: 현금 | H148: 외상대금 입금 | I148: 민주종합건재 | J148: 4000000
A149: FALSE | E149: 1105 | F149: 2010-01-28 | G149: 장기예금 | H149: 2년만기 적금 | I149: 기업은행 | J149: 4000000 | M149: 2
A150: FALSE | E150: 1105 | F150: 2010-01-28 | G150: 보통예금 | H150: 2년만기 적금 | I150: 하나은행 | K150: 4000000
A151: FALSE | E151: 1106 | F151: 2010-01-28 | G151: 매출 | H151: 강관#1 33*10M 120000 100 | I151: 가람공무 | K151: 12000000 | M151: 10
A152: FALSE | E152: 1106 | F152: 2010-01-28 | G152: 매출 | H152: 강관#2 25*10m 80000 200 | I152: 가람공무 | K152: 16000000
A153: FALSE | E153: 1106 | F153: 2010-01-28 | G153: 매출 | H153: 냉연강판#1 30mm*1*50 15500000 2 | I153: 가람공무 | K153: 31000000
A154: FALSE | E154: 1106 | F154: 2010-01-28 | G154: 매출 | H154: 냉연강판#2 20mm*0.8*50 11500000 5 | I154: 가람공무 | K154: 57500000
A155: FALSE | E155: 1106 | F155: 2010-01-28 | G155: 매출 | H155: 스테인레스관#1 100*10 70000 30 | I155: 가람공무 | K155: 2100000
A156: FALSE | E156: 1106 | F156: 2010-01-28 | G156: 부가세예수금 | H156: 강관#1 외 | I156: 가람공무 | K156: 11860000
A157: FALSE | E157: 1106 | F157: 2010-01-28 | G157: 외상매출금 | H157: 강관#1 외 | I157: 가람공무 | J157: 20460000
A158: FALSE | E158: 1106 | F158: 2010-01-28 | G158: 받을어음 | H158: 강관#1 외 | I158: 가람공무 | J158: 30000000
A159: FALSE | E159: 1106 | F159: 2010-01-28 | G159: 보통예금 | H159: 강관#1 외 1400-234012-01-001 | I159: 기업은행 | J159: 50000000
A160: FALSE | E160: 1106 | F160: 2010-01-28 | G160: 현금 | H160: 강관#1 외 | I160: 가람공무 | J160: 30000000
A161: FALSE | E161: 1107 | F161: 2010-01-28 | G161: 매출 | H161: 철근1 11 1200 1000 | I161: 용산건설 | K161: 1200000 | M161: 9
A162: FALSE | E162: 1107 | F162: 2010-01-28 | G162: 매출 | H162: 철근2 12 2400 1500 | I162: 용산건설 | K162: 3600000
A163: FALSE | E163: 1107 | F163: 2010-01-28 | G163: 매출 | H163: 철근3 33 4000 500 | I163: 용산건설 | K163: 2000000
A164: FALSE | E164: 1107 | F164: 2010-01-28 | G164: 매출 | H164: 철근5 55 6000 1300 | I164: 용산건설 | K164: 7800000
A165: FALSE | E165: 1107 | F165: 2010-01-28 | G165: 부가세예수금 | H165: 철근1 외 | I165: 용산건설 | K165: 1460000
A166: FALSE | E166: 1107 | F166: 2010-01-28 | G166: 외상매출금 | H166: 철근1 외 | I166: 용산건설 | J166: 2560000
A167: FALSE | E167: 1107 | F167: 2010-01-28 | G167: 받을어음 | H167: 철근1 외 | I167: 용산건설 | J167: 5500000
A168: FALSE | E168: 1107 | F168: 2010-01-28 | G168: 보통예금 | H168: 철근1 외 1400-234012-01-001 | I168: 기업은행 | J168: 3000000
A169: FALSE | E169: 1107 | F169: 2010-01-28 | G169: 현금 | H169: 철근1 외 | I169: 용산건설 | J169: 5000000
A170: FALSE | E170: 1108 | F170: 2010-01-28 | G170: 보증금 | H170: 거래보증금 | I170: ini제철 | J170: 40000000 | M170: 2
A171: FALSE | E171: 1108 | F171: 2010-01-28 | G171: 보통예금 | H171: 거래보증금 | I171: 하나은행 | K171: 40000000
A172: FALSE | E172: 1109 | F172: 2010-01-28 | G172: 보통예금 | H172: 선수금 입금 | I172: 국민은행 | J172: 30000000 | M172: 2
A173: FALSE | E173: 1109 | F173: 2010-01-28 | G173: 선수금 | H173: 선수금 입금 | I173: 회기철재 | K173: 30000000
A174: FALSE | E174: 1110 | F174: 2010-01-28 | G174: 복리후생비 | H174: 직원식사교통비 | I174: 직원 | J174: 14300000 | M174: 2
A175: FALSE | E175: 1110 | F175: 2010-01-28 | G175: 보통예금 | H175: 직원식사교통비 | I175: 신한은행 | K175: 14300000
A176: FALSE | E176: 1111 | F176: 2010-01-28 | G176: 선급금 | H176: 상품대금 선지급 | I176: 동양철관 | J176: 50000000 | M176: 2
A177: FALSE | E177: 1111 | F177: 2010-01-28 | G177: 보통예금 | H177: 상품대금 선지급 | I177: 국민은행 | K177: 50000000
A178: FALSE | E178: 1112 | F178: 2010-01-28 | G178: 여비교통비 | H178: 시외 출장여비 | I178: 임창식 | J178: 150000 | M178: 2
A179: FALSE | E179: 1112 | F179: 2010-01-28 | G179: 현금 | H179: 시외 출장여비 | I179: 임창식 | K179: 150000
A180: FALSE | E180: 1113 | F180: 2010-01-28 | G180: 광고선전비 | H180: 광고료 지급 | I180: 내일신문 | J180: 534000 | M180: 2
A181: FALSE | E181: 1113 | F181: 2010-01-28 | G181: 현금 | H181: 광고료 지급 | I181: 내일신문 | K181: 534000
A182: FALSE | E182: 1114 | F182: 2010-01-28 | G182: 외상매출금 | H182: 외상대금 회수 | I182: 용산건설 | K182: 1000000 | M182: 2
A183: FALSE | E183: 1114 | F183: 2010-01-28 | G183: 현금 | H183: 외상대금 회수 | I183: 용산건설 | J183: 1000000
A184: FALSE | E184: 1115 | F184: 2010-01-28 | G184: 보통예금 | H184: 예금인출 | I184: 하나은행 | K184: 500000 | M184: 2
A185: FALSE | E185: 1115 | F185: 2010-01-28 | G185: 현금 | H185: 예금인출 | I185: 하나은행 | J185: 500000
A186: FALSE | E186: 1116 | F186: 2010-01-28 | G186: 물류비 | H186: 상품 매출운송비 | I186: 연합화물 | J186: 540000 | M186: 2
A187: FALSE | E187: 1116 | F187: 2010-01-28 | G187: 현금 | H187: 상품 매출운송비 | I187: 연합화물 | K187: 540000
A188: FALSE | E188: 1117 | F188: 2010-01-28 | G188: 보통예금 | H188: 임대보증금 입금 | I188: 기업은행 | J188: 30000000 | M188: 2
A189: FALSE | E189: 1117 | F189: 2010-01-28 | G189: 임대보증금 | H189: 임대보증금 입금 | I189: 신성상회 | K189: 30000000
A190: FALSE | E190: 1118 | F190: 2010-01-28 | G190: 임대료 | H190: 1월분 임대료 | I190: 신성상회 | K190: 700000 | M190: 2
A191: FALSE | E191: 1118 | F191: 2010-01-28 | G191: 현금 | H191: 1월분 임대료 | I191: 신성상회 | J191: 700000
A192: FALSE | E192: 1119 | F192: 2010-01-29 | G192: 기계장치 | H192: 주차설비 제작 | I192: 한일설비제작 | J192: 43740000 | M192: 3
A193: FALSE | E193: 1119 | F193: 2010-01-29 | G193: 보통예금 | H193: 주차설비 제작 | I193: 신한은행 | K193: 25000000
A194: FALSE | E194: 1119 | F194: 2010-01-29 | G194: 미지급금 | H194: 주차설비 제작 대금일부 | I194: 한일설비제작 | K194: 18740000
A195: =$C$1 -> FALSE | H195: 합 계 | J195: =SUM(J$8:J194) -> 2534964000 | K195: =SUM(K$8:K194) -> 2534964000
A196: FALSE
A197: FALSE
A198: FALSE
A199: FALSE
A200: FALSE
... 167 more rows

Sheet 현금출납
E3: 현 금 출 납 장
B4: 2010-01-15 | C4: 부터
B5: 2010-01-18 | C5: 까지
B6: 일자 | C6: 전표번호 | D6: 적요 | E6: 거래처 | F6: 차변 | G6: 대변 | H6: 잔액
B7: 2010-01-15 | C7: 1064 | D7: 7982유류대 | E7: 세창주유소 | G7: 50000 | H7: 94425540
B8: 2010-01-15 | C8: 1065 | D8: 직원 야근식대 | E8: 영종식당 | G8: 230000 | H8: 94195540
B9: 2010-01-15 | C9: 1066 | D9: 시외 출장여비 | E9: 임창식 | G9: 60000 | H9: 94135540
B10: 2010-01-15 | C10: 1067 | D10: 외상대금 지급 | E10: ini제철 | G10: 20000000 | H10: 74135540
B11: 2010-01-15 | C11: 1069 | D11: 1 외 | E11: 가람공무 | F11: 10000000 | H11: 84135540
B12: 2010-01-15 | C12: 1070 | D12: H-Beam 외 | E12: 민주종합건재 | F12: 10000000 | H12: 94135540
B13: 2010-01-15 | C13: 1071 | D13: 1 | E13: 13 | F13: 550000 | H13: 94685540
B14: 2010-01-15 | C14: 1073 | D14: 외상대금 지급 | E14: ini제철 | G14: 30000000 | H14: 64685540
B15: 2010-01-15 | C15: 1074 | D15: 시내 출장여비 | E15: 임창식 | G15: 120000 | H15: 64565540
B16: 2010-01-15 | C16: 1075 | D16: 1 외 | E16: 12 | F16: 7000000 | H16: 71565540
D17: 월 계 | F17: 157129540 | G17: 85564000
D18: 누 계 | F18: 157129540 | G18: 85564000

Sheet 계정별
W1: 2010-01-20 | X1: 2010-02-01 | Y1: 일자 | Z1: 일자 | AA1: 계정과목 | AD1: =COUNT(F65:F10306)+COUNT(G65:G10282)+7 -> 7 | AE1: =COUNT(F8:G268) -> 13 | AF1: =SUM(IF((메뉴!$CB3:$CB9999<$W$1)*(메뉴!$CC$3:$CC$9999=$AA$2),메뉴!$CF$3:$CF$9999)) -> 199364000 | AG1: =SUM(IF((메뉴!$CB3:$CB9999<$W$1)*(메뉴!$CC$3:$CC$9999=$AA$2),메뉴!$CG$3:$CG$9999)) -> 25500000 | AH1: =IF(SUM($F$8:$F$1091)>SUM($G$8:$G$1091),"차","대") -> 차 | AI1: =AF1-AG1 -> 173864000
Y2: =CONCATENATE(">=",W1) -> >=40198 | Z2: =CONCATENATE("<=",X1) -> <=40210 | AA2: 외상매출금
E3: 계 정 별 원 장
AL4: 월 계 | AN4: =SUM(IF((메뉴!$CB$3:$CB$9999<=$B3)*(메뉴!$CB$3:$CB$9999>=DATE(YEAR($B3),MONTH($B3),1))*(메뉴!$CC$3:$CC$9999=$AA$2),메뉴!$CF$3:$CF$9999)) -> 0 | AO4: =SUM(IF((메뉴!$CB$3:$CB$9999<=$B3)*(메뉴!$CB$3:$CB$9999>=DATE(YEAR($B3),MONTH($B3),1))*(메뉴!$CC$3:$CC$9999=$AA$2),메뉴!$CG$3:$CG$9999)) -> 0
C5: 시작일 | D5: =W1 -> 2010-01-20 | E5: 계정과목 | F5: =" : "&AA2 -> : 외상매출금 | AL5: 누 계 | AN5: =SUM(IF((메뉴!$CB$3:$CB$9999<=$B3)*(메뉴!$CC$3:$CC$9999=$AA$2),메뉴!$CF$3:$CF$9999)) -> 0 | AO5: =SUM(IF((메뉴!$CB$3:$CB$9999<=$B3)*(메뉴!$CC$3:$CC$9999=$AA$2),메뉴!$CG$3:$CG$9999)) -> 0
C6: 기준일 | D6: =X1 -> 2010-02-01
B7: 일자 | C7: 전표번호 | D7: 적요 | E7: 거래처 | F7: 차변 | G7: 대변 | H7: 차/대 | I7: 잔액
B8: 2010-01-22 | C8: 1083 | D8: H-Beam | E8: 민주종합건재 | F8: 14650000 | H8: 차 | I8: 188514000 | AH8: =IF($AF$1>$AG$1,"차","대") -> 차 | AI8: =ABS($AI$1+SUM($F$8:$F8)-SUM($G$8:$G8)) -> 188514000
B9: 2010-01-25 | C9: 1096 | D9: 철근1 외 | E9: 을지강재산업 | F9: 150000000 | H9: 차 | I9: 338514000
B10: 2010-01-25 | C10: 1097 | D10: 외상대금 입금 | E10: 을지강재산업 | G10: 90000000 | H10: 차 | I10: 248514000
B11: 2010-01-25 | C11: 1101 | D11: 외상대금입금 | E11: 을지강재산업 | G11: 17000000 | H11: 차 | I11: 231514000
B12: 2010-01-25 | C12: 1101 | D12: 외상대금입금 | E12: 민주종합건재 | G12: 14000000 | H12: 차 | I12: 217514000
B13: 2010-01-28 | C13: 1104 | D13: 외상대금 입금 | E13: 민주종합건재 | G13: 10000000 | H13: 차 | I13: 207514000
B14: 2010-01-28 | C14: 1106 | D14: 강관#1 외 | E14: 가람공무 | F14: 20460000 | H14: 차 | I14: 227974000
B15: 2010-01-28 | C15: 1107 | D15: 철근1 외 | E15: 용산건설 | F15: 2560000 | H15: 차 | I15: 230534000
B16: 2010-01-28 | C16: 1114 | D16: 외상대금 회수 | E16: 용산건설 | G16: 1000000 | H16: 차 | I16: 229534000
D17: 월 계 | F17: 387034000 | G17: 157500000
D18: 누 계 | F18: 387034000 | G18: 157500000

Sheet 매출
A1: 발행 | B1: 전표번호 | C1: FALSE | T1: 2010-01-15 | U1: 2010-01-31 | W1: 일자 | X1: 일자 | Y1: =T1 -> 2010-01-15 | Z1: 부터 | AA1: =U1 -> 2010-01-31 | AB1: 까지 | AJ1: =COUNT(AJ8:AJ380) -> 373 | AW1: =메뉴!GD4 -> 우리철강 | AX1: =메뉴!GE4 -> 김성경 | AY1: =메뉴!GF4 -> 111-11-11111 | AZ1: =메뉴!GH4 -> 도소매 | BA1: =메뉴!GI4 -> 철강제품 | BB1: =메뉴!GK4 -> 서울 영등포구 문래동3가 36
A2: =C$1 -> FALSE | M2: 건수 | N2: 9 | O2: 건 | W2: =">="&$T$1 -> >=40193 | X2: ="<="&$U$1 -> <=40209
A3: FALSE | I3: 매 출 장 | M3: 매출금액 | N3: 506180000
A4: FALSE | M4: 부가세 | N4: 49126000 | V4: 건수 | W4: =P5 -> 9 | X4: 건
A5: FALSE | E5: =COUNT(E7:E1000) -> 67 | H5: =T1 -> 2010-01-15 | I5: 부터 | J5: =U1 -> 2010-01-31 | K5: 까지 | P5: =COUNT(P7:P400) -> 9 | V5: 매출금액 | W5: =SUMIF(G$7:G$500,"매출",N$7:N$500) -> 506180000 | AJ5: 행 | AK5: 계정과목 | AL5: 일자 | AM5: 일자
A6: FALSE | D6: 전체 | E6: 전표번호 | F6: 일자 | G6: 계정과목 | H6: 거래처 | I6: 품명 | J6: 규격 | K6: 단가 | L6: 수량 | M6: 차변 | N6: 대변 | O6: 부서 | P6: 행 | V6: 부가세 | W6: =SUMIF(G$7:G$500,"부가세예수금",N$7:N$500) -> 49126000 | AD6: =COUNT(AJ7:AJ483) -> 409 | AJ6: >0 | AK6: 매출 | AL6: =">="&$T$1 -> >=40193 | AM6: ="<="&$U$1 -> <=40209 | AW6: =MAX(AW10:AW30) -> 00:00:00 | AX6: <=최근일
A7: FALSE | E7: 1069 | F7: 2010-01-15 | G7: 매출 | H7: 가람공무 | I7: 철근1 | J7: 11 | K7: 1200 | L7: 500 | N7: 600000 | P7: 11 | T7: =COUNT(B7:B10074) -> 0 | AJ7: 전표번호 | AW7: 전표번호
A8: FALSE | E8: 1069 | F8: 2010-01-15 | G8: 매출 | H8: 가람공무 | I8: 철근2 | J8: 12 | K8: 2400 | L8: 1500 | N8: 3600000 | AJ8: 1069 | AW8: 1096 | AY8: =COUNTIF(AU10:AU27,"=매출") -> 9 | BA8: =SUM(BA10:BA29) -> 266530000 | BB8: =SUM(BB10:BB29) -> 266530000
A9: FALSE | E9: 1069 | F9: 2010-01-15 | G9: 매출 | H9: 가람공무 | I9: 철근3 | J9: 33 | K9: 4000 | L9: 500 | N9: 2000000 | V9: 합계 | X9: =$P$5 -> 9 | Y9: 건 | AC9: =SUM(M7:M1000) -> 1110612000 | AD9: =SUM(N7:N1000) -> 1110612000 | AJ9: 1070 | AS9: 전표번호 | AT9: 일자 | AU9: 계정과목 | AV9: 거래처 | AW9: 품명 | AX9: 규격 | AY9: 단가 | AZ9: 수량 | BA9: 차변 | BB9: 대변 | BC9: 부서 | BD9: 행
A10: FALSE | E10: 1069 | F10: 2010-01-15 | G10: 매출 | H10: 가람공무 | I10: 철근4 | J10: 44 | K10: 5000 | L10: 1000 | N10: 5000000 | AJ10: 1071 | AS10: 1096 | AT10: 2010-01-25 | AU10: 매출 | AV10: 을지강재산업 | AW10: 철근1 | AX10: 11 | AY10: 1200 | AZ10: 3000 | BB10: 3600000 | BD10: 13
A11: FALSE | E11: 1069 | F11: 2010-01-15 | G11: 매출 | H11: 가람공무 | I11: 철근5 | J11: 55 | K11: 6666 | L11: 1500 | N11: 9000000 | AJ11: 1075 | AS11: 1096 | AT11: 2010-01-25 | AU11: 매출 | AV11: 을지강재산업 | AW11: 강관#1 | AX11: 33*10M | AY11: 120000 | AZ11: 200 | BB11: 24000000
A12: FALSE | E12: 1069 | F12: 2010-01-15 | G12: 매출 | H12: 가람공무 | I12: 강관#1 | J12: 33*10M | K12: 120000 | L12: 10 | N12: 1200000 | U12: 발행 | V12: 전표번호 | W12: 전표번호 | AJ12: 1083 | AS12: 1096 | AT12: 2010-01-25 | AU12: 매출 | AV12: 을지강재산업 | AW12: 강관#2 | AX12: 25*10m | AY12: 80000 | AZ12: 500 | BB12: 40000000
A13: FALSE | E13: 1069 | F13: 2010-01-15 | G13: 매출 | H13: 가람공무 | I13: 철근5 | J13: 55 | K13: 8000 | L13: 20 | N13: 160000 | U13: TRUE | AJ13: 1085 | AS13: 1096 | AT13: 2010-01-25 | AU13: 매출 | AV13: 을지강재산업 | AW13: 냉연강판#1 | AX13: 30mm*1*50 | AY13: 15500000 | AZ13: 5 | BB13: 77500000
A14: FALSE | E14: 1069 | F14: 2010-01-15 | G14: 부가세예수금 | H14: 가람공무 | N14: 2156000 | V14: 전표번호 | W14: =COUNT(V15:V65) -> 0 | AJ14: 1096 | AS14: 1096 | AT14: 2010-01-25 | AU14: 매출 | AV14: 을지강재산업 | AW14: 스테인레스관#1 | AX14: 100*10 | AY14: 70000 | AZ14: 100 | BB14: 7000000
A15: FALSE | E15: 1069 | F15: 2010-01-15 | G15: 외상매출금 | H15: 가람공무 | M15: 10000000 | W15: 4 | AJ15: 1106 | AS15: 1096 | AT15: 2010-01-25 | AU15: 매출 | AV15: 을지강재산업 | AW15: 아연도강판 | AX15: 0.5*4*5 | AY15: 350000 | AZ15: 160 | BB15: 56000000
A16: FALSE | E16: 1069 | F16: 2010-01-15 | G16: 보통예금 | H16: 신한은행 | M16: 3716000 | W16: =W15-W14 -> 4 | AJ16: 1107 | AS16: 1096 | AT16: 2010-01-25 | AU16: 매출 | AV16: 을지강재산업 | AW16: 아연동강판 | AX16: 0.3*4*5 | AY16: 290000 | AZ16: 30 | BB16: 8700000
A17: FALSE | E17: 1069 | F17: 2010-01-15 | G17: 현금 | H17: 가람공무 | M17: 10000000 | AJ17: 10000 | AS17: 1096 | AT17: 2010-01-25 | AU17: 매출 | AV17: 을지강재산업 | AW17: H-Beam | AX17: 50*50*10 | AY17: 1200000 | AZ17: 5 | BB17: 6000000
A18: FALSE | E18: 1070 | F18: 2010-01-15 | G18: 매출 | H18: 민주종합건재 | I18: H-Beam | J18: 50*50*10 | K18: 1200000 | L18: 10 | N18: 12000000 | P18: 5 | AJ18: 10000 | AS18: 1096 | AT18: 2010-01-25 | AU18: 매출 | AV18: 을지강재산업 | AW18: I-Beam | AX18: 30*40*10 | AY18: 650000 | AZ18: 30 | BB18: 19500000
A19: FALSE | E19: 1070 | F19: 2010-01-15 | G19: 매출 | H19: 민주종합건재 | I19: I-Beam | J19: 30*40*10 | K19: 650000 | L19: 30 | N19: 19500000 | AJ19: 10000 | AS19: 1096 | AT19: 2010-01-25 | AU19: 부가세예수금 | AV19: 을지강재산업 | BB19: 24230000
A20: FALSE | E20: 1070 | F20: 2010-01-15 | G20: 부가세예수금 | H20: 민주종합건재 | N20: 3150000 | AJ20: 10000 | AS20: 1096 | AT20: 2010-01-25 | AU20: 외상매출금 | AV20: 을지강재산업 | BA20: 150000000
A21: FALSE | E21: 1070 | F21: 2010-01-15 | G21: 외상매출금 | H21: 민주종합건재 | M21: 24650000 | AJ21: 10000 | AS21: 1096 | AT21: 2010-01-25 | AU21: 보통예금 | AV21: 하나은행 | BA21: 66530000
A22: FALSE | E22: 1070 | F22: 2010-01-15 | G22: 현금 | H22: 민주종합건재 | M22: 10000000 | AJ22: 10000 | AS22: 1096 | AT22: 2010-01-25 | AU22: 현금 | AV22: 을지강재산업 | BA22: 50000000
A23: FALSE | E23: 1071 | F23: 2010-01-15 | G23: 매출 | H23: 13 | I23: 철근1 | J23: 11 | K23: 1250 | L23: 400 | N23: 500000 | P23: 3 | AJ23: 10000
A24: FALSE | E24: 1071 | F24: 2010-01-15 | G24: 부가세예수금 | H24: 13 | N24: 50000 | AJ24: 10000
A25: FALSE | E25: 1071 | F25: 2010-01-15 | G25: 현금 | H25: 13 | M25: 550000 | AJ25: 10000
A26: FALSE | E26: 1075 | F26: 2010-01-15 | G26: 매출 | H26: 12 | I26: 철근1 | J26: 11 | K26: 1200 | L26: 400 | N26: 480000 | P26: 7 | AJ26: 10000
A27: FALSE | E27: 1075 | F27: 2010-01-15 | G27: 매출 | H27: 12 | I27: 철근2 | J27: 12 | K27: 2400 | L27: 600 | N27: 1440000 | AJ27: 10000
A28: FALSE | E28: 1075 | F28: 2010-01-15 | G28: 매출 | H28: 12 | I28: 철근3 | J28: 33 | K28: 4000 | L28: 500 | N28: 2000000 | AJ28: 10000
A29: FALSE | E29: 1075 | F29: 2010-01-15 | G29: 매출 | H29: 12 | I29: 철근4 | J29: 44 | K29: 5000 | L29: 1000 | N29: 5000000 | AJ29: 10000
A30: FALSE | E30: 1075 | F30: 2010-01-15 | G30: 매출 | H30: 12 | I30: 강관#1 | J30: 33*10M | K30: 120000 | L30: 50 | N30: 6000000 | AJ30: 10000 | BB30: =SUM(BB31:BB45) -> 242300000
A31: FALSE | E31: 1075 | F31: 2010-01-15 | G31: 외상매출금 | H31: 12 | M31: 7920000 | AJ31: 10000 | AW31: 철근1 | AX31: 11 | AY31: 1200 | AZ31: 3000 | BB31: 3600000
A32: FALSE | E32: 1075 | F32: 2010-01-15 | G32: 현금 | H32: 12 | M32: 7000000 | AJ32: 10000 | AW32: 강관#1 | AX32: 33*10M | AY32: 120000 | AZ32: 200 | BB32: 24000000
A33: FALSE | E33: 1083 | F33: 2010-01-22 | G33: 매출 | H33: 민주종합건재 | I33: H-Beam | J33: 50*50*10 | K33: 1200000 | L33: 30 | N33: 36000000 | P33: 5 | AJ33: 10000 | AW33: 강관#2 | AX33: 25*10m | AY33: 80000 | AZ33: 500 | BB33: 40000000
A34: =C$1 -> FALSE | E34: 1083 | F34: 2010-01-22 | G34: 부가세예수금 | H34: 민주종합건재 | N34: 3600000 | AJ34: 10000 | AW34: 냉연강판#1 | AX34: 30mm*1*50 | AY34: 15500000 | AZ34: 5 | BB34: 77500000
A35: FALSE | E35: 1083 | F35: 2010-01-22 | G35: 외상매출금 | H35: 민주종합건재 | M35: 14650000 | AJ35: 10000 | AW35: 스테인레스관#1 | AX35: 100*10 | AY35: 70000 | AZ35: 100 | BB35: 7000000
A36: FALSE | E36: 1083 | F36: 2010-01-22 | G36: 보통예금 | H36: 하나은행 | M36: 14950000 | AJ36: 10000 | AW36: 아연도강판 | AX36: 0.5*4*5 | AY36: 350000 | AZ36: 160 | BB36: 56000000
A37: FALSE | E37: 1083 | F37: 2010-01-22 | G37: 현금 | H37: 민주종합건재 | M37: 10000000 | AJ37: 10000 | AW37: 아연동강판 | AX37: 0.3*4*5 | AY37: 290000 | AZ37: 30 | BB37: 8700000
A38: FALSE | E38: 1085 | F38: 2010-01-22 | G38: 매출 | H38: 가람공무 | I38: 철근2 | J38: 12 | K38: 2400 | L38: 8000 | N38: 19200000 | P38: 4 | AJ38: 10000 | AW38: H-Beam | AX38: 50*50*10 | AY38: 1200000 | AZ38: 5 | BB38: 6000000
A39: FALSE | E39: 1085 | F39: 2010-01-22 | G39: 매출 | H39: 가람공무 | I39: 스테인레스관#1 | J39: 100*10 | K39: 70000 | L39: 100 | N39: 7000000 | AJ39: 10000 | AW39: I-Beam | AX39: 30*40*10 | AY39: 650000 | AZ39: 30 | BB39: 19500000
A40: FALSE | E40: 1085 | F40: 2010-01-22 | G40: 부가세예수금 | H40: 가람공무 | N40: 2620000 | AJ40: 10000
A41: FALSE | E41: 1085 | F41: 2010-01-22 | G41: 현금 | H41: 가람공무 | M41: 28820000 | AJ41: 10000
A42: FALSE | E42: 1096 | F42: 2010-01-25 | G42: 매출 | H42: 을지강재산업 | I42: 철근1 | J42: 11 | K42: 1200 | L42: 3000 | N42: 3600000 | P42: 13 | AJ42: 10000
A43: FALSE | E43: 1096 | F43: 2010-01-25 | G43: 매출 | H43: 을지강재산업 | I43: 강관#1 | J43: 33*10M | K43: 120000 | L43: 200 | N43: 24000000 | AJ43: 10000
A44: FALSE | E44: 1096 | F44: 2010-01-25 | G44: 매출 | H44: 을지강재산업 | I44: 강관#2 | J44: 25*10m | K44: 80000 | L44: 500 | N44: 40000000 | AJ44: 10000
A45: FALSE | E45: 1096 | F45: 2010-01-25 | G45: 매출 | H45: 을지강재산업 | I45: 냉연강판#1 | J45: 30mm*1*50 | K45: 15500000 | L45: 5 | N45: 77500000 | AJ45: 10000
A46: FALSE | E46: 1096 | F46: 2010-01-25 | G46: 매출 | H46: 을지강재산업 | I46: 스테인레스관#1 | J46: 100*10 | K46: 70000 | L46: 100 | N46: 7000000 | AJ46: 10000
A47: FALSE | E47: 1096 | F47: 2010-01-25 | G47: 매출 | H47: 을지강재산업 | I47: 아연도강판 | J47: 0.5*4*5 | K47: 350000 | L47: 160 | N47: 56000000 | AJ47: 10000
A48: FALSE | E48: 1096 | F48: 2010-01-25 | G48: 매출 | H48: 을지강재산업 | I48: 아연동강판 | J48: 0.3*4*5 | K48: 290000 | L48: 30 | N48: 8700000 | AJ48: 10000 | AW48: 1134
A49: FALSE | E49: 1096 | F49: 2010-01-25 | G49: 매출 | H49: 을지강재산업 | I49: H-Beam | J49: 50*50*10 | K49: 1200000 | L49: 5 | N49: 6000000 | AJ49: 10000
A50: FALSE | E50: 1096 | F50: 2010-01-25 | G50: 매출 | H50: 을지강재산업 | I50: I-Beam | J50: 30*40*10 | K50: 650000 | L50: 30 | N50: 19500000 | AJ50: 10000
A51: FALSE | E51: 1096 | F51: 2010-01-25 | G51: 부가세예수금 | H51: 을지강재산업 | N51: 24230000 | AJ51: 10000
A52: FALSE | E52: 1096 | F52: 2010-01-25 | G52: 외상매출금 | H52: 을지강재산업 | M52: 150000000 | AJ52: 10000 | AX52: 계정과목
A53: FALSE | E53: 1096 | F53: 2010-01-25 | G53: 보통예금 | H53: 하나은행 | M53: 66530000 | AJ53: 10000 | AX53: 부가세예수금
A54: FALSE | E54: 1096 | F54: 2010-01-25 | G54: 현금 | H54: 을지강재산업 | M54: 50000000 | AJ54: 10000 | AW54: 1134
A55: FALSE | E55: 1106 | F55: 2010-01-28 | G55: 매출 | H55: 가람공무 | I55: 강관#1 | J55: 33*10M | K55: 120000 | L55: 100 | N55: 12000000 | P55: 10 | AJ55: 10000 | AV55: =VLOOKUP(AX53,AU10:BB27,8,FALSE) -> 24230000 | AW55: 1134
A56: FALSE | E56: 1106 | F56: 2010-01-28 | G56: 매출 | H56: 가람공무 | I56: 강관#2 | J56: 25*10m | K56: 80000 | L56: 200 | N56: 16000000 | AJ56: 10000 | AW56: 1134
A57: FALSE | E57: 1106 | F57: 2010-01-28 | G57: 매출 | H57: 가람공무 | I57: 냉연강판#1 | J57: 30mm*1*50 | K57: 15500000 | L57: 2 | N57: 31000000 | AJ57: 10000 | AX57: 계정과목
A58: FALSE | E58: 1106 | F58: 2010-01-28 | G58: 매출 | H58: 가람공무 | I58: 냉연강판#2 | J58: 20mm*0.8*50 | K58: 11500000 | L58: 5 | N58: 57500000 | AJ58: 10000 | AX58: 외상매출금
A59: FALSE | E59: 1106 | F59: 2010-01-28 | G59: 매출 | H59: 가람공무 | I59: 스테인레스관#1 | J59: 100*10 | K59: 70000 | L59: 30 | N59: 2100000 | AJ59: 10000 | AW59: 차변
A60: FALSE | E60: 1106 | F60: 2010-01-28 | G60: 부가세예수금 | H60: 가람공무 | N60: 11860000 | AJ60: 10000 | AV60: =VLOOKUP(AX58,AU10:BA29,7,FALSE) -> 150000000 | AW60: =IF(ISNA(AV60)=TRUE,0,AV60) -> 150000000
A61: FALSE | E61: 1106 | F61: 2010-01-28 | G61: 외상매출금 | H61: 가람공무 | M61: 20460000 | AJ61: 10000
A62: FALSE | E62: 1106 | F62: 2010-01-28 | G62: 받을어음 | H62: 가람공무 | M62: 30000000 | AJ62: 10000
A63: FALSE | E63: 1106 | F63: 2010-01-28 | G63: 보통예금 | H63: 기업은행 | M63: 50000000 | AJ63: 10000 | AX63: 계정과목
A64: FALSE | E64: 1106 | F64: 2010-01-28 | G64: 현금 | H64: 가람공무 | M64: 30000000 | AJ64: 10000 | AX64: 선수금
A65: FALSE | E65: 1107 | F65: 2010-01-28 | G65: 매출 | H65: 용산건설 | I65: 철근1 | J65: 11 | K65: 1200 | L65: 1000 | N65: 1200000 | P65: 9 | AJ65: 10000 | AW65: 차변
A66: =C$1 -> FALSE | E66: 1107 | F66: 2010-01-28 | G66: 매출 | H66: 용산건설 | I66: 철근2 | J66: 12 | K66: 2400 | L66: 1500 | N66: 3600000 | AJ66: 10000 | AV66: =VLOOKUP(AX64,$AU$10:$BB$30,7,FALSE) ->  | AW66: =IF(ISNA(AV66)=TRUE,0,AV66) -> 0
A67: FALSE | E67: 1107 | F67: 2010-01-28 | G67: 매출 | H67: 용산건설 | I67: 철근3 | J67: 33 | K67: 4000 | L67: 500 | N67: 2000000 | AJ67: 10000 | AW67: 1134
A68: FALSE | E68: 1107 | F68: 2010-01-28 | G68: 매출 | H68: 용산건설 | I68: 철근5 | J68: 55 | K68: 6000 | L68: 1300 | N68: 7800000 | AJ68: 10000 | AX68: 계정과목
A69: FALSE | E69: 1107 | F69: 2010-01-28 | G69: 부가세예수금 | H69: 용산건설 | N69: 1460000 | AJ69: 10000 | AX69: 현금
A70: FALSE | E70: 1107 | F70: 2010-01-28 | G70: 외상매출금 | H70: 용산건설 | M70: 2560000 | AJ70: 10000 | AX70: 현금예금
A71: FALSE | E71: 1107 | F71: 2010-01-28 | G71: 받을어음 | H71: 용산건설 | M71: 5500000 | AJ71: 10000 | AX71: 보통예금 | BB71: =AW76+AW66+AW80 -> 116530000
A72: FALSE | E72: 1107 | F72: 2010-01-28 | G72: 보통예금 | H72: 기업은행 | M72: 3000000 | AJ72: 10000 | AW72: 차변
A73: FALSE | E73: 1107 | F73: 2010-01-28 | G73: 현금 | H73: 용산건설 | M73: 5000000 | AJ73: 10000 | AW73: =IF(ISNA(VLOOKUP(AX69,$AU$10:$BB$30,7,FALSE))=TRUE,0,VLOOKUP(AX69,$AU$10:$BB$30,7,FALSE)) -> 50000000
A74: FALSE | F74: 합계 | H74: 9 | I74: 건 | M74: 555306000 | N74: 555306000 | AJ74: 10000 | AV74: =VLOOKUP(AX70,$AU$10:$BB$30,7,FALSE) ->  | AW74: =IF(ISNA(AV74)=TRUE,0,AV74) -> 0
A75: FALSE | AJ75: 10000 | AW75: =IF(ISNA(VLOOKUP(AX71,$AU$10:$BB$30,7,FALSE))=TRUE,0,VLOOKUP(AX71,$AU$10:$BB$30,7,FALSE)) -> 66530000
A76: FALSE | AJ76: 10000 | AW76: =SUM(AW73:AW75) -> 116530000
A77: FALSE | AJ77: 10000
A78: FALSE | AJ78: 10000 | AW78: 전표번호 | AX78: 계정과목
A79: FALSE | AJ79: 10000 | AW79: 1106 | AX79: 받을어음
A80: FALSE | AJ80: 10000 | AV80: =VLOOKUP(AX79,$AU$10:$BB$30,7,FALSE) ->  | AW80: =IF(ISNA(AV80)=TRUE,0,AV80) -> 0
A81: FALSE | AJ81: 10000
A82: FALSE | AJ82: 10000 | AW82: 거래처 | AX82: 대표자 | AY82: 사업자번호 | AZ82: 업태 | BA82: 종목 | BB82: 주소
A83: FALSE | AJ83: 10000 | AW83: 을지강재산업 | AX83: 우지언 | AY83: 182-81-38290 | AZ83: 도소매 | BA83: 철강제품 | BB83: 서울 중구 을지로2가 272-59
A84: FALSE | AJ84: 10000
A85: FALSE | AJ85: 10000
A86: FALSE | AJ86: 10000
A87: FALSE | AJ87: 10000
A88: FALSE | AJ88: 10000 | BL88: [별지 제11호 서식] | CT88: [별지 제11호 서식]
A89: FALSE | AJ89: 10000 | BL89: 세 금 계 산 서 | CA89: ( | CB89: 공급받는자 | CG89: ) | CH89: 책 번 호 | CN89: 권 | CQ89: 호 | CT89: 세 금 계 산 서 | DI89: ( | DJ89: 공급받는자 | DO89: ) | DP89: 책 번 호 | DV89: 권 | DY89: 호
A90: FALSE | AJ90: 10000 | CB90: 보 관 용 | CH90: 일 련 번 호 | DJ90: 보 관 용 | DP90: 일 련 번 호
A91: FALSE | AJ91: 10000 | BL91: 공 급 자 | BM91: 등록번호 | BP91: =MID(AY1,1,1) -> 1 | BQ91: =MID(AY1,2,1) -> 1 | BR91: =MID(AY1,3,1) -> 1 | BS91: - | BT91: =MID(AY1,5,1) -> 1 | BU91: =MID(AY1,6,1) -> 1 | BV91: - | BW91: =MID(AY1,8,1) -> 1 | BX91: =MID(AY1,9,1) -> 1 | BY91: =MID(AY1,10,1) -> 1 | BZ91: =MID(AY1,11,1) -> 1 | CA91: =MID(AY1,12,1) -> 1 | CB91: 공급받는자 | CC91: 등록번호 | CF91: =MID(AY83,1,1) -> 1 | CG91: =MID(AY83,2,1) -> 8 | CH91: =MID(AY83,3,1) -> 2 | CI91: - | CJ91: =MID(AY83,5,1) -> 8 | CK91: =MID(AY83,6,1) -> 1 | CL91: - | CM91: =MID(AY83,8,1) -> 3 | CN91: =MID(AY83,9,1) -> 8 | CO91: =MID(AY83,10,1) -> 2 | CP91: =MID(AY83,11,1) -> 9 | CQ91: =MID(AY83,12,1) -> 0 | CT91: 공 급 자 | CU91: 등록번호 | CX91: 1 | CY91: 1 | CZ91: 1 | DA91: - | DB91: 1 | DC91: 1 | DD91: - | DE91: 1 | DF91: 1 | DG91: 1 | DH91: 1 | DI91: 1 | DJ91: 공급받는자 | DK91: 등록번호 | DN91: 1 | DO91: 8 | DP91: 2 | DQ91: - | DR91: 8 | DS91: 1 | DT91: - | DU91: 3 | DV91: 8 | DW91: 2 | DX91: 9 | DY91: 0
A92: FALSE | AJ92: 10000
A93: FALSE | AJ93: 10000 | BM93: 상 호 | BP93: =AW1 -> 우리철강 | BV93: 성명 | BW93: =AX1 -> 김성경 | CA93: 인 | CC93: 상 호 | CF93: =AW83 -> 을지강재산업 | CL93: 성명 | CM93: =AX83 -> 우지언 | CQ93: 인 | CU93: 상 호 | CX93: 우리철강 | DD93: 성명 | DE93: 김성경 | DI93: 인 | DK93: 상 호 | DN93: 을지강재산업 | DT93: 성명 | DU93: 우지언 | DY93: 인
A94: FALSE | AJ94: 10000 | BM94: (법인명) | CC94: (법인명) | CU94: (법인명) | DK94: (법인명)
A95: FALSE | AJ95: 10000 | BM95: 사 업 장 | BP95: =BB1 -> 서울 영등포구 문래동3가 36 | CC95: 사 업 장 | CF95: =BB83 -> 서울 중구 을지로2가 272-59 | CU95: 사 업 장 | CX95: 서울 영등포구 문래동3가 36 | DK95: 사 업 장 | DN95: 서울 중구 을지로2가 272-59
A96: FALSE | AJ96: 10000 | BM96: 주 소 | CC96: 주 소 | CU96: 주 소 | DK96: 주 소
A97: FALSE | AJ97: 10000 | BM97: 업 태 | BP97: =AZ1 -> 도소매 | BV97: 종목 | BW97: =BA1 -> 철강제품 | CC97: 업 태 | CF97: =AZ83 -> 도소매 | CL97: 종목 | CM97: =BA83 -> 철강제품 | CU97: 업 태 | CX97: 도소매 | DD97: 종목 | DE97: 철강제품 | DK97: 업 태 | DN97: 도소매 | DT97: 종목 | DU97: 철강제품
A98: FALSE | AJ98: 10000
A99: FALSE | AJ99: 10000 | BL99: 작 성 | BP99: 공 급 가 액 | CC99: 세 액 | CM99: 비 고 | CT99: 작 성 | CX99: 공 급 가 액 | DK99: 세 액 | DU99: 비 고
A100: FALSE | AJ100: 10000 | BL100: 년 | BN100: 월 | BO100: 일 | BP100: 공란수 | BR100: 백 | BS100: 십 | BT100: 억 | BU100: 천 | BV100: 백 | BW100: 십 | BX100: 만 | BY100: 천 | BZ100: 백 | CA100: 십 | CB100: 일 | CC100: 십 | CD100: 억 | CE100: 천 | CF100: 백 | CG100: 십 | CH100: 만 | CI100: 천 | CJ100: 백 | CK100: 십 | CL100: 일 | CT100: 년 | CV100: 월 | CW100: 일 | CX100: 공란수 | CZ100: 백 | DA100: 십 | DB100: 억 | DC100: 천 | DD100: 백 | DE100: 십 | DF100: 만 | DG100: 천 | DH100: 백 | DI100: 십 | DJ100: 일 | DK100: 십 | DL100: 억 | DM100: 천 | DN100: 백 | DO100: 십 | DP100: 만 | DQ100: 천 | DR100: 백 | DS100: 십 | DT100: 일
A101: FALSE | AJ101: 10000 | BL101: =YEAR(AT10) -> 2010 | BN101: =MONTH(AT10) -> 1 | BO101: =DAY(AT10) -> 25 | BP101: =COUNTBLANK(BR101:CB101) -> 2 | BR101: =IF(ISERROR(MID($BB30,LEN($BB30)-10,1)),"",MID($BB30,LEN($BB30)-10,1)) ->  | BS101: =IF(ISERROR(MID($BB30,LEN($BB30)-9,1)),"",MID($BB30,LEN($BB30)-9,1)) ->  | BT101: =IF(ISERROR(MID($BB30,LEN($BB30)-8,1)),"",MID($BB30,LEN($BB30)-8,1)) -> 2 | BU101: =IF(ISERROR(MID($BB30,LEN($BB30)-7,1)),"",MID($BB30,LEN($BB30)-7,1)) -> 4 | BV101: =IF(ISERROR(MID($BB30,LEN($BB30)-6,1)),"",MID($BB30,LEN($BB30)-6,1)) -> 2 | BW101: =IF(ISERROR(MID($BB30,LEN($BB30)-5,1)),"",MID($BB30,LEN($BB30)-5,1)) -> 3 | BX101: =IF(ISERROR(MID($BB30,LEN($BB30)-4,1)),"",MID($BB30,LEN($BB30)-4,1)) -> 0 | BY101: =IF(ISERROR(MID($BB30,LEN($BB30)-3,1)),"",MID($BB30,LEN($BB30)-3,1)) -> 0 | BZ101: =IF(ISERROR(MID($BB30,LEN($BB30)-2,1)),"",MID($BB30,LEN($BB30)-2,1)) -> 0 | CA101: =IF(ISERROR(MID($BB30,LEN($BB30)-1,1)),"",MID($BB30,LEN($BB30)-1,1)) -> 0 | CB101: =RIGHT($BB30) -> 0 | CC101: =IF(ISERROR(MID($AV55,LEN($AV55)-9,1)),"",MID($AV55,LEN($AV55)-9,1)) ->  | CD101: =IF(ISERROR(MID($AV55,LEN($AV55)-8,1)),"",MID($AV55,LEN($AV55)-8,1)) ->  | CE101: =IF(ISERROR(MID($AV55,LEN($AV55)-7,1)),"",MID($AV55,LEN($AV55)-7,1)) -> 2 | CF101: =IF(ISERROR(MID($AV55,LEN($AV55)-6,1)),"",MID($AV55,LEN($AV55)-6,1)) -> 4 | CG101: =IF(ISERROR(MID($AV55,LEN($AV55)-5,1)),"",MID($AV55,LEN($AV55)-5,1)) -> 2 | CH101: =IF(ISERROR(MID($AV55,LEN($AV55)-4,1)),"",MID($AV55,LEN($AV55)-4,1)) -> 3 | CI101: =IF(ISERROR(MID($AV55,LEN($AV55)-3,1)),"",MID($AV55,LEN($AV55)-3,1)) -> 0 | CJ101: =IF(ISERROR(MID($AV55,LEN($AV55)-2,1)),"",MID($AV55,LEN($AV55)-2,1)) -> 0 | CK101: =IF(ISERROR(MID($AV55,LEN($AV55)-1,1)),"",MID($AV55,LEN($AV55)-1,1)) -> 0 | CL101: =RIGHT($AV55) -> 0 | CT101: 2010 | CV101: 1 | CW101: 25 | CX101: 2 | DB101: 2 | DC101: 4 | DD101: 2 | DE101: 3 | DF101: 0 | DG101: 0 | DH101: 0 | DI101: 0 | DJ101: 0 | DM101: 2 | DN101: 4 | DO101: 2 | DP101: 3 | DQ101: 0 | DR101: 0 | DS101: 0 | DT101: 0
A102: FALSE | AJ102: 10000 | BL102: 월 | BM102: 일 | BN102: 품 목 | BS102: 규격 | BX102: 수량 | CA102: 단 가 | CE102: 공 급 가 액 | CK102: 세 액 | CP102: 비고 | CT102: 월 | CU102: 일 | CV102: 품 목 | DA102: 규격 | DF102: 수량 | DI102: 단 가 | DM102: 공 급 가 액 | DS102: 세 액 | DX102: 비고
A103: FALSE | AJ103: 10000 | BL103: =MONTH(AT10) -> 1 | BM103: =DAY(AT10) -> 25 | BN103: =AW31 -> 철근1 | BS103: =AX31 -> 11 | BX103: =AZ31 -> 3000 | CA103: =AY31 -> 1200 | CE103: =BB31 -> 3600000 | CK103: =INT(CE103*0.1) -> 360000 | CV103: "명 세 별 첨" | DI103: =CI10 -> 0 | DM103: =BB30 -> 242300000 | DS103: =AV55 -> 24230000
A104: FALSE | AJ104: 10000 | BL104: =MONTH(AT11) -> 1 | BM104: =DAY(AT11) -> 25 | BN104: =AW32 -> 강관#1 | BS104: =AX32 -> 33*10M | BX104: =AZ32 -> 200 | CA104: =AY32 -> 120000 | CE104: =BB32 -> 24000000 | CK104: =INT(CE104*0.1) -> 2400000 | DI104: =CI11 -> 0
A105: FALSE | AJ105: 10000 | BL105: =MONTH(AT12) -> 1 | BM105: =DAY(AT12) -> 25 | BN105: =AW33 -> 강관#2 | BS105: =AX33 -> 25*10m | BX105: =AZ33 -> 500 | CA105: =AY33 -> 80000 | CE105: =BB33 -> 40000000 | CK105: =INT(CE105*0.1) -> 4000000 | DI105: =CI12 -> 0
A106: FALSE | AJ106: 10000 | BL106: =MONTH(AT13) -> 1 | BM106: =DAY(AT13) -> 25 | BN106: =AW34 -> 냉연강판#1 | BS106: =AX34 -> 30mm*1*50 | BX106: =AZ34 -> 5 | CA106: =AY34 -> 15500000 | CE106: =BB34 -> 77500000 | CK106: =INT(CE106*0.1) -> 7750000 | DI106: =CI13 -> 0
A107: FALSE | AJ107: 10000 | BL107: 합계금액 | BQ107: 현 금 | BV107: 수 표 | CA107: 어 음 | CF107: 외상미수금 | CK107: 이 금액을 | CO107: =IF($AV$60>0,"청구","영수") -> 청구 | CQ107: 함 | CT107: 합계금액 | CY107: 현 금 | DD107: 수 표 | DI107: 어 음 | DN107: 외상미수금 | DS107: 이 금액을 | DW107: 청구 | DY107: 함
A108: FALSE | AJ108: 10000 | BL108: =BB30+AV55 -> 266530000 | BQ108: =DF209 -> 116530000 | CA108: =AW80 -> 0 | CF108: =AW60 -> 150000000 | CT108: 266530000 | CY108: 116530000 | DI108: 0 | DN108: 150000000
A109: FALSE | AJ109: 10000 | CQ109: 인쇄용지(특급)34g/m2 182mmx128mm | DY109: 인쇄용지(특급)34g/m2 182mmx128mm
A110: FALSE | AJ110: 10000
A111: FALSE | AJ111: 10000
A112: FALSE | AJ112: 10000 | BL112: [별지 제11호 서식] | CT112: [별지 제11호 서식]
A113: FALSE | AJ113: 10000 | BL113: 세 금 계 산 서 | CA113: ( | CB113: 공급받는자 | CG113: ) | CH113: 책 번 호 | CN113: 권 | CQ113: 호 | CT113: 세 금 계 산 서 | DI113: ( | DJ113: 공급받는자 | DO113: ) | DP113: 책 번 호 | DV113: 권 | DY113: 호
A114: FALSE | AJ114: 10000 | CB114: 보 관 용 | CH114: 일 련 번 호 | DJ114: 보 관 용 | DP114: 일 련 번 호
A115: FALSE | AJ115: 10000 | BL115: 공 급 자 | BM115: 등록번호 | BP115: 1 | BQ115: 1 | BR115: 1 | BS115: - | BT115: 1 | BU115: 1 | BV115: - | BW115: 1 | BX115: 1 | BY115: 1 | BZ115: 1 | CA115: 1 | CB115: 공급받는자 | CC115: 등록번호 | CF115: 4 | CG115: 4 | CH115: 4 | CI115: - | CJ115: 8 | CK115: 1 | CL115: - | CM115: 2 | CN115: 2 | CO115: 2 | CP115: 2 | CQ115: 2 | CT115: 공 급 자 | CU115: 등록번호 | CX115: 1 | CY115: 1 | CZ115: 1 | DA115: - | DB115: 1 | DC115: 1 | DD115: - | DE115: 1 | DF115: 1 | DG115: 1 | DH115: 1 | DI115: 1 | DJ115: 공급받는자 | DK115: 등록번호 | DN115: 1 | DO115: 8 | DP115: 2 | DQ115: - | DR115: 8 | DS115: 1 | DT115: - | DU115: 3 | DV115: 8 | DW115: 2 | DX115: 9 | DY115: 0
A116: FALSE | AJ116: 10000
A117: FALSE | AJ117: 10000 | BM117: 상 호 | BP117: 우리철강 | BV117: 성명 | BW117: 김성경 | CA117: 인 | CC117: 상 호 | CF117: 이우차체공업 | CL117: 성명 | CM117: 이성우 | CQ117: 인 | CU117: 상 호 | CX117: 우리철강 | DD117: 성명 | DE117: 김성경 | DI117: 인 | DK117: 상 호 | DN117: 을지강재산업 | DT117: 성명 | DU117: 우지언 | DY117: 인
A118: FALSE | AJ118: 10000 | BM118: (법인명) | CC118: (법인명) | CU118: (법인명) | DK118: (법인명)
A119: FALSE | AJ119: 10000 | BM119: 사 업 장 | BP119: 서울 영등포구 문래동3가 36 | CC119: 사 업 장 | CF119: 경기도 안산시 성곡동 213-4 | CU119: 사 업 장 | CX119: 서울 영등포구 문래동3가 36 | DK119: 사 업 장 | DN119: 서울 중구 을지로2가 272-59
A120: FALSE | AJ120: 10000 | BM120: 주 소 | CC120: 주 소 | CU120: 주 소 | DK120: 주 소
A121: FALSE | AJ121: 10000 | BM121: 업 태 | BP121: 도소매 | BV121: 종목 | BW121: 철강제품 | CC121: 업 태 | CF121: 제조 | CL121: 종목 | CM121: 자체,자동차부품 | CU121: 업 태 | CX121: 도소매 | DD121: 종목 | DE121: 철강제품 | DK121: 업 태 | DN121: 도소매 | DT121: 종목 | DU121: 철강제품
A122: FALSE | AJ122: 10000
A123: FALSE | AJ123: 10000 | BL123: 작 성 | BP123: 공 급 가 액 | CC123: 세 액 | CM123: 비 고 | CT123: 작 성 | CX123: 공 급 가 액 | DK123: 세 액 | DU123: 비 고
A124: FALSE | AJ124: 10000 | BL124: 년 | BN124: 월 | BO124: 일 | BP124: 공란수 | BR124: 백 | BS124: 십 | BT124: 억 | BU124: 천 | BV124: 백 | BW124: 십 | BX124: 만 | BY124: 천 | BZ124: 백 | CA124: 십 | CB124: 일 | CC124: 십 | CD124: 억 | CE124: 천 | CF124: 백 | CG124: 십 | CH124: 만 | CI124: 천 | CJ124: 백 | CK124: 십 | CL124: 일 | CT124: 년 | CV124: 월 | CW124: 일 | CX124: 공란수 | CZ124: 백 | DA124: 십 | DB124: 억 | DC124: 천 | DD124: 백 | DE124: 십 | DF124: 만 | DG124: 천 | DH124: 백 | DI124: 십 | DJ124: 일 | DK124: 십 | DL124: 억 | DM124: 천 | DN124: 백 | DO124: 십 | DP124: 만 | DQ124: 천 | DR124: 백 | DS124: 십 | DT124: 일
A125: FALSE | AJ125: 10000 | BL125: 2010 | BN125: 1 | BO125: 14 | BP125: 4 | BV125: 6 | BW125: 3 | BX125: 5 | BY125: 0 | BZ125: 0 | CA125: 0 | CB125: 0 | CG125: 6 | CH125: 3 | CI125: 5 | CJ125: 0 | CK125: 0 | CL125: 0 | CT125: 2010 | CV125: 1 | CW125: 25 | CX125: 2 | DB125: 2 | DC125: 4 | DD125: 2 | DE125: 3 | DF125: 0 | DG125: 0 | DH125: 0 | DI125: 0 | DJ125: 0 | DM125: 2 | DN125: 4 | DO125: 2 | DP125: 3 | DQ125: 0 | DR125: 0 | DS125: 0 | DT125: 0
A126: FALSE | AJ126: 10000 | BL126: 월 | BM126: 일 | BN126: 품 목 | BS126: 규격 | BX126: 수량 | CA126: 단 가 | CE126: 공 급 가 액 | CK126: 세 액 | CP126: 비고 | CT126: 월 | CU126: 일 | CV126: 품 목 | DA126: 규격 | DF126: 수량 | DI126: 단 가 | DM126: 공 급 가 액 | DS126: 세 액 | DX126: 비고
A127: FALSE | AJ127: 10000 | BL127: 1 | BM127: 14 | BN127: 아연도강판 | BS127: 0.5*4*5 | BX127: 10 | CA127: 350000 | CE127: 3500000 | CK127: 350000 | CV127: "명 세 별 첨" | DI127: 0 | DM127: 242300000 | DS127: 24230000
A128: FALSE | AJ128: 10000 | BL128: 1 | BM128: 14 | BN128: 아연동강판 | BS128: 0.3*4*5 | BX128: 10 | CA128: 285000 | CE128: 2850000 | CK128: 285000 | DI128: 0
A129: FALSE | AJ129: 10000 | BL129: 1 | BM129: 14 | BN129: 0 | BS129: 0 | BX129: 0 | CA129: 0 | CE129: 0 | CK129: 0 | DI129: 0
A130: FALSE | AJ130: 10000 | BL130: 1 | BM130: 14 | BN130: 0 | BS130: 0 | BX130: 0 | CA130: 0 | CE130: 0 | CK130: 0 | DI130: 0
A131: FALSE | AJ131: 10000 | BL131: 합계금액 | BQ131: 현 금 | BV131: 수 표 | CA131: 어 음 | CF131: 외상미수금 | CK131: 이 금액을 | CO131: 청구 | CQ131: 함 | CT131: 합계금액 | CY131: 현 금 | DD131: 수 표 | DI131: 어 음 | DN131: 외상미수금 | DS131: 이 금액을 | DW131: 청구 | DY131: 함
A132: FALSE | AJ132: 10000 | BL132: 6985000 | BQ132: 3985000 | CA132: 0 | CF132: 3000000 | CT132: 266530000 | CY132: 116530000 | DI132: 0 | DN132: 150000000
A133: FALSE | AJ133: 10000 | CQ133: 인쇄용지(특급)34g/m2 182mmx128mm | DY133: 인쇄용지(특급)34g/m2 182mmx128mm
A134: FALSE | AJ134: 10000
A135: FALSE | AJ135: 10000 | CT135: [별지 제11호 서식]
A136: FALSE | AJ136: 10000 | CT136: 세 금 계 산 서 | DI136: ( | DJ136: 공급받는자 | DO136: ) | DP136: 책 번 호 | DV136: 권 | DY136: 호
A137: FALSE | AJ137: 10000 | DJ137: 보 관 용 | DP137: 일 련 번 호
A138: FALSE | AJ138: 10000 | CT138: 공 급 자 | CU138: 등록번호 | CX138: 1 | CY138: 1 | CZ138: 1 | DA138: - | DB138: 1 | DC138: 1 | DD138: - | DE138: 1 | DF138: 1 | DG138: 1 | DH138: 1 | DI138: 1 | DJ138: 공급받는자 | DK138: 등록번호 | DN138: 1 | DO138: 8 | DP138: 2 | DQ138: - | DR138: 8 | DS138: 1 | DT138: - | DU138: 3 | DV138: 8 | DW138: 2 | DX138: 9 | DY138: 0
A139: FALSE | AJ139: 10000
A140: FALSE | AJ140: 10000 | CU140: 상 호 | CX140: 우리철강 | DD140: 성명 | DE140: 김성경 | DI140: 인 | DK140: 상 호 | DN140: 을지강재산업 | DT140: 성명 | DU140: 우지언 | DY140: 인
A141: FALSE | AJ141: 10000 | CU141: (법인명) | DK141: (법인명)
A142: FALSE | AJ142: 10000 | CU142: 사 업 장 | CX142: 서울 영등포구 문래동3가 36 | DK142: 사 업 장 | DN142: 서울 중구 을지로2가 272-59
A143: FALSE | AJ143: 10000 | CU143: 주 소 | DK143: 주 소
A144: FALSE | AJ144: 10000 | CU144: 업 태 | CX144: 도소매 | DD144: 종목 | DE144: 철강제품 | DK144: 업 태 | DN144: 도소매 | DT144: 종목 | DU144: 철강제품
A145: FALSE | AJ145: 10000
A146: FALSE | AJ146: 10000 | CT146: 작 성 | CX146: 공 급 가 액 | DK146: 세 액 | DU146: 비 고
A147: FALSE | AJ147: 10000 | CT147: 년 | CV147: 월 | CW147: 일 | CX147: 공란수 | CZ147: 백 | DA147: 십 | DB147: 억 | DC147: 천 | DD147: 백 | DE147: 십 | DF147: 만 | DG147: 천 | DH147: 백 | DI147: 십 | DJ147: 일 | DK147: 십 | DL147: 억 | DM147: 천 | DN147: 백 | DO147: 십 | DP147: 만 | DQ147: 천 | DR147: 백 | DS147: 십 | DT147: 일
A148: FALSE | AJ148: 10000 | CT148: 2010 | CV148: 1 | CW148: 25 | CX148: 2 | DB148: 2 | DC148: 4 | DD148: 2 | DE148: 3 | DF148: 0 | DG148: 0 | DH148: 0 | DI148: 0 | DJ148: 0 | DM148: 2 | DN148: 4 | DO148: 2 | DP148: 3 | DQ148: 0 | DR148: 0 | DS148: 0 | DT148: 0
A149: FALSE | AJ149: 10000 | CT149: 월 | CU149: 일 | CV149: 품 목 | DA149: 규격 | DF149: 수량 | DI149: 단 가 | DM149: 공 급 가 액 | DS149: 세 액 | DX149: 비고
A150: FALSE | AJ150: 10000 | CV150: "명 세 별 첨" | DI150: 0 | DM150: 242300000 | DS150: 24230000
A151: FALSE | AJ151: 10000 | DI151: 0
A152: FALSE | AJ152: 10000 | DI152: 0
A153: FALSE | AJ153: 10000 | DI153: 0
A154: FALSE | AJ154: 10000 | CT154: 합계금액 | CY154: 현 금 | DD154: 수 표 | DI154: 어 음 | DN154: 외상미수금 | DS154: 이 금액을 | DW154: 청구 | DY154: 함
A155: FALSE | AJ155: 10000 | CT155: 266530000 | CY155: 116530000 | DI155: 0 | DN155: 150000000
A156: FALSE | AJ156: 10000 | DY156: 인쇄용지(특급)34g/m2 182mmx128mm
A157: FALSE | AJ157: 10000
A158: FALSE | AJ158: 10000
A159: FALSE | AJ159: 10000 | CT159: [별지 제11호 서식]
A160: FALSE | AJ160: 10000 | CT160: 세 금 계 산 서 | DI160: ( | DJ160: 공급받는자 | DO160: ) | DP160: 책 번 호 | DV160: 권 | DY160: 호
A161: FALSE | AJ161: 10000 | DJ161: 보 관 용 | DP161: 일 련 번 호
A162: FALSE | AJ162: 10000 | CT162: 공 급 자 | CU162: 등록번호 | CX162: 1 | CY162: 1 | CZ162: 1 | DA162: - | DB162: 1 | DC162: 1 | DD162: - | DE162: 1 | DF162: 1 | DG162: 1 | DH162: 1 | DI162: 1 | DJ162: 공급받는자 | DK162: 등록번호 | DN162: 1 | DO162: 8 | DP162: 2 | DQ162: - | DR162: 8 | DS162: 1 | DT162: - | DU162: 3 | DV162: 8 | DW162: 2 | DX162: 9 | DY162: 0
A163: FALSE | AJ163: 10000
A164: FALSE | AJ164: 10000 | CU164: 상 호 | CX164: 우리철강 | DD164: 성명 | DE164: 김성경 | DI164: 인 | DK164: 상 호 | DN164: 을지강재산업 | DT164: 성명 | DU164: 우지언 | DY164: 인
A165: FALSE | AJ165: 10000 | CU165: (법인명) | DK165: (법인명)
A166: FALSE | AJ166: 10000 | CU166: 사 업 장 | CX166: 서울 영등포구 문래동3가 36 | DK166: 사 업 장 | DN166: 서울 중구 을지로2가 272-59
A167: FALSE | AJ167: 10000 | CU167: 주 소 | DK167: 주 소
A168: FALSE | AJ168: 10000 | CU168: 업 태 | CX168: 도소매 | DD168: 종목 | DE168: 철강제품 | DK168: 업 태 | DN168: 도소매 | DT168: 종목 | DU168: 철강제품
A169: FALSE | AJ169: 10000
A170: FALSE | AJ170: 10000 | CT170: 작 성 | CX170: 공 급 가 액 | DK170: 세 액 | DU170: 비 고
A171: FALSE | AJ171: 10000 | CT171: 년 | CV171: 월 | CW171: 일 | CX171: 공란수 | CZ171: 백 | DA171: 십 | DB171: 억 | DC171: 천 | DD171: 백 | DE171: 십 | DF171: 만 | DG171: 천 | DH171: 백 | DI171: 십 | DJ171: 일 | DK171: 십 | DL171: 억 | DM171: 천 | DN171: 백 | DO171: 십 | DP171: 만 | DQ171: 천 | DR171: 백 | DS171: 십 | DT171: 일
A172: FALSE | AJ172: 10000 | CT172: 2010 | CV172: 1 | CW172: 25 | CX172: 2 | DB172: 2 | DC172: 4 | DD172: 2 | DE172: 3 | DF172: 0 | DG172: 0 | DH172: 0 | DI172: 0 | DJ172: 0 | DM172: 2 | DN172: 4 | DO172: 2 | DP172: 3 | DQ172: 0 | DR172: 0 | DS172: 0 | DT172: 0
A173: FALSE | AJ173: 10000 | CT173: 월 | CU173: 일 | CV173: 품 목 | DA173: 규격 | DF173: 수량 | DI173: 단 가 | DM173: 공 급 가 액 | DS173: 세 액 | DX173: 비고
A174: FALSE | AJ174: 10000 | CV174: "명 세 별 첨" | DI174: 0 | DM174: 242300000 | DS174: 24230000
A175: FALSE | AJ175: 10000 | DI175: 0
A176: FALSE | AJ176: 10000 | DI176: 0
A177: FALSE | AJ177: 10000 | DI177: 0
A178: FALSE | AJ178: 10000 | CT178: 합계금액 | CY178: 현 금 | DD178: 수 표 | DI178: 어 음 | DN178: 외상미수금 | DS178: 이 금액을 | DW178: 청구 | DY178: 함
A179: FALSE | AJ179: 10000 | CT179: 266530000 | CY179: 116530000 | DI179: 0 | DN179: 150000000
A180: FALSE | AJ180: 10000 | DY180: 인쇄용지(특급)34g/m2 182mmx128mm
A181: FALSE | AJ181: 10000
A182: FALSE | AJ182: 10000
A183: FALSE | AJ183: 10000
A184: FALSE | AJ184: 10000 | CT184: 거 래 명 세 서
AJ185: 10000
AJ186: 10000 | CT186: 납품년월일 | CX186: =AT10 -> 2010-01-25
AJ187: 10000 | CT187: 증빙번호 | DY187: (공 급 자 보 관 용)
AJ188: 10000 | CT188: 공 급 자 | CU188: 사업자 등록번호 | CX188: =AY1 -> 111-11-11111 | DJ188: 공급받는자 | DK188: 사업자 등록번호 | DN188: =AY83 -> 182-81-38290
AJ189: 10000 | CU189: 상 호 | CX189: =AW1 -> 우리철강 | DD189: 성명 | DF189: =AX1 -> 김성경 | DK189: 상 호 | DN189: =AW83 -> 을지강재산업 | DT189: 성명 | DV189: =AX83 -> 우지언
AJ190: 10000 | CU190: 주 소 | CX190: =BB1 -> 서울 영등포구 문래동3가 36 | DK190: 주 소 | DN190: =BB83 -> 서울 중구 을지로2가 272-59
AJ191: 10000 | CU191: 업 태 | CX191: =AZ1 -> 도소매 | DB191: 종 목 | DE191: =BA1 -> 철강제품 | DK191: 업 태 | DN191: =AZ83 -> 도소매 | DT191: 종 목 | DV191: =BA83 -> 철강제품
AJ192: 10000 | CT192: No | CU192: 품 명 | CZ192: 규 격 | DG192: 단위 | DI192: 단가 | DM192: 수량 | DP192: 금 액 | DU192: 비 고
AJ193: 10000 | CT193: 1 | CU193: =AW31 -> 철근1 | CZ193: =AX31 -> 11 | DG193: =IF(DP193=0,"","EA") -> EA | DI193: =AY31 -> 1200 | DM193: =AZ10 -> 3000 | DP193: =BB31 -> 3600000
AJ194: 10000 | CT194: 2 | CU194: =AW32 -> 강관#1 | CZ194: =AX32 -> 33*10M | DG194: =IF(DP194=0,"","EA") -> EA | DI194: =AY32 -> 120000 | DM194: =AZ11 -> 200 | DP194: =BB32 -> 24000000
AJ195: 10000 | CT195: 3 | CU195: 강관#2 | CZ195: 25*10m | DG195: EA | DI195: 80000 | DM195: 500 | DP195: 40000000
AJ196: 10000 | CT196: 4 | CU196: 냉연강판#1 | CZ196: 30mm*1*50 | DG196: EA | DI196: 15500000 | DM196: 5 | DP196: 77500000
AJ197: 10000 | CT197: 5 | CU197: 스테인레스관#1 | CZ197: 100*10 | DG197: EA | DI197: 70000 | DM197: 100 | DP197: 7000000
AJ198: 10000 | CT198: 6 | CU198: 아연도강판 | CZ198: 0.5*4*5 | DG198: EA | DI198: 350000 | DM198: 160 | DP198: 56000000
AJ199: 10000 | CT199: 7 | CU199: 아연동강판 | CZ199: 0.3*4*5 | DG199: EA | DI199: 290000 | DM199: 30 | DP199: 8700000
AJ200: 10000 | CT200: 8 | CU200: H-Beam | CZ200: 50*50*10 | DG200: EA | DI200: 1200000 | DM200: 5 | DP200: 6000000
... 216 more rows

Sheet 매입
S1: 행 | T1: 2010-01-25 | U1: 2010-02-09 | AA1: =COUNT(AA8:AA1000) -> 403
M2: 건수 | N2: 3 | O2: 건 | V2: =">="&$T$1 -> >=40203 | W2: =">="&$U$1 -> >=40218
I3: 매 입 장 | M3: 매입금액 | N3: 338500000 | U3: 합계 | W3: =$P$5 -> 3 | X3: 건 | AA3: =SUM($M2:$M$7) -> 5000000 | AB3: =SUM($N2:$N$7) -> 372350003
M4: 부가세 | N4: 33850000 | U4: 건수 | V4: =P5 -> 3 | W4: 건
E5: 26 | H5: =T1 -> 2010-01-25 | I5: 부터 | J5: =U1 -> 2010-02-09 | K5: 까지 | P5: =COUNT(P7:P259) -> 3 | Q5: =COUNT(E7:E231) -> 20 | U5: 매입금액 | V5: =SUMIF(G7:G1000,"매입",M7:M1000) -> 338500000 | AA5: 행 | AB5: 계정과목 | AC5: 일자 | AD5: 일자
E6: 전표번호 | F6: 일자 | G6: 계정과목 | H6: 거래처 | I6: 품명 | J6: 규격 | K6: 단가 | L6: 수량 | M6: 차변 | N6: 대변 | O6: 부서 | P6: 행 | U6: 부가세 | V6: =SUMIF(G7:G1000,"부가세대지급금",M7:M1000) -> 33850000 | AA6: >0 | AB6: 매입 | AC6: =">="&$T$1 -> >=40203 | AD6: ="<="&$U$1 -> <=40218
E7: 1093 | F7: 2010-01-25 | G7: 매입 | H7: 동양철관 | I7: 스테인레스관#1 | J7: 100*10 | K7: 50000 | L7: 100 | M7: 5000000 | P7: 8 | AA7: 전표번호
E8: 1093 | F8: 2010-01-25 | G8: 매입 | H8: 동양철관 | I8: 스테인레스관#2 | J8: 80*10 | K8: 40000 | L8: 200 | M8: 8000000 | AA8: 1093
E9: 1093 | F9: 2010-01-25 | G9: 매입 | H9: 동양철관 | I9: L형관#2 | J9: 20*40*40 | K9: 30000 | L9: 100 | M9: 3000000 | AA9: 1094
E10: 1093 | F10: 2010-01-25 | G10: 매입 | H10: 동양철관 | I10: 철근5 | J10: 55 | K10: 5000 | L10: 1000 | M10: 5000000 | AA10: 1095
E11: 1093 | F11: 2010-01-25 | G11: 부가세대지급금 | H11: 동양철관 | M11: 2100000 | AA11: 10000
E12: 1093 | F12: 2010-01-25 | G12: 지급어음 | H12: 동양철관 | N12: 10000000 | AA12: 10000
E13: 1093 | F13: 2010-01-25 | G13: 보통예금 | H13: 국민은행 | N13: 3100000 | AA13: 10000
E14: 1093 | F14: 2010-01-25 | G14: 현금 | H14: 동양철관 | N14: 10000000 | AA14: 10000
E15: 1094 | F15: 2010-01-25 | G15: 매입 | H15: 동양철관 | I15: 강관#2 | J15: 25*10m | K15: 70000 | L15: 500 | M15: 35000000 | P15: 3 | AA15: 10000
E16: 1094 | F16: 2010-01-25 | G16: 부가세대지급금 | H16: 동양철관 | M16: 3500000 | AA16: 10000
E17: 1094 | F17: 2010-01-25 | G17: 현금 | H17: 동양철관 | N17: 38500000 | AA17: 10000
E18: 1095 | F18: 2010-01-25 | G18: 매입 | H18: ini제철 | I18: 냉연강판#1 | J18: 30mm*1*50 | K18: 13000000 | L18: 10 | M18: 130000000 | P18: 9 | AA18: 10000
E19: 1095 | F19: 2010-01-25 | G19: 매입 | H19: ini제철 | I19: 냉연강판#2 | J19: 20mm*0.8*50 | K19: 8000000 | L19: 10 | M19: 80000000 | AA19: 10000
E20: 1095 | F20: 2010-01-25 | G20: 매입 | H20: ini제철 | I20: 아연도강판 | J20: 0.5*4*5 | K20: 300000 | L20: 50 | M20: 15000000 | AA20: 10000
E21: 1095 | F21: 2010-01-25 | G21: 매입 | H21: ini제철 | I21: 아연도강판 | J21: 0.5*4*5 | K21: 300000 | L21: 50 | M21: 12500000 | AA21: 10000
E22: 1095 | F22: 2010-01-25 | G22: 매입 | H22: ini제철 | I22: 아연도강판 | J22: 0.5*4*5 | K22: 300000 | L22: 50 | M22: 30000000 | AA22: 10000
E23: 1095 | F23: 2010-01-25 | G23: 매입 | H23: ini제철 | I23: 아연도강판 | J23: 0.5*4*5 | K23: 300000 | L23: 50 | M23: 15000000 | AA23: 10000
E24: 1095 | F24: 2010-01-25 | G24: 부가세대지급금 | H24: ini제철 | M24: 28250000 | AA24: 10000
E25: 1095 | F25: 2010-01-25 | G25: 외상매입금 | H25: ini제철 | N25: 160750000 | AA25: 10000
E26: 1095 | F26: 2010-01-25 | G26: 보통예금 | H26: 신한은행 | N26: 150000000 | AA26: 10000
G27: 합계 | I27: 3 | J27: 건 | M27: 372350000 | N27: 372350000 | AA27: 10000
AA28: 10000
AA29: 10000
AA30: 10000
AA31: 10000
AA32: 10000
AA33: 10000
AA34: 10000
AA35: 10000
AA36: 10000
AA37: 10000
AA38: 10000
AA39: 10000
AA40: 10000
AA41: 10000
AA42: 10000
AA43: 10000
AA44: 10000
AA45: 10000
AA46: 10000
AA47: 10000
AA48: 10000
AA49: 10000
AA50: 10000
AA51: 10000
AA52: 10000
AA53: 10000
AA54: 10000
AA55: 10000
AA56: 10000
AA57: 10000
AA58: 10000
AA59: 10000
AA60: 10000
AA61: 10000
AA62: 10000
AA63: 10000
AA64: 10000
AA65: 10000
AA66: 10000
AA67: 10000
AA68: 10000
AA69: 10000
AA70: 10000
AA71: 10000
AA72: 10000
AA73: 10000
AA74: 10000
AA75: 10000
AA76: 10000
AA77: 10000
AA78: 10000
AA79: 10000
AA80: 10000
AA81: 10000
AA82: 10000
AA83: 10000
AA84: 10000
AA85: 10000
AA86: 10000
AA87: 10000
AA88: 10000
AA89: 10000
AA90: 10000
AA91: 10000
AA92: 10000
AA93: 10000
AA94: 10000
AA95: 10000
AA96: 10000
AA97: 10000
AA98: 10000
AA99: 10000
AA100: 10000
AA101: 10000
AA102: 10000
AA103: 10000
AA104: 10000
AA105: 10000
AA106: 10000
AA107: 10000
AA108: 10000
AA109: 10000
AA110: 10000
AA111: 10000
AA112: 10000
AA113: 10000
AA114: 10000
AA115: 10000
AA116: 10000
AA117: 10000
AA118: 10000
AA119: 10000
AA120: 10000
AA121: 10000
AA122: 10000
AA123: 10000
AA124: 10000
AA125: 10000
AA126: 10000
AA127: 10000
AA128: 10000
AA129: 10000
AA130: 10000
AA131: 10000
AA132: 10000
AA133: 10000
AA134: 10000
AA135: 10000
AA136: 10000
AA137: 10000
AA138: 10000
AA139: 10000
AA140: 10000
AA141: 10000
AA142: 10000
AA143: 10000
AA144: 10000
AA145: 10000
AA146: 10000
AA147: 10000
AA148: 10000
AA149: 10000
AA150: 10000
AA151: 10000
AA152: 10000
AA153: 10000
AA154: 10000
AA155: 10000
AA156: 10000
AA157: 10000
AA158: 10000
AA159: 10000
AA160: 10000
AA161: 10000
AA162: 10000
AA163: 10000
AA164: 10000
AA165: 10000
AA166: 10000
AA167: 10000
AA168: 10000
AA169: 10000
AA170: 10000
AA171: 10000
AA172: 10000
AA173: 10000
AA174: 10000
AA175: 10000
AA176: 10000
AA177: 10000
AA178: 10000
AA179: 10000
AA180: 10000
AA181: 10000
AA182: 10000
AA183: 10000
AA184: 10000
AA185: 10000
AA186: 10000
AA187: 10000
AA188: 10000
AA189: 10000
AA190: 10000
AA191: 10000
AA192: 10000
AA193: 10000
AA194: 10000
AA195: 10000
AA196: 10000
AA197: 10000
AA198: 10000
AA199: 10000
AA200: 10000
... 210 more rows

Sheet 세금계월
Z1: =SUM(AE$4:AE$30) -> 28000000 | AB1: 계정과목 | AC1: 일자 | AD1: 일자 | AE1: 거래처 | AF1: 계정과목 | BA1: =메뉴!GD4 -> 우리철강 | BB1: =메뉴!GE4 -> 김성경 | BC1: =메뉴!GF4 -> 111-11-11111 | BD1: =메뉴!GH4 -> 도소매 | BE1: =메뉴!GI4 -> 철강제품 | BF1: =메뉴!GK4 -> 서울 영등포구 문래동3가 36 | CS1: 2010-01-01 | CT1: 부터 | CU1: 2010-06-30 | CV1: 까지
Z2: =SUM(AF$4:AF$30) -> 2800000 | AB2: 매출 | AC2: =CONCATENATE(">=",CS1) -> >=40179 | AD2: =CONCATENATE("<=",CU1) -> <=40359 | AE2: 구로철강상사 | AF2: 부가세예수금 | BA2: 대표자 | BB2: 사업자번호 | BC2: 업태 | BD2: 종목 | BE2: 주소 | BF2: 전화번호 | BL2: [별지 제11호 서식]
Z3: 일자 | AA3: 품명 | AB3: 규격 | AC3: 수량 | AD3: 단가 | AE3: 대변 | AF3: 대변 | BA3: 구성회 | BB3: 555-01-98888 | BC3: 도소매 | BD3: 철강제품 | BF3: 02-364-5550 | BL3: 세 금 계 산 서 | CA3: ( | CB3: 공급받는자 | CG3: ) | CH3: 책 번 호 | CN3: 권 | CQ3: 호
Z4: 2010-05-14 | AA4: 강관#1 | AB4: 33*10M | AC4: 100 | AD4: 120000 | AE4: 12000000 | AF4: 2800000 | CB4: 보 관 용 | CH4: 일 련 번 호
Z5: 2010-05-14 | AA5: 강관#2 | AB5: 25*10m | AC5: 200 | AD5: 80000 | AE5: 16000000 | BL5: 공 급 자 | BM5: 등록번호 | BP5: =MID(BC1,1,1) -> 1 | BQ5: =MID(BC1,2,1) -> 1 | BR5: =MID(BC1,3,1) -> 1 | BS5: - | BT5: =MID(BC1,5,1) -> 1 | BU5: =MID(BC1,6,1) -> 1 | BV5: - | BW5: =MID(BC1,8,1) -> 1 | BX5: =MID(BC1,9,1) -> 1 | BY5: =MID(BC1,10,1) -> 1 | BZ5: =MID(BC1,10,1) -> 1 | CA5: =MID(BC1,10,1) -> 1 | CB5: 공급받는자 | CC5: 등록번호 | CF5: =MID(BB3,1,1) -> 5 | CG5: =MID(BB3,2,1) -> 5 | CH5: =MID(BB3,3,1) -> 5 | CI5: - | CJ5: =MID(BB3,5,1) -> 0 | CK5: =MID(BB3,6,1) -> 1 | CL5: - | CM5: =MID(BB3,8,1) -> 9 | CN5: =MID(BB3,9,1) -> 8 | CO5: =MID(BB3,10,1) -> 8 | CP5: =MID(BB3,11,1) -> 8 | CQ5: =MID(BB3,12,1) -> 8
BM7: 상 호 | BP7: =BA1 -> 우리철강 | BV7: 성명 | BW7: =BB1 -> 김성경 | CA7: 인 | CC7: 상 호 | CF7: =AE2 -> 구로철강상사 | CL7: 성명 | CM7: =BA3 -> 구성회 | CQ7: 인
BM8: (법인명) | CC8: (법인명)
BM9: 사 업 장 | BP9: =BF1 -> 서울 영등포구 문래동3가 36 | CC9: 사 업 장 | CF9: =BE3 -> 0
BM10: 주 소 | CC10: 주 소
BM11: 업 태 | BP11: =BD1 -> 도소매 | BV11: 종목 | BW11: =BE1 -> 철강제품 | CC11: 업 태 | CF11: =BC3 -> 도소매 | CL11: 종목 | CM11: =BD3 -> 철강제품
BL13: 작 성 | BP13: 공 급 가 액 | CC13: 세 액 | CM13: 비 고
BL14: 년 | BN14: 월 | BO14: 일 | BP14: 공란수 | BR14: 백 | BS14: 십 | BT14: 억 | BU14: 천 | BV14: 백 | BW14: 십 | BX14: 만 | BY14: 천 | BZ14: 백 | CA14: 십 | CB14: 일 | CC14: 십 | CD14: 억 | CE14: 천 | CF14: 백 | CG14: 십 | CH14: 만 | CI14: 천 | CJ14: 백 | CK14: 십 | CL14: 일
BL15: =YEAR(CU1) -> 2010 | BN15: =MONTH(CU1) -> 6 | BO15: =DAY(CU1) -> 30 | BP15: =COUNTBLANK(BR15:CB15) -> 3 | BR15: =IF(ISERROR(MID($Z1,LEN($Z1)-10,1)),"",MID($Z1,LEN($Z1)-10,1)) ->  | BS15: =IF(ISERROR(MID($Z1,LEN($Z1)-9,1)),"",MID($Z1,LEN($Z1)-9,1)) ->  | BT15: =IF(ISERROR(MID($Z1,LEN($Z1)-8,1)),"",MID($Z1,LEN($Z1)-8,1)) ->  | BU15: =IF(ISERROR(MID($Z1,LEN($Z1)-7,1)),"",MID($Z1,LEN($Z1)-7,1)) -> 2 | BV15: =IF(ISERROR(MID($Z1,LEN($Z1)-6,1)),"",MID($Z1,LEN($Z1)-6,1)) -> 8 | BW15: =IF(ISERROR(MID($Z1,LEN($Z1)-5,1)),"",MID($Z1,LEN($Z1)-5,1)) -> 0 | BX15: =IF(ISERROR(MID($Z1,LEN($Z1)-4,1)),"",MID($Z1,LEN($Z1)-4,1)) -> 0 | BY15: =IF(ISERROR(MID($Z1,LEN($Z1)-3,1)),"",MID($Z1,LEN($Z1)-3,1)) -> 0 | BZ15: =IF(ISERROR(MID($Z1,LEN($Z1)-2,1)),"",MID($Z1,LEN($Z1)-2,1)) -> 0 | CA15: =IF(ISERROR(MID($Z1,LEN($Z1)-1,1)),"",MID($Z1,LEN($Z1)-1,1)) -> 0 | CB15: =RIGHT($Z1) -> 0 | CC15: =IF(ISERROR(MID($Z2,LEN($Z2)-9,1)),"",MID($Z2,LEN($Z2)-9,1)) ->  | CD15: =IF(ISERROR(MID($Z2,LEN($Z2)-8,1)),"",MID($Z2,LEN($Z2)-8,1)) ->  | CE15: =IF(ISERROR(MID($Z2,LEN($Z2)-7,1)),"",MID($Z2,LEN($Z2)-7,1)) ->  | CF15: =IF(ISERROR(MID($Z2,LEN($Z2)-6,1)),"",MID($Z2,LEN($Z2)-6,1)) -> 2 | CG15: =IF(ISERROR(MID($Z2,LEN($Z2)-5,1)),"",MID($Z2,LEN($Z2)-5,1)) -> 8 | CH15: =IF(ISERROR(MID($Z2,LEN($Z2)-4,1)),"",MID($Z2,LEN($Z2)-4,1)) -> 0 | CI15: =IF(ISERROR(MID($Z2,LEN($Z2)-3,1)),"",MID($Z2,LEN($Z2)-3,1)) -> 0 | CJ15: =IF(ISERROR(MID($Z2,LEN($Z2)-2,1)),"",MID($Z2,LEN($Z2)-2,1)) -> 0 | CK15: =IF(ISERROR(MID($Z2,LEN($Z2)-1,1)),"",MID($Z2,LEN($Z2)-1,1)) -> 0 | CL15: =RIGHT($Z2) -> 0
BL16: 월 | BM16: 일 | BN16: 품 목 | BT16: 규격 | BW16: 수량 | BZ16: 단 가 | CE16: 공 급 가 액 | CK16: 세 액 | CP16: 비고
BW17: =AZ10 -> 0 | BZ17: =BA10 -> 0 | CE17: =Z1 -> 28000000 | CK17: =Z2 -> 2800000
BW18: =AZ11 -> 0 | BZ18: =BA11 -> 0 | CE18: =BB11 -> 0 | CK18: =IF($AW$37>0,INT(CE18*0.1),0) -> 0
BW19: =AZ12 -> 0 | BZ19: =BA12 -> 0 | CE19: =BB12 -> 0 | CK19: =IF($AW$37>0,INT(CE19*0.1),0) -> 0
BW20: =AZ13 -> 0 | BZ20: =BA13 -> 0 | CE20: =BB13 -> 0 | CK20: =IF($AW$37>0,INT(CE20*0.1),0) -> 0
BL21: 합계금액 | BQ21: 현 금 | BV21: 수 표 | CA21: 어 음 | CF21: 외상미수금 | CK21: 이 금액을 | CO21: 청구 | CQ21: 함
BL22: =CE17+CK17 -> 30800000 | BQ22: =AW62 -> 0 | CA22: =AW69 -> 0 | CF22: =BL22 -> 30800000
BL23: =SUM(CE17:CJ20) -> 28000000 | BQ23: =SUM(CK17:CO19) -> 2800000 | CQ23: 인쇄용지(특급)34g/m2 182mmx128mm
BL26: [별지 제11호 서식]
BL27: 세 금 계 산 서 | CA27: ( | CB27: 공급받는자 | CG27: ) | CH27: 책 번 호 | CN27: 권 | CQ27: 호
CB28: 보 관 용 | CH28: 일 련 번 호
BL29: 공 급 자 | BM29: 등록번호 | BP29: 1 | BQ29: 1 | BR29: 1 | BS29: - | BT29: 1 | BU29: 1 | BV29: - | BW29: 1 | BX29: 1 | BY29: 1 | BZ29: 1 | CA29: 1 | CB29: 공급받는자 | CC29: 등록번호 | CF29: 5 | CG29: 5 | CH29: 5 | CI29: - | CJ29: 0 | CK29: 1 | CL29: - | CM29: 9 | CN29: 8 | CO29: 8 | CP29: 8 | CQ29: 8
BM31: 상 호 | BP31: 우리철강 | BV31: 성명 | BW31: 김성경 | CA31: 인 | CC31: 상 호 | CF31: 구로철강상사 | CL31: 성명 | CM31: 구성회 | CQ31: 인
BM32: (법인명) | CC32: (법인명)
BM33: 사 업 장 | BP33: 서울 영등포구 문래동3가 36 | CC33: 사 업 장 | CF33: 0
BM34: 주 소 | CC34: 주 소
BM35: 업 태 | BP35: 도소매 | BV35: 종목 | BW35: 철강제품 | CC35: 업 태 | CF35: 도소매 | CL35: 종목 | CM35: 철강제품
BL37: 작 성 | BP37: 공 급 가 액 | CC37: 세 액 | CM37: 비 고
BL38: 년 | BN38: 월 | BO38: 일 | BP38: 공란수 | BR38: 백 | BS38: 십 | BT38: 억 | BU38: 천 | BV38: 백 | BW38: 십 | BX38: 만 | BY38: 천 | BZ38: 백 | CA38: 십 | CB38: 일 | CC38: 십 | CD38: 억 | CE38: 천 | CF38: 백 | CG38: 십 | CH38: 만 | CI38: 천 | CJ38: 백 | CK38: 십 | CL38: 일
BL39: 2010 | BN39: 6 | BO39: 30 | BP39: 3 | BU39: 2 | BV39: 8 | BW39: 0 | BX39: 0 | BY39: 0 | BZ39: 0 | CA39: 0 | CB39: 0 | CF39: 2 | CG39: 8 | CH39: 0 | CI39: 0 | CJ39: 0 | CK39: 0 | CL39: 0
BL40: 월 | BM40: 일 | BN40: 품 목 | BT40: 규격 | BW40: 수량 | BZ40: 단 가 | CE40: 공 급 가 액 | CK40: 세 액 | CP40: 비고
BW41: 0 | BZ41: 0 | CE41: 28000000 | CK41: 2800000
BW42: 0 | BZ42: 0 | CE42: 0 | CK42: 0
BW43: 0 | BZ43: 0 | CE43: 0 | CK43: 0
BW44: 0 | BZ44: 0 | CE44: 0 | CK44: 0
BL45: 합계금액 | BQ45: 현 금 | BV45: 수 표 | CA45: 어 음 | CF45: 외상미수금 | CK45: 이 금액을 | CO45: 청구 | CQ45: 함
BL46: 30800000 | BQ46: 0 | CA46: 0 | CF46: 30800000
CQ47: 인쇄용지(특급)34g/m2 182mmx128mm
E53: No. | G53: 거래 명세표 | T53: =B55 -> 2010-06-30
B54: 계산서 취급 규정
B55: =CU1 -> 2010-06-30 | I55: 공 급 자 | K55: 등 록 | N55: =BB3 -> 555-01-98888
B56: =CONCATENATE(AE2," 귀중") -> 구로철강상사 귀중 | K56: 번 호
K57: 상 호 | N57: =AE2 -> 구로철강상사 | S57: 성명 | V57: =BA3 -> 구성회
B58: 아래와 같이 계산합니다.
K59: 사업장 | N59: =BB3 -> 555-01-98888
B60: 합계 급액(공급 가액+세액) | K60: 소재지
B61: =Z1+Z2 -> 30800000 | K61: 전 화
K62: 번 호
B63: 월일 | D63: 품명 | F63: 규격 | H63: 수량 | J63: 단가 | L63: 금액 | W63: 비고
B65: =IF(Z4="","",MONTH(Z4)) -> 5 | C65: =DAY(Z4) -> 14 | D65: =AA4 -> 강관#1 | F65: =AB4 -> 33*10M | H65: =AC4 -> 100 | J65: =AD4 -> 120000 | M65: =IF(ISERROR(MID($AE4,LEN($AE4)-8,1)),"",MID($AE4,LEN($AE4)-8,1)) ->  | N65: =IF(ISERROR(MID($AE4,LEN($AE4)-7,1)),"",MID($AE4,LEN($AE4)-7,1)) -> 1 | O65: =IF(ISERROR(MID($AE4,LEN($AE4)-6,1)),"",MID($AE4,LEN($AE4)-6,1)) -> 2 | P65: =IF(ISERROR(MID($AE4,LEN($AE4)-5,1)),"",MID($AE4,LEN($AE4)-5,1)) -> 0 | Q65: =IF(ISERROR(MID($AE4,LEN($AE4)-4,1)),"",MID($AE4,LEN($AE4)-4,1)) -> 0 | R65: =IF(ISERROR(MID($AE4,LEN($AE4)-3,1)),"",MID($AE4,LEN($AE4)-3,1)) -> 0 | S65: =IF(ISERROR(MID($AE4,LEN($AE4)-2,1)),"",MID($AE4,LEN($AE4)-2,1)) -> 0 | T65: =IF(ISERROR(MID($AE4,LEN($AE4)-1,1)),"",MID($AE4,LEN($AE4)-1,1)) -> 0 | U65: =IF(AE4=0,"",RIGHT(AE4)) -> 0
B66: =IF(Z5="","",MONTH(Z5)) -> 5 | C66: =DAY(Z5) -> 14 | D66: 강관#2 | F66: 25*10m | H66: 200 | J66: 80000 | N66: 1 | O66: 6 | P66: 0 | Q66: 0 | R66: 0 | S66: 0 | T66: 0 | U66: 0
B67: =IF(Z6="","",MONTH(Z6)) ->  | C67: =DAY(Z6) -> 0 | D67: 0 | F67: 0 | H67: 0 | J67: 0
B68: =IF(Z7="","",MONTH(Z7)) ->  | C68: =DAY(Z7) -> 0 | D68: 0 | F68: 0 | H68: 0 | J68: 0
C69: 0 | D69: 0 | F69: 0 | H69: 0 | J69: 0
C70: 0 | D70: 0 | F70: 0 | H70: 0 | J70: 0
C71: 0 | D71: 0 | F71: 0 | H71: 0 | J71: 0
C72: 0 | D72: 0 | F72: 0 | H72: 0 | J72: 0
C73: 0 | D73: 0 | F73: 0 | H73: 0 | J73: 0
C74: 0 | D74: 0 | F74: 0 | H74: 0 | J74: 0
C75: 0 | D75: 0 | F75: 0 | H75: 0 | J75: 0
C76: 0 | D76: 0 | F76: 0 | H76: 0 | J76: 0
C77: 0 | D77: 0 | F77: 0 | H77: 0 | J77: 0
C78: 0 | D78: 0 | F78: 0 | H78: 0 | J78: 0
C79: 0 | D79: 0 | F79: 0 | H79: 0 | J79: 0
C80: 0 | D80: 0 | F80: 0 | H80: 0 | J80: 0
C81: 0 | D81: 0 | F81: 0 | H81: 0 | J81: 0
C82: 0 | D82: 0 | F82: 0 | H82: 0 | J82: 0
C83: 0 | D83: 0 | F83: 0 | H83: 0 | J83: 0
C84: 0 | D84: 0 | F84: 0 | H84: 0 | J84: 0
C85: 0 | D85: 0 | F85: 0 | H85: 0 | J85: 0
C86: 0 | D86: 0 | F86: 0 | H86: 0 | J86: 0
C87: 0 | D87: 0 | F87: 0 | H87: 0 | J87: 0
C88: 0 | D88: 0 | F88: 0 | H88: 0 | J88: 0
C89: 0 | D89: 0 | F89: 0 | H89: 0 | J89: 0
C90: 0 | D90: 0 | F90: 0 | H90: 0 | J90: 0
C91: 0 | D91: 0 | F91: 0 | H91: 0 | J91: 0
D92: 계 | H92: 0 | M92: =IF(ISERROR(MID($Z1,LEN($Z1)-8,1)),"",MID($Z1,LEN($Z1)-8,1)) ->  | N92: =IF(ISERROR(MID($Z1,LEN($Z1)-7,1)),"",MID($Z1,LEN($Z1)-7,1)) -> 2 | O92: =IF(ISERROR(MID($Z1,LEN($Z1)-6,1)),"",MID($Z1,LEN($Z1)-6,1)) -> 8 | P92: =IF(ISERROR(MID($Z1,LEN($Z1)-5,1)),"",MID($Z1,LEN($Z1)-5,1)) -> 0 | Q92: =IF(ISERROR(MID($Z1,LEN($Z1)-4,1)),"",MID($Z1,LEN($Z1)-4,1)) -> 0 | R92: =IF(ISERROR(MID($Z1,LEN($Z1)-3,1)),"",MID($Z1,LEN($Z1)-3,1)) -> 0 | S92: =IF(ISERROR(MID($Z1,LEN($Z1)-2,1)),"",MID($Z1,LEN($Z1)-2,1)) -> 0 | T92: =IF(ISERROR(MID($Z1,LEN($Z1)-1,1)),"",MID($Z1,LEN($Z1)-1,1)) -> 0 | U92: =IF(Z1=0,"",RIGHT(Z1)) -> 0
B93: 본 거래 명세표는 사업자가 월 합계표에 의한 세금 계산서를 발행 할 경우 매장 검인 받아 거래시마다 사용하는 계산서이며, 월 합계로 세금 계산서를 작성 할 때에 반드시 포함시켜야 한다.

Sheet 일계표
DC1: 2010-01-14 | DD1: 2010-01-14
B2: 일 / 월 계 표
D4: 2010-01-01 | E4: 2010-01-15 | F4: 까지
B5: Dr | H5: Cr
B6: 합계 | C6: 대체 | D6: 현금 | E6: 계정과목 | F6: 현금 | G6: 대체 | H6: 합계
B7: 212021000 | C7: 212021000 | D7: 0 | E7: 보통예금 | F7: 25000000 | G7: 129600000 | H7: 154600000
B8: 199364000 | C8: 199364000 | D8: 0 | E8: 외상매출금 | F8: 1500000 | G8: 24000000 | H8: 25500000
B9: 0 | C9: 0 | D9: 0 | E9: 대손충당금 | F9: 0 | G9: 453420 | H9: 453420
B10: 37445000 | C10: 37445000 | D10: 0 | E10: 부가세대지급금 | F10: 0 | G10: 0 | H10: 0
B11: 25000000 | C11: 25000000 | D11: 0 | E11: 상 품 | F11: 0 | G11: 0 | H11: 0
B12: 10000000 | C12: 10000000 | D12: 0 | E12: 비품 | F12: 0 | G12: 0 | H12: 0
B13: 0 | C13: 0 | D13: 0 | E13: 비품상각누계액 | F13: 0 | G13: 3567900 | H13: 3567900
B14: 32200000 | C14: 32200000 | D14: 0 | E14: 차량운반구 | F14: 0 | G14: 0 | H14: 0
B15: 0 | C15: 0 | D15: 0 | E15: 차량운반구상각누계액 | F15: 0 | G15: 14320220 | H15: 14320220
B16: 168000000 | C16: 118000000 | D16: 50000000 | E16: 외상매입금 | F16: 500000 | G16: 384795000 | H16: 385295000
B17: 0 | C17: 0 | D17: 0 | E17: 부가세예수금 | F17: 330000 | G17: 27983000 | H17: 28313000
B18: 0 | C18: 0 | D18: 0 | E18: 가수금 | F18: 0 | G18: 10000 | H18: 10000
B19: 0 | C19: 0 | D19: 0 | E19: 자본금 | F19: 0 | G19: 240000000 | H19: 240000000
B20: 0 | C20: 0 | D20: 0 | E20: 매출 | F20: 84000000 | G20: 214050000 | H20: 298050000
B21: 374450000 | C21: 356450000 | D21: 18000000 | E21: 매입 | F21: 0 | G21: 0 | H21: 0
B22: 13000000 | C22: 0 | D22: 13000000 | E22: 급여 | F22: 0 | G22: 0 | H22: 0
B23: 2230000 | C23: 0 | D23: 2230000 | E23: 복리후생비 | F23: 0 | G23: 0 | H23: 0
B24: 1676000 | C24: 0 | D24: 1676000 | E24: 여비교통비 | F24: 0 | G24: 0 | H24: 0
B25: 462000 | C25: 0 | D25: 462000 | E25: 차량유지비 | F25: 0 | G25: 0 | H25: 0
B26: 2500000 | C26: 2500000 | D26: 0 | E26: 연구비 | F26: 0 | G26: 0 | H26: 0
B27: 196000 | C27: 0 | D27: 196000 | E27: 소모품비 | F27: 0 | G27: 0 | H27: 0
B31: 1078544000 | C31: 992980000 | D31: 85564000 | E31: 합 계 | F31: 111330000 | G31: 1038779540 | H31: 1150109540
B32: 71565540 | D32: 71565540 | E32: 금일/전일잔액 | F32: 0 | H32: 0
B33: 1150109540 | C33: 992980000 | D33: 157129540 | E33: 총 합 계 | F33: 111330000 | G33: 1038779540 | H33: 1150109540

Sheet 시산표
D2: 합계잔액시산표
D4: 2010-01-01
D5: 2010-02-09
B6: Dr | G6: Cr
B7: 잔액 | C7: 합계 | D7: 계정과목 | E7: code | F7: 합계 | G7: 잔액
B8: 107811540 | C8: 318149540 | D8: 현금 | E8: 1201 | F8: 210338000 | G8: 0
B9: 142804000 | C9: 1122708000 | D9: 보통예금 | E9: 1203 | F9: 979904000 | G9: 0
B10: 229534000 | C10: 387034000 | D10: 외상매출금 | E10: 1207 | F10: 157500000 | G10: 0
B11: -453420 | C11: 0 | D11: 대손충당금 | E11: 1208 | F11: 453420 | G11: 0
B12: 35500000 | C12: 35500000 | D12: 받을어음 | E12: 1209 | F12: 0 | G12: 0
B13: 50000000 | C13: 50000000 | D13: 선급금 | E13: 1217 | F13: 0 | G13: 0
B14: 81355000 | C14: 81355000 | D14: 부가세대지급금 | E14: 1219 | F14: 0 | G14: 0
B15: 23000 | C15: 23000 | D15: 선급법인세 | E15: 1222 | F15: 0 | G15: 0
B16: 25000000 | C16: 25000000 | D16: 상 품 | E16: 1301 | F16: 0 | G16: 0
B17: 4000000 | C17: 4000000 | D17: 장기예금 | E17: 1401 | F17: 0 | G17: 0
B18: 231000000 | C18: 231000000 | D18: 건 물 | E18: 1502 | F18: 0 | G18: 0
B19: 13600000 | C19: 13600000 | D19: 비품 | E19: 1504 | F19: 0 | G19: 0
B20: -3567900 | C20: 0 | D20: 비품상각누계액 | E20: 1505 | F20: 3567900 | G20: 0
B21: 32000000 | C21: 32000000 | D21: 구축물 | E21: 1506 | F21: 0 | G21: 0
B22: 43740000 | C22: 43740000 | D22: 기계장치 | E22: 1508 | F22: 0 | G22: 0
B23: 32200000 | C23: 32200000 | D23: 차량운반구 | E23: 1516 | F23: 0 | G23: 0
B24: -14320220 | C24: 0 | D24: 차량운반구상각누계액 | E24: 1517 | F24: 14320220 | G24: 0
B25: 11250000 | C25: 11250000 | D25: 개발비 | E25: 1607 | F25: 0 | G25: 0
B26: 100000000 | C26: 100000000 | D26: 임차보증금 | E26: 1705 | F26: 0 | G26: 0
B27: 40000000 | C27: 40000000 | D27: 보증금 | E27: 1706 | F27: 0 | G27: 0
B28: 0 | C28: 198000000 | D28: 외상매입금 | E28: 2101 | F28: 562745000 | G28: 364745000
B29: 0 | C29: 0 | D29: 지급어음 | E29: 2104 | F29: 10000000 | G29: 10000000
B30: 0 | C30: 0 | D30: 미지급금 | E30: 2109 | F30: 18740000 | G30: 18740000
B31: 0 | C31: 0 | D31: 선수금 | E31: 2111 | F31: 30000000 | G31: 30000000
B32: 0 | C32: 0 | D32: 부가세예수금 | E32: 2114 | F32: 72083000 | G32: 72083000
B33: 0 | C33: 10000 | D33: 가수금 | E33: 2199 | F33: 10000 | G33: 0
B34: 0 | C34: 0 | D34: 임대보증금 | E34: 2214 | F34: 30000000 | G34: 30000000
B35: 0 | C35: 0 | D35: 자본금 | E35: 3101 | F35: 740000000 | G35: 740000000
B36: 0 | C36: 0 | D36: 매출 | E36: 4100 | F36: 735750000 | G36: 735750000
B37: 809950000 | C37: 809950000 | D37: 매입 | E37: 4202 | F37: 0 | G37: 0
B38: 13000000 | C38: 13000000 | D38: 급여 | E38: 4301 | F38: 0 | G38: 0
B39: 3000000 | C39: 3000000 | D39: 보험료 | E39: 4303 | F39: 0 | G39: 0
B40: 23930000 | C40: 23930000 | D40: 복리후생비 | E40: 4304 | F40: 0 | G40: 0
B41: 1946000 | C41: 1946000 | D41: 여비교통비 | E41: 4305 | F41: 0 | G41: 0
B42: 800000 | C42: 800000 | D42: 임차료 | E42: 4306 | F42: 0 | G42: 0
B43: 960000 | C43: 960000 | D43: 물류비 | E43: 4309 | F43: 0 | G43: 0
B44: 2834000 | C44: 2834000 | D44: 광고선전비 | E44: 4312 | F44: 0 | G44: 0
B45: 656000 | C45: 656000 | D45: 차량유지비 | E45: 4313 | F45: 0 | G45: 0
B46: 2500000 | C46: 2500000 | D46: 연구비 | E46: 4314 | F46: 0 | G46: 0
B47: 196000 | C47: 196000 | D47: 소모품비 | E47: 4319 | F47: 0 | G47: 0
B48: 0 | C48: 0 | D48: 수입이자 | E48: 4401 | F48: 20230000 | G48: 20230000
B49: 0 | C49: 0 | D49: 임대료 | E49: 4404 | F49: 700000 | G49: 700000
B50: 1000000 | C50: 1000000 | D50: 기부금 | E50: 4514 | F50: 0 | G50: 0
B53: 2022248000 | C53: 3586341540 | D53: 합 계 | F53: 3586341540 | G53: 2022248000

Sheet bs
C2: 대 차 대 조 표
D4: 2010-02-09
B6: 자 산 | C6: 금 | D6: 액 | F6: 부 채 | H6: 금 액
B7: I. 유동자산 | D7: 671574120 | E7: 8 | F7: I.유동부채 | H7: 495568000
B8: (1)당좌자산 | D8: 646574120 | E8: 2101 | F8: 외상매입금 | H8: 364745000
B9: 현금 | D9: 107811540 | E9: 2104 | F9: 지급어음 | H9: 10000000
B10: 보통예금 | D10: 142804000 | E10: 2109 | F10: 미지급금 | H10: 18740000
B11: 외상매출금 | C11: 229534000 | D11: 229080580 | E11: 2111 | F11: 선수금 | H11: 30000000
B12: 대손충당금 | C12: -453420 | E12: 2114 | F12: 부가세예수금 | H12: 72083000
B13: 받을어음 | D13: 35500000
B14: 선급금 | D14: 50000000 | F14: II.고정부채 | H14: 30000000
B15: 부가세대지급금 | D15: 81355000 | E15: 2214 | F15: 임대보증금 | H15: 30000000
B16: 선급법인세 | D16: 23000
F17: 부채총계 | H17: 525568000
B18: (2)재고자산 | D18: 25000000 | F18: Ⅲ.자본금 | H18: 740000000
B19: 상 품 | D19: 25000000 | E19: 3101 | F19: 자본금 | H19: 740000000
B21: 비유동자산 | F21: Ⅳ.자본잉여금
B22: 장기예금 | D22: 4000000 | F22: Ⅴ.자본조정
F23: Ⅵ.기타포괄손익누계액
F24: Ⅶ.이익잉여금 | H24: -104092000
B25: (2)유형자산 | D25: 334651880 | E25: 3506 | F25: 미처리결손금 | H25: -104092000
B26: 건 물 | D26: 231000000
B27: 비품 | C27: 13600000 | D27: 10032100
B28: 비품상각누계액 | C28: -3567900
B29: 구축물 | D29: 32000000
B30: 기계장치 | D30: 43740000
B31: 차량운반구 | C31: 32200000 | D31: 17879780
B32: 차량운반구상각누계액 | C32: -14320220
B34: (3)무형자산 | D34: 11250000
B35: 개발비 | D35: 11250000
B37: (4)기타비유동자산 | D37: 140000000
B38: 임차보증금 | D38: 100000000
B39: 보증금 | D39: 40000000
F42: 자본총계 | H42: 635908000
B43: 자산총계 | D43: 1161476000 | F43: 부채 및 자본 총계 | H43: 1161476000

Sheet pl
D2: 손 익 계 산 서
D3: 2010-01-01 | E3: 부터
D4: 2010-02-09 | E4: 까지
C5: 과 목 | D5: 금 액
B6: I. | C6: 매 출 액 | E6: 735750000
B7: II. | C7: 매출 원가 | E7: 809950000
C8: 기초상품재고액 | D8: 0
C9: 당기매입액 | D9: 809950000
C10: 기말상품재고액 | D10: 0
B11: III. | C11: 매출총손실 | E11: -74200000
B12: IV. | C12: 판매비와 일반관리비 | E12: 49822000
C13: 급여 | D13: 13000000
C14: 보험료 | D14: 3000000
C15: 복리후생비 | D15: 23930000
C16: 여비교통비 | D16: 1946000
C17: 임차료 | D17: 800000
C18: 물류비 | D18: 960000
C19: 광고선전비 | D19: 2834000
C20: 차량유지비 | D20: 656000
C21: 연구비 | D21: 2500000
C22: 소모품비 | D22: 196000
B23: V. | C23: 영업손실 | E23: -124022000
B24: VI | C24: 영업외 수익 | E24: 20930000
C25: 수입이자 | D25: 20230000
C26: 임대료 | D26: 700000
B27: VII | C27: 영업외 비용 | E27: 1000000
C28: 기부금 | D28: 1000000
B29: VIII | C29: 세전당기순손실 | E29: -104092000
B30: IX | C30: 법인세비용 | E30: 0
B31: X | C31: 당기순손실 | E31: -104092000

Sheet data
A2: 전표번호 | B2: 일자 | C2: 계정과목 | D2: 적요 | E2: 거래처 | F2: 차변 | G2: 대변 | H2: 품명 | I2: 규격 | J2: 단가 | K2: 수량 | L2: code | M2: 구분 | N2: 부서 | O2: 계좌번호 | P2: 만기일 | Q2: 지급장소 | R2: 발행인 | S2: 금리 | T2: 지급 | U2: 입금 | V2: 행 | X2: 3 | AA2: 고객구분 | AB2: 일련번호 | AC2: 고객번호 | AD2: 거래처 | AE2: 대표자 | AF2: 사업자번호 | AG2: 고유번호 | AH2: 업태 | AI2: 종목 | AJ2: 우편번호 | AK2: 주소 | AL2: 전화번호 | AM2: fax번호 | AN2: 담당자 | AO2: 휴대전화 | AP2: 전가격 | AQ2: 면세 | AR2: 세포함 | AS2: 등록일 | AT2: 특기사항 | BA2: 품명 | BB2: 규격 | BC2: 단가1 | BD2: 단가2 | BE2: 재고 | BH2: 품명 | BI2: 규격 | BJ2: 단가2 | BP2: 고객번호 | BQ2: 거래처 | BR2: 계좌번호 | BY2: 계정과목
A3: 1000 | B3: 2010-01-01 | C3: 현금 | D3: 개시현금 | E3: 우리철강 | F3: 45799540 | U3: 45799540 | V3: 10 | X3: 2010-01-01 | AA3: 99 | AD3: 우리철강 | AE3: 김성경 | AF3: 123-45-67890 | AG3: 770707-2777777 | AH3: 도소매 | AI3: 철강제품 | AJ3: 150 - 834 | AK3: 서울 영등포구 문래동3가 36 | AL3: 772-3666 | AM3: 772-3667 | BA3: 강관#1 | BB3: 33*10M | BC3: 100000 | BD3: 120000 | BE3: 160 | BH3: 강관#1 | BI3: 33*10M | BJ3: 120000 | BP3: 20003 | BQ3: 하나은행 | BR3: 411-910001-21098 | BS3: 2010-01-12 | BT3: 보통예금 | BX3: 999.99 | BY3: 자산
A4: 1000 | B4: 2010-01-01 | C4: 비품 | D4: 이월비품일체 | E4: 우림가구상사 | F4: 10000000 | X4: 2010-12-31 | AA4: 1 | AB4: 1 | AC4: 10001 | AD4: 11 | AE4: 김성길 | AF4: 394-81-27583 | AH4: 제조,무역 | AI4: 철강제품 | AJ4: 790300 | AK4: 경북 포항시 남구 괴동동 1 | AL4: 11 | AM4: 12 | AN4: 13 | AO4: 14 | AQ4: FALSE | AS4: 2010-01-04 | AT4: 박인권과장 결혼기념이 4-3 사장집 주소 서초구 무지개아파트 111동506호 | BA4: 강관#2 | BB4: 25*10m | BC4: 70000 | BD4: 80000 | BE4: 500 | BH4: 강관#2 | BI4: 25*10m | BJ4: 80000 | BP4: 20008 | BQ4: 국민은행 | BR4: 224201-04-224210 | BS4: 2010-01-13 | BX4: 1100 | BY4: 유동자산
A5: 1000 | B5: 2010-01-01 | C5: 비품상각누계액 | D5: 이월비품일체 | E5: 우리철강 | G5: 3567900 | AA5: 1 | AB5: 2 | AC5: 10002 | AD5: 12 | AE5: 허경영 | AF5: 111-11-11111 | AH5: 도소매 | AI5: 건축자재 | AQ5: FALSE | AS5: 2010-01-04 | AT5: 자본금 10억 견실한 편임, | BA5: 강철봉#1 | BB5: 4*5 | BC5: 55000 | BD5: 65000 | BE5: 0 | BH5: 강철봉#1 | BI5: 4*5 | BJ5: 65000 | BP5: 20009 | BQ5: 신한은행 | BR5: 651-231065-09 | BS5: 2010-01-13 | BT5: 보통예금 | BX5: 1200 | BY5: (1)당좌자산
A6: 1000 | B6: 2010-01-01 | C6: 외상매출금 | D6: 이월 외상매출금 | E6: 12 | F6: 45342000 | AA6: 1 | AB6: 4 | AC6: 10004 | AD6: 13 | AE6: 하갑증 | AF6: 230-81-38273 | AH6: 건설 | AI6: 주택,일반 | AP6: FALSE | AQ6: FALSE | AR6: FALSE | AS6: 2010-01-05 | BA6: 냉연강판#1 | BB6: 30mm*1*50 | BC6: 13000000 | BD6: 15500000 | BE6: 3 | BH6: 냉연강판#1 | BI6: 30mm*1*50 | BJ6: 15500000 | BP6: 20028 | BQ6: 기업은행 | BR6: 1400-234012-01-001 | BS6: 2010-01-23 | BT6: 보통예금 | BX6: 1201 | BY6: 현금
A7: 1000 | B7: 2010-01-01 | C7: 대손충당금 | D7: 대손예상액 | E7: 우리철강 | G7: 453420 | AA7: 1 | AB7: 11 | AC7: 10011 | AD7: 가람공무 | AE7: 허인천 | AF7: 333-33-33333 | AG7: 111111111 | AH7: 전문건설 | AI7: 전기,배관 | AJ7: 123-112 | AK7: 서울 구로구 고척동 341-5 | AL7: 02-3430-2301 | AP7: FALSE | AQ7: FALSE | AR7: FALSE | AS7: 2010-01-13 | BA7: 냉연강판#2 | BB7: 20mm*0.8*50 | BC7: 8000000 | BD7: 11500000 | BE7: 5 | BH7: 냉연강판#2 | BI7: 20mm*0.8*50 | BJ7: 11500000 | BP7: 20008 | BQ7: 국민은행 | BR7: 875402-04-505384 | BS7: 2010-02-01 | BT7: 보통예금 | BX7: 1202 | BY7: 현금예금
A8: 1000 | B8: 2010-01-01 | C8: 자본금 | D8: 이월자본금 | E8: 우리철강 | G8: 140000000 | AA8: 2 | AB8: 8 | AC8: 20008 | AD8: 국민은행 | AF8: 1 | AP8: FALSE | AQ8: FALSE | AR8: FALSE | AS8: 2010-01-12 | BA8: 스테인레스관#1 | BB8: 100*10 | BC8: 50000 | BD8: 70000 | BE8: 40 | BH8: 스테인레스관#1 | BI8: 100*10 | BJ8: 70000 | BP8: 20003 | BQ8: 하나은행 | BR8: 101-910001-42091 | BS8: 2010-02-01 | BT8: 보통예금 | BX8: 1203 | BY8: 보통예금
A9: 1000 | B9: 2010-01-01 | C9: 차량운반구 | D9: 7982sonata | E9: 현대차강서대리점 | F9: 32200000 | AA9: 2 | AB9: 28 | AC9: 20028 | AD9: 기업은행 | AF9: 1 | AP9: FALSE | AQ9: FALSE | AR9: FALSE | AS9: 2010-01-23 | BA9: 스테인레스관#2 | BB9: 80*10 | BC9: 40000 | BD9: 54000 | BE9: 350 | BH9: 스테인레스관#2 | BI9: 80*10 | BJ9: 54000 | BX9: 1204 | BY9: 당좌예금
A10: 1000 | B10: 2010-01-01 | C10: 차량운반구상각누계액 | D10: 7982sonata | E10: 우리철강 | G10: 14320220 | AA10: 3 | AB10: 5 | AC10: 30005 | AD10: 김희선 | AF10: 1 | AP10: FALSE | AQ10: FALSE | AR10: FALSE | BA10: 아연도강판 | BB10: 0.5*4*5 | BC10: 300000 | BD10: 350000 | BE10: 80 | BH10: 아연도강판 | BI10: 0.5*4*5 | BJ10: 350000 | BX10: 1205 | BY10: 단기성예금
A11: 1000 | B11: 2010-01-01 | C11: 상 품 | D11: 1,11,1000,1000 | E11: 11 | F11: 5000000 | H11: 철근1 | I11: 11 | J11: 1000 | K11: 5000 | AA11: 1 | AB11: 21 | AC11: 10021 | AD11: 나라컴퓨터 | AF11: 131-81-32019 | AL11: 02-3410-3293 | AP11: FALSE | AQ11: FALSE | AR11: FALSE | AS11: 2010-01-20 | AT11: NT | BA11: 아연동강판 | BB11: 0.3*4*5 | BC11: 250000 | BD11: 290000 | BE11: 10 | BH11: 아연동강판 | BI11: 0.3*4*5 | BJ11: 290000 | BX11: 1206 | BY11: 유가증권
A12: 1000 | B12: 2010-01-01 | C12: 상 품 | D12: 2,12,2000,3000 | E12: 11 | F12: 20000000 | H12: 철근2 | I12: 12 | J12: 2000 | K12: 10000 | AA12: 3 | AB12: 25 | AC12: 30025 | AD12: 남부세무서 | AF12: 1 | AP12: FALSE | AQ12: FALSE | AR12: FALSE | AS12: 2010-01-21 | BA12: 용접봉1호 | BB12: 5mm*30cm | BC12: 30000 | BD12: 50000 | BE12: 2000 | BH12: 용접봉1호 | BI12: 5mm*30cm | BJ12: 50000 | BX12: 1207 | BY12: 외상매출금
A13: 1008 | B13: 2010-01-04 | C13: 매입 | D13: 1,11,1000,1000 | E13: 11 | F13: 1000000 | H13: 철근1 | I13: 11 | J13: 1000 | K13: 1000 | V13: 4 | AA13: 4 | AB13: 33 | AC13: 40033 | AD13: 내외빌딩관리 | AE13: 염상균 | AF13: 111-04-10394 | AP13: FALSE | AQ13: FALSE | AR13: FALSE | AS13: 2010-01-26 | BA13: 철근1 | BB13: 11 | BC13: 1000 | BD13: 1200 | BE13: 3200 | BH13: 철근1 | BI13: 11 | BJ13: 1200 | BX13: 1208 | BY13: 대손충당금
A14: 1008 | B14: 2010-01-04 | C14: 매입 | D14: 2,12,2000,1000 | E14: 11 | F14: 2000000 | H14: 철근2 | I14: 12 | J14: 2000 | K14: 1000 | AA14: 3 | AB14: 29 | AC14: 30029 | AD14: 내일신문 | AE14: 장명국 | AF14: 1 | AP14: FALSE | AQ14: FALSE | AR14: FALSE | AS14: 2010-01-23 | BA14: 철근2 | BB14: 12 | BC14: 2000 | BD14: 2400 | BE14: 1000 | BH14: 철근2 | BI14: 12 | BJ14: 2400 | BX14: 1209 | BY14: 받을어음
A15: 1008 | B15: 2010-01-04 | C15: 부가세대지급금 | D15: 1 외 | E15: 11 | F15: 300000 | AA15: 1 | AB15: 7 | AC15: 10007 | AD15: 동양철관 | AE15: 양호승 | AF15: 444-81-44444 | AH15: 제조,무역 | AI15: 철관 | AJ15: 430 - 846 | AK15: 경기 안양시 만안구 박달1동 40-2 | AL15: 031-555-5555 | AN15: 이상열과장 | AP15: FALSE | AQ15: FALSE | AR15: FALSE | AS15: 2010-01-10 | BA15: 철근3 | BB15: 33 | BC15: 3000 | BD15: 4000 | BE15: 500 | BH15: 철근3 | BI15: 33 | BJ15: 4000 | BX15: 1210 | BY15: 할인어음
A16: 1008 | B16: 2010-01-04 | C16: 외상매입금 | D16: 1 외 | E16: 11 | G16: 3300000 | AA16: 1 | AB16: 26 | AC16: 10026 | AD16: 메리츠손해보험 | AF16: 1 | AP16: FALSE | AQ16: FALSE | AR16: FALSE | AS16: 2010-01-22 | BA16: 철근4 | BB16: 44 | BC16: 4000 | BD16: 5000 | BE16: 1830 | BH16: 철근4 | BI16: 44 | BJ16: 5000 | BX16: 1211 | BY16: 단기대여금
A17: 1009 | B17: 2010-01-04 | C17: 매출 | D17: 1,11,1200,1000 | E17: 12 | G17: 600000 | H17: 철근1 | I17: 11 | J17: 1200 | K17: 500 | U17: 1000000 | V17: 5 | AA17: 1 | AB17: 15 | AC17: 10015 | AD17: 미니아트 | AF17: 113-04-10002 | AH17: 소매 | AI17: 문구,잡화 | AP17: FALSE | AQ17: FALSE | AR17: FALSE | AS17: 2010-01-13 | BA17: 철근5 | BB17: 55 | BC17: 5000 | BD17: 6000 | BE17: 0 | BH17: 철근5 | BI17: 55 | BJ17: 6000 | BX17: 1212 | BY17: 주주임원관계회사단기대여금
A18: 1009 | B18: 2010-01-04 | C18: 매출 | D18: 2,12,2400,1000 | E18: 12 | G18: 1200000 | H18: 철근2 | I18: 12 | J18: 2400 | K18: 500 | AA18: 4 | AB18: 39 | AC18: 40039 | AD18: 미인클럽 | AP18: FALSE | AQ18: FALSE | AR18: FALSE | AS18: 2010-04-13 | BA18: 철근6 | BB18: 66 | BC18: 6000 | BD18: 7500 | BE18: 5 | BH18: 철근6 | BI18: 66 | BJ18: 7500 | BX18: 1213 | BY18: 종업원단기대여금
A19: 1009 | B19: 2010-01-04 | C19: 부가세예수금 | D19: 1 외 | E19: 12 | G19: 180000 | AA19: 4 | AB19: 31 | AC19: 40031 | AD19: 민관형 | AF19: 1 | AP19: FALSE | AQ19: FALSE | AR19: FALSE | AS19: 2010-01-23 | BA19: H-Beam | BB19: 50*50*10 | BC19: 1000000 | BD19: 1200000 | BE19: 30 | BH19: H-Beam | BI19: 50*50*10 | BJ19: 1200000 | BX19: 1214 | BY19: 미수금
A20: 1009 | B20: 2010-01-04 | C20: 외상매출금 | D20: 1 외 | E20: 12 | F20: 980000 | AA20: 1 | AB20: 10 | AC20: 10010 | AD20: 민주종합건재 | AE20: 김자유 | AF20: 333-33-33333 | AH20: 도소매 | AI20: 건자재 | AJ20: 123-345 | AK20: 경기 성남시 야탑동 213-2 | AP20: FALSE | AQ20: FALSE | AR20: FALSE | AS20: 2010-01-13 | BA20: I-Beam | BB20: 30*40*10 | BC20: 500000 | BD20: 650000 | BE20: 500 | BH20: I-Beam | BI20: 30*40*10 | BJ20: 650000 | BX20: 1215 | BY20: 분양미수금
A21: 1009 | B21: 2010-01-04 | C21: 현금 | D21: 1 외 | E21: 12 | F21: 1000000 | AA21: 1 | AB21: 16 | AC21: 10016 | AD21: 세창주유소 | AF21: 1 | AP21: FALSE | AQ21: FALSE | AR21: FALSE | AS21: 2010-01-13 | BA21: L형관#2 | BB21: 20*40*40 | BC21: 30000 | BD21: 45000 | BE21: 0 | BH21: L형관#2 | BI21: 20*40*40 | BJ21: 45000 | BX21: 1216 | BY21: 공사미수금
A22: 1010 | B22: 2010-01-04 | C22: 매출 | D22: 1,11,1200,200 | E22: 12 | G22: 240000 | H22: 철근1 | I22: 11 | J22: 1200 | K22: 200 | U22: 240000 | V22: 5 | AA22: 4 | AB22: 35 | AC22: 40035 | AD22: 신성상회 | AE22: 강금성 | AF22: 420-04-40093 | AL22: 02-754-6012 | AP22: FALSE | AQ22: FALSE | AR22: FALSE | AS22: 2010-01-28 | BA22: T형관#1 | BB22: 30*50*50 | BC22: 90000 | BD22: 110000 | BE22: 0 | BH22: T형관#1 | BI22: 30*50*50 | BJ22: 110000 | BX22: 1217 | BY22: 선급금
A23: 1010 | B23: 2010-01-04 | C23: 매출 | D23: 2,12,2400,200 | E23: 12 | G23: 480000 | H23: 철근2 | I23: 12 | J23: 2400 | K23: 200 | U23: 160000 | AA23: 2 | AB23: 9 | AC23: 20009 | AD23: 신한은행 | AF23: 1 | AP23: FALSE | AQ23: FALSE | AR23: FALSE | AS23: 2010-01-12 | BA23: T형관#2 | BB23: 20*40*40 | BC23: 70000 | BD23: 95000 | BH23: T형관#2 | BI23: 20*40*40 | BJ23: 95000 | BX23: 1218 | BY23: 이연법인세자산
A24: 1010 | B24: 2010-01-04 | C24: 부가세예수금 | D24: 1 외 | E24: 12 | G24: 72000 | AA24: 2 | AB24: 38 | AC24: 20038 | AD24: 신한카드 | AP24: FALSE | AQ24: FALSE | AR24: FALSE | AS24: 2010-04-13 | BX24: 1219 | BY24: 부가세대지급금
A25: 1010 | B25: 2010-01-04 | C25: 외상매출금 | D25: 1 외 | E25: 12 | F25: 392000 | AA25: 4 | AB25: 37 | AC25: 40037 | AD25: 아주자동차매매 | AE25: 박규식 | AF25: 197-38-38732 | AP25: FALSE | AQ25: FALSE | AR25: FALSE | AS25: 2010-01-29 | BX25: 1220 | BY25: 선급비용
A26: 1010 | B26: 2010-01-04 | C26: 현금 | D26: 1 외 | E26: 12 | F26: 400000 | AA26: 1 | AB26: 6 | AC26: 10006 | AD26: 연합화물 | AE26: 김인철 | AF26: 123-34-34455 | AH26: 운송 | AI26: 화물 | AJ26: 422 - 800 | AK26: 경기 부천시 소사구 괴안동 산16 | AL26: 032-321-3456 | AN26: 김사장 | AO26: 010-3949-7839 | AP26: FALSE | AQ26: FALSE | AR26: FALSE | BX26: 1221 | BY26: 미수수익
A27: 1011 | B27: 2010-01-05 | C27: 자본금 | D27: 자본금 납입 | E27: 0 | G27: 100000000 | V27: 2 | AA27: 1 | AB27: 19 | AC27: 10019 | AD27: 영종식당 | AF27: 1 | AP27: FALSE | AQ27: FALSE | AR27: FALSE | AS27: 2010-01-15 | BX27: 1222 | BY27: 선급법인세
A28: 1011 | B28: 2010-01-05 | C28: 보통예금 | D28: 자본금 납입 | E28: 하나은행 | F28: 100000000 | O28: 411-910001-21098 | AA28: 1 | AB28: 20 | AC28: 10020 | AD28: 용산건설 | AF28: 143-81-12549 | AJ28: 130-230 | AK28: 서울시 용산구 서빙고동 2305 | AL28: 02-430-4930 | AP28: FALSE | AQ28: FALSE | AR28: FALSE | AS28: 2010-01-16 | AT28: NT | BX28: 1299 | BY28: 가지급금
A29: 1012 | B29: 2010-01-05 | C29: 매입 | D29: 1,11,1000,2000 | E29: 11 | F29: 2000000 | H29: 철근1 | I29: 11 | J29: 1000 | K29: 2000 | V29: 5 | AA29: 1 | AB29: 23 | AC29: 10023 | AD29: 우림가구상사 | AF29: 601-05-230931 | AP29: FALSE | AQ29: FALSE | AR29: FALSE | AS29: 2010-01-21 | BX29: 1300 | BY29: (2)재고자산
A30: 1012 | B30: 2010-01-05 | C30: 매입 | D30: 2,12,2000,3000 | E30: 11 | F30: 6000000 | H30: 철근2 | I30: 12 | J30: 2000 | K30: 3000 | AA30: 1 | AB30: 32 | AC30: 10032 | AD30: 을지강재산업 | AE30: 우지언 | AF30: 182-81-38290 | AL30: 02-3245-6274 | AN30: 남상규 | AO30: 010-3274-5481 | AP30: FALSE | AQ30: FALSE | AR30: FALSE | AS30: 2010-01-25 | BX30: 1301 | BY30: 상 품
A31: 1012 | B31: 2010-01-05 | C31: 부가세대지급금 | D31: 1 외 | E31: 11 | F31: 800000 | AA31: 1 | AB31: 12 | AC31: 10012 | AD31: 이우차체공업 | AE31: 이성우 | AF31: 444-81-22222 | AH31: 제조 | AI31: 자체,자동차부품 | AJ31: 331-222 | AK31: 경기도 안산시 성곡동 213-4 | AL31: 031-431-2321 | AP31: FALSE | AQ31: FALSE | AR31: FALSE | AS31: 2010-01-13 | BX31: 1302 | BY31: 제 품
A32: 1012 | B32: 2010-01-05 | C32: 외상매입금 | D32: 1 외 | E32: 11 | G32: 2000000 | AA32: 2 | AB32: 17 | AC32: 20017 | AD32: 임창식 | AF32: 1 | AP32: FALSE | AQ32: FALSE | AR32: FALSE | AS32: 2010-01-13 | BX32: 1303 | BY32: 반제품
A33: 1012 | B33: 2010-01-05 | C33: 보통예금 | D33: 1 외 411-910001-21098 | E33: 하나은행 | G33: 6800000 | O33: 411-910001-21098 | AA33: 1 | AB33: 14 | AC33: 10014 | AD33: 직원 | AF33: 1 | AP33: FALSE | AQ33: FALSE | AR33: FALSE | AS33: 2010-01-13 | BX33: 1304 | BY33: 재공품
A34: 1013 | B34: 2010-01-05 | C34: 매입 | D34: 1,11,1000,1000 | E34: 11 | F34: 1000000 | H34: 철근1 | I34: 11 | J34: 1000 | K34: 1000 | V34: 5 | AA34: 2 | AB34: 3 | AC34: 20003 | AD34: 하나은행 | AF34: 1 | AP34: FALSE | AQ34: FALSE | AR34: FALSE | AS34: 2010-01-05 | BX34: 1305 | BY34: 제 조
A35: 1013 | B35: 2010-01-05 | C35: 매입 | D35: 2,12,2000,1000 | E35: 11 | F35: 2000000 | H35: 철근2 | I35: 12 | J35: 2000 | K35: 1000 | AA35: 1 | AB35: 22 | AC35: 10022 | AD35: 하나테크놀러지 | AE35: 진갑용 | AF35: 129-81-38439 | AP35: FALSE | AQ35: FALSE | AR35: FALSE | AS35: 2010-01-20 | BX35: 1306 | BY35: 원재료
A36: 1013 | B36: 2010-01-05 | C36: 부가세대지급금 | D36: 1 외 | E36: 11 | F36: 300000 | AA36: 4 | AB36: 36 | AC36: 40036 | AD36: 한일설비제작 | AE36: 임선동 | AF36: 471-81-38492 | AH36: 제조 | AI36: 기계설비 | AP36: FALSE | AQ36: FALSE | AR36: FALSE | AS36: 2010-01-29 | BX36: 1307 | BY36: 원자재
A37: 1013 | B37: 2010-01-05 | C37: 외상매입금 | D37: 1 외 | E37: 11 | G37: 1000000 | AA37: 1 | AB37: 24 | AC37: 10024 | AD37: 현대차강서대리점 | AF37: 540-45-23540 | AP37: FALSE | AQ37: FALSE | AR37: FALSE | AS37: 2010-01-21 | BX37: 1308 | BY37: 가설재
A38: 1013 | B38: 2010-01-05 | C38: 보통예금 | D38: 1 외 411-910001-21098 | E38: 하나은행 | G38: 2300000 | O38: 411-910001-21098 | AA38: 2 | AB38: 27 | AC38: 20027 | AD38: 현대화재해성 | AF38: 1 | AP38: FALSE | AQ38: FALSE | AR38: FALSE | AS38: 2010-01-22 | BX38: 1309 | BY38: 저장품
A39: 1014 | B39: 2010-01-06 | C39: 가수금 | D39: 가수입금 | E39: 12 | G39: 10000 | V39: 2 | AA39: 1 | AB39: 18 | AC39: 10018 | AD39: 형제카센타 | AF39: 1 | AP39: FALSE | AQ39: FALSE | AR39: FALSE | AS39: 2010-01-14 | BX39: 1311 | BY39: 미착상품
A40: 1014 | B40: 2010-01-06 | C40: 보통예금 | D40: 가수입금 | E40: 하나은행 | F40: 10000 | O40: 411-910001-21098 | AA40: 3 | AB40: 30 | AC40: 30030 | AD40: 홍성광고 | AE40: 김태희 | AF40: 610-34-76382 | AP40: FALSE | AQ40: FALSE | AR40: FALSE | AS40: 2010-01-23 | BX40: 1312 | BY40: 미착재료
A41: 1015 | B41: 2010-01-08 | C41: 연구비 | D41: 프포잭트q | E41: 13 | F41: 2500000 | V41: 2 | AA41: 1 | AB41: 34 | AC41: 10034 | AD41: 회기철재 | AE41: 김철웅 | AF41: 435-05-38035 | AH41: 도소매 | AI41: 철제품 | AL41: 02-345-3451 | AN41: 유과장 | AP41: FALSE | AQ41: FALSE | AR41: FALSE | AS41: 2010-01-28 | BX41: 1313 | BY41: 완성주택
A42: 1015 | B42: 2010-01-08 | C42: 보통예금 | D42: 프포잭트q | E42: 하나은행 | G42: 2500000 | O42: 411-910001-21098 | AA42: 1 | AB42: 13 | AC42: 10013 | AD42: ini제철 | AE42: 우신철 | AF42: 123-81-98263 | AH42: 제조,무역 | AI42: 철강제품 | AJ42: 310-302 | AK42: 인천시 동구 송림동 345-12 | AL42: 032-763-0981 | AP42: FALSE | AQ42: FALSE | AR42: FALSE | AS42: 2010-01-13 | BX42: 1314 | BY42: 미완성주택
A43: 1016 | B43: 2010-01-08 | C43: 여비교통비 | D43: 시내교통비 | E43: 13 | F43: 50000 | T43: 50000 | V43: 2 | BX43: 1315 | BY43: 용지
A44: 1016 | B44: 2010-01-08 | C44: 현금 | D44: 시내교통비 | E44: 13 | G44: 50000 | BX44: 1316 | BY44: 미성공사
A45: 1017 | B45: 2010-01-08 | C45: 보통예금 | D45: 예금인출 | E45: 하나은행 | G45: 20000000 | O45: 411-910001-21098 | U45: 20000000 | V45: 2 | BX45: 1400 | BY45: (1)투자자산
A46: 1017 | B46: 2010-01-08 | C46: 현금 | D46: 예금인출 | E46: 하나은행 | F46: 20000000 | BX46: 1401 | BY46: 장기예금
A47: 1018 | B47: 2010-01-08 | C47: 매출 | D47: 1,11,1200,2000 | E47: 12 | G47: 2400000 | H47: 철근1 | I47: 11 | J47: 1200 | K47: 2000 | V47: 3 | BX47: 1402 | BY47: 장기투자증권
A48: 1018 | B48: 2010-01-08 | C48: 부가세예수금 | D48: 1 | E48: 12 | G48: 240000 | BX48: 1403 | BY48: 지분법적용투자주식
A49: 1018 | B49: 2010-01-08 | C49: 외상매출금 | D49: 1 | E49: 12 | F49: 2640000 | BX49: 1404 | BY49: 장기대여금
A50: 1019 | B50: 2010-01-08 | C50: 매입 | D50: 1,11,1100,1000 | E50: 11 | F50: 1100000 | H50: 철근1 | I50: 11 | J50: 1100 | K50: 1000 | T50: 1000000 | V50: 5 | BX50: 1405 | BY50: 관계회사장기대여금
A51: 1019 | B51: 2010-01-08 | C51: 매입 | D51: 2,12,1950,1000 | E51: 11 | F51: 1950000 | H51: 철근2 | I51: 12 | J51: 1950 | K51: 1000 | BX51: 1406 | BY51: 주주임원종업원장기대여금
A52: 1019 | B52: 2010-01-08 | C52: 부가세대지급금 | D52: 1 외 | E52: 11 | F52: 305000 | BX52: 1407 | BY52: 투자부동산
A53: 1019 | B53: 2010-01-08 | C53: 외상매입금 | D53: 1 외 | E53: 11 | G53: 2355000 | BX53: 1500 | BY53: (2)유형자산
A54: 1019 | B54: 2010-01-08 | C54: 현금 | D54: 1 외 | E54: 11 | G54: 1000000 | BX54: 1501 | BY54: 토 지
A55: 1020 | B55: 2010-01-09 | C55: 외상매출금 | D55: 외상대금 입금 | E55: 12 | G55: 1500000 | V55: 2 | BX55: 1502 | BY55: 건 물
A56: 1020 | B56: 2010-01-09 | C56: 보통예금 | D56: 외상대금 입금 | E56: 하나은행 | F56: 1500000 | O56: 411-910001-21098 | BX56: 1503 | BY56: 건물상각누계액
A57: 1021 | B57: 2010-01-09 | C57: 여비교통비 | D57: 시외출장여비 | E57: 김희선 | F57: 52000 | T57: 52000 | V57: 2 | BX57: 1504 | BY57: 비품
A58: 1021 | B58: 2010-01-09 | C58: 현금 | D58: 시외출장여비 | E58: 김희선 | G58: 52000 | BX58: 1505 | BY58: 비품상각누계액
A59: 1022 | B59: 2010-01-09 | C59: 외상매출금 | D59: 외상대금입금 | E59: 12 | G59: 1500000 | U59: 1500000 | V59: 2 | BX59: 1506 | BY59: 구축물
A60: 1022 | B60: 2010-01-09 | C60: 현금 | D60: 외상대금입금 | E60: 12 | F60: 1500000 | BX60: 1507 | BY60: 구축물상각누계액
A61: 1023 | B61: 2010-01-09 | C61: 매출 | D61: 2,12,2400,1000 | E61: 13 | G61: 2400000 | H61: 철근2 | I61: 12 | J61: 2400 | K61: 1000 | V61: 4 | BX61: 1508 | BY61: 기계장치
A62: 1023 | B62: 2010-01-09 | C62: 매출 | D62: 1,11,1200,500 | E62: 13 | G62: 600000 | H62: 철근1 | I62: 11 | J62: 1200 | K62: 500 | BX62: 1509 | BY62: 기계장치상각누계액
A63: 1023 | B63: 2010-01-09 | C63: 부가세예수금 | D63: 2 외 | E63: 13 | G63: 300000 | BX63: 1510 | BY63: 선박
A64: 1023 | B64: 2010-01-09 | C64: 외상매출금 | D64: 2 외 | E64: 13 | F64: 3300000 | BX64: 1511 | BY64: 선박상각누계액
A65: 1024 | B65: 2010-01-09 | C65: 매입 | D65: 1,11,1000,1000 | E65: 11 | F65: 1000000 | H65: 철근1 | I65: 11 | J65: 1000 | K65: 1000 | V65: 4 | BX65: 1512 | BY65: 항공기
A66: 1024 | B66: 2010-01-09 | C66: 매입 | D66: 2,12,2000,1000 | E66: 11 | F66: 2000000 | H66: 철근2 | I66: 12 | J66: 2000 | K66: 1000 | BX66: 1513 | BY66: 항공기상각누계액
A67: 1024 | B67: 2010-01-09 | C67: 부가세대지급금 | D67: 1 외 | E67: 11 | F67: 300000 | BX67: 1514 | BY67: 건설용장비
A68: 1024 | B68: 2010-01-09 | C68: 외상매입금 | D68: 1 외 | E68: 11 | G68: 3300000 | BX68: 1515 | BY68: 건설용장비상각누계액
A69: 1025 | B69: 2010-01-09 | C69: 매입 | D69: 3,33,3000,1000 | E69: 11 | F69: 3000000 | H69: 철근3 | I69: 33 | J69: 3000 | K69: 1000 | T69: 2000000 | V69: 6 | BX69: 1516 | BY69: 차량운반구
A70: 1025 | B70: 2010-01-09 | C70: 매입 | D70: 4,44,4000,1000 | E70: 11 | F70: 4000000 | H70: 철근4 | I70: 44 | J70: 4000 | K70: 1000 | BX70: 1517 | BY70: 차량운반구상각누계액
A71: 1025 | B71: 2010-01-09 | C71: 매입 | D71: 5,55,5000,1000 | E71: 11 | F71: 5000000 | H71: 철근5 | I71: 55 | J71: 5000 | K71: 1000 | BX71: 1518 | BY71: 건설중인 자산
A72: 1025 | B72: 2010-01-09 | C72: 부가세대지급금 | D72: 3 외 | E72: 11 | F72: 1200000 | BX72: 1600 | BY72: (3)무형자산
A73: 1025 | B73: 2010-01-09 | C73: 외상매입금 | D73: 3 외 | E73: 11 | G73: 11200000 | BX73: 1601 | BY73: 영업권
A74: 1025 | B74: 2010-01-09 | C74: 현금 | D74: 3 외 | E74: 11 | G74: 2000000 | BX74: 1602 | BY74: 산업재산권
A75: 1026 | B75: 2010-01-09 | C75: 외상매입금 | D75: 외상매입대금지급 | E75: 11 | F75: 5000000 | V75: 2 | BX75: 1603 | BY75: 광업권
A76: 1026 | B76: 2010-01-09 | C76: 보통예금 | D76: 외상매입대금지급 | E76: 하나은행 | G76: 5000000 | O76: 411-910001-21098 | BX76: 1604 | BY76: 어업권
A77: 1027 | B77: 2010-01-10 | C77: 매입 | D77: 1,11,1000,1000 | E77: 11 | F77: 1000000 | H77: 철근1 | I77: 11 | J77: 1000 | K77: 1000 | T77: 1000000 | V77: 8 | BX77: 1605 | BY77: 차지권
A78: 1027 | B78: 2010-01-10 | C78: 매입 | D78: 2,12,2000,1000 | E78: 11 | F78: 2000000 | H78: 철근2 | I78: 12 | J78: 2000 | K78: 1000 | T78: 2000000 | BX78: 1606 | BY78: 창업비
A79: 1027 | B79: 2010-01-10 | C79: 매입 | D79: 3,33,3000,1000 | E79: 11 | F79: 3000000 | H79: 철근3 | I79: 33 | J79: 3000 | K79: 1000 | T79: 2000000 | BX79: 1607 | BY79: 개발비
A80: 1027 | B80: 2010-01-10 | C80: 매입 | D80: 4,44,4000,1000 | E80: 11 | F80: 4000000 | H80: 철근4 | I80: 44 | J80: 4000 | K80: 1000 | BX80: 1608 | BY80: 사용수익기부자산가액
A81: 1027 | B81: 2010-01-10 | C81: 매입 | D81: 5,55,5000,1000 | E81: 11 | F81: 5000000 | H81: 철근5 | I81: 55 | J81: 5000 | K81: 1000 | BX81: 1609 | BY81: 개업비
A82: 1027 | B82: 2010-01-10 | C82: 부가세대지급금 | D82: 1 외 | E82: 11 | F82: 1500000 | BX82: 1610 | BY82: 사채발행비
A83: 1027 | B83: 2010-01-10 | C83: 외상매입금 | D83: 1 외 | E83: 11 | G83: 11500000 | BX83: 1700 | BY83: (4)기타비유동자산
A84: 1027 | B84: 2010-01-10 | C84: 현금 | D84: 1 외 | E84: 11 | G84: 5000000 | BX84: 1701 | BY84: 장기외상매출금
A85: 1028 | B85: 2010-01-10 | C85: 매입 | D85: 강관#1,33*10M,100000,100 | E85: 동양철관 | F85: 10000000 | H85: 강관#1 | I85: 33*10M | J85: 100000 | K85: 100 | V85: 4 | BX85: 1702 | BY85: 장기받을어음
A86: 1028 | B86: 2010-01-10 | C86: 매입 | D86: 강관#2,25*10m,70000,100 | E86: 동양철관 | F86: 7000000 | H86: 강관#2 | I86: 25*10m | J86: 70000 | K86: 100 | BX86: 1703 | BY86: 장기미수금
A87: 1028 | B87: 2010-01-10 | C87: 부가세대지급금 | D87: 강관#1 외 | E87: 동양철관 | F87: 1700000 | BX87: 1704 | BY87: 장기선급금
A88: 1028 | B88: 2010-01-10 | C88: 외상매입금 | D88: 강관#1 외 | E88: 동양철관 | G88: 18700000 | BX88: 1705 | BY88: 임차보증금
A89: 1029 | B89: 2010-01-11 | C89: 외상매입금 | D89: 외상대금지급 | E89: 11 | F89: 1000000 | V89: 2 | BX89: 1706 | BY89: 보증금
A90: 1029 | B90: 2010-01-11 | C90: 보통예금 | D90: 외상대금지급 | E90: 하나은행 | G90: 1000000 | O90: 411-910001-21098 | BX90: 1707 | BY90: 이연법인세자산
A91: 1030 | B91: 2010-01-11 | C91: 매입 | D91: 강관#1,33*10M,100000,100 | E91: 동양철관 | F91: 10000000 | H91: 강관#1 | I91: 33*10M | J91: 100000 | K91: 100 | V91: 8 | BX91: 2100 | BY91: Ⅰ.유동부채
A92: 1030 | B92: 2010-01-11 | C92: 매입 | D92: 강관#2,25*10m,70000,100 | E92: 동양철관 | F92: 7000000 | H92: 강관#2 | I92: 25*10m | J92: 70000 | K92: 100 | BX92: 2101 | BY92: 외상매입금
A93: 1030 | B93: 2010-01-11 | C93: 매입 | D93: 스테인레스관#1,100*10,50000,100 | E93: 동양철관 | F93: 5000000 | H93: 스테인레스관#1 | I93: 100*10 | J93: 50000 | K93: 100 | BX93: 2102 | BY93: 단기차입금
A94: 1030 | B94: 2010-01-11 | C94: 매입 | D94: 스테인레스관#2,80*10,40000,100 | E94: 동양철관 | F94: 4000000 | H94: 스테인레스관#2 | I94: 80*10 | J94: 40000 | K94: 100 | BX94: 2103 | BY94: 유동성사채
A95: 1030 | B95: 2010-01-11 | C95: 매입 | D95: H-Beam,50*50*10,1000000,30 | E95: 동양철관 | F95: 30000000 | H95: H-Beam | I95: 50*50*10 | J95: 1000000 | K95: 30 | BX95: 2104 | BY95: 지급어음
A96: 1030 | B96: 2010-01-11 | C96: 매입 | D96: I-Beam,30*40*10,500000,60 | E96: 동양철관 | F96: 30000000 | H96: I-Beam | I96: 30*40*10 | J96: 500000 | K96: 60 | BX96: 2105 | BY96: 유동성장기차입금
A97: 1030 | B97: 2010-01-11 | C97: 부가세대지급금 | D97: 강관#1 외 | E97: 동양철관 | F97: 8600000 | BX97: 2107 | BY97: 어음차입금
A98: 1030 | B98: 2010-01-11 | C98: 외상매입금 | D98: 강관#1 외 | E98: 동양철관 | G98: 94600000 | BX98: 2108 | BY98: 공사손실충당부채
A99: 1031 | B99: 2010-01-13 | C99: 매출 | D99: 강관#1,33*10M,120000,100 | E99: 민주종합건재 | G99: 12000000 | H99: 강관#1 | I99: 33*10M | J99: 120000 | K99: 100 | U99: 10000000 | V99: 8 | BX99: 2109 | BY99: 미지급금
A100: 1031 | B100: 2010-01-13 | C100: 매출 | D100: 강관#2,25*10m,8000,100 | E100: 민주종합건재 | G100: 800000 | H100: 철근5 | I100: 55 | J100: 8000 | K100: 100 | BX100: 2110 | BY100: 미지급배당금
A101: 1031 | B101: 2010-01-13 | C101: 매출 | D101: H-Beam,50*50*10,1200000,10 | E101: 민주종합건재 | G101: 12000000 | H101: H-Beam | I101: 50*50*10 | J101: 1200000 | K101: 10 | BX101: 2111 | BY101: 선수금
A102: 1031 | B102: 2010-01-13 | C102: 매출 | D102: I-Beam,30*40*10,650000,20 | E102: 민주종합건재 | G102: 13000000 | H102: I-Beam | I102: 30*40*10 | J102: 650000 | K102: 20 | BX102: 2112 | BY102: 공사선수금
A103: 1031 | B103: 2010-01-13 | C103: 부가세예수금 | D103: 강관#1 외 | E103: 민주종합건재 | G103: 3780000 | BX103: 2113 | BY103: 분양선수금
A104: 1031 | B104: 2010-01-13 | C104: 외상매출금 | D104: 강관#1 외 | E104: 민주종합건재 | F104: 10000000 | BX104: 2114 | BY104: 부가세예수금
A105: 1031 | B105: 2010-01-13 | C105: 보통예금 | D105: 강관#1 외 651-231065-09 | E105: 신한은행 | F105: 21580000 | O105: 651-231065-09 | BX105: 2115 | BY105: 제세예수금
A106: 1031 | B106: 2010-01-13 | C106: 현금 | D106: 강관#1 외 | E106: 민주종합건재 | F106: 10000000 | BX106: 2116 | BY106: 기타예수금
A107: 1032 | B107: 2010-01-13 | C107: 매출 | D107: 1,11,1200,1000 | E107: 가람공무 | G107: 1200000 | H107: 철근1 | I107: 11 | J107: 1200 | K107: 1000 | V107: 9 | BX107: 2117 | BY107: 수선충당부채
A108: 1032 | B108: 2010-01-13 | C108: 매출 | D108: 2,12,2400,2000 | E108: 가람공무 | G108: 4800000 | H108: 철근2 | I108: 12 | J108: 2400 | K108: 2000 | BX108: 2118 | BY108: 미지급법인세
A109: 1032 | B109: 2010-01-13 | C109: 매출 | D109: 3,33,4000,500 | E109: 가람공무 | G109: 2000000 | H109: 철근3 | I109: 33 | J109: 4000 | K109: 500 | BX109: 2119 | BY109: 이연법인세부채
A110: 1032 | B110: 2010-01-13 | C110: 매출 | D110: 4,44,5000,500 | E110: 가람공무 | G110: 2500000 | H110: 철근4 | I110: 44 | J110: 5000 | K110: 500 | BX110: 2120 | BY110: 미지급비용
A111: 1032 | B111: 2010-01-13 | C111: 매출 | D111: 5,55,6000,500 | E111: 가람공무 | G111: 3000000 | H111: 철근5 | I111: 55 | J111: 6000 | K111: 500 | BX111: 2121 | BY111: 선수수익
A112: 1032 | B112: 2010-01-13 | C112: 매출 | D112: 강관#1,33*10M,120000,50 | E112: 가람공무 | G112: 6000000 | H112: 강관#1 | I112: 33*10M | J112: 120000 | K112: 50 | BX112: 2199 | BY112: 가수금
A113: 1032 | B113: 2010-01-13 | C113: 부가세예수금 | D113: 1 외 | E113: 가람공무 | G113: 1950000 | BX113: 2200 | BY113: Ⅱ.비유동부채
A114: 1032 | B114: 2010-01-13 | C114: 외상매출금 | D114: 1 외 | E114: 가람공무 | F114: 10000000 | BX114: 2201 | BY114: 사 채
A115: 1032 | B115: 2010-01-13 | C115: 보통예금 | D115: 1 외 224201-04-224210 | E115: 국민은행 | F115: 11450000 | O115: 224201-04-224210 | BX115: 2202 | BY115: 전환사채
A116: 1033 | B116: 2010-01-13 | C116: 매입 | D116: 1,11,1050,1000 | E116: ini제철 | F116: 1050000 | H116: 철근1 | I116: 11 | J116: 1050 | K116: 1000 | T116: 1050000 | V116: 16 | BX116: 2203 | BY116: 신주인수권부사채
A117: 1033 | B117: 2010-01-13 | C117: 매입 | D117: 2,12,2100,500 | E117: ini제철 | F117: 1050000 | H117: 철근2 | I117: 12 | J117: 2100 | K117: 500 | T117: 1050000 | BX117: 2204 | BY117: 장기차입금
A118: 1033 | B118: 2010-01-13 | C118: 매입 | D118: 3,33,3200,2000 | E118: ini제철 | F118: 6400000 | H118: 철근3 | I118: 33 | J118: 3200 | K118: 2000 | T118: 6400000 | BX118: 2205 | BY118: 관계회사장기차입금
A119: 1033 | B119: 2010-01-13 | C119: 매입 | D119: 4,44,4100,2000 | E119: ini제철 | F119: 8200000 | H119: 철근4 | I119: 44 | J119: 4100 | K119: 2000 | T119: 1500000 | BX119: 2206 | BY119: 주주임원종업원장기차입금
A120: 1033 | B120: 2010-01-13 | C120: 매입 | D120: 5,55,5200,1000 | E120: ini제철 | F120: 5200000 | H120: 철근5 | I120: 55 | J120: 5200 | K120: 1000 | BX120: 2207 | BY120: 장기성외상매입금
A121: 1033 | B121: 2010-01-13 | C121: 매입 | D121: 강관#1,33*10M,100000,50 | E121: ini제철 | F121: 5000000 | H121: 강관#1 | I121: 33*10M | J121: 100000 | K121: 50 | BX121: 2208 | BY121: 장기성지급어음
A122: 1033 | B122: 2010-01-13 | C122: 매입 | D122: 강관#2,25*10m,70000,50 | E122: ini제철 | F122: 3500000 | H122: 강관#2 | I122: 25*10m | J122: 70000 | K122: 50 | BX122: 2209 | BY122: 퇴직급여충당부채
A123: 1033 | B123: 2010-01-13 | C123: 매입 | D123: 스테인레스관#1,100*10,50000,100 | E123: ini제철 | F123: 5000000 | H123: 스테인레스관#1 | I123: 100*10 | J123: 50000 | K123: 100 | BX123: 2210 | BY123: 단체퇴직급여충당부채
A124: 1033 | B124: 2010-01-13 | C124: 매입 | D124: 스테인레스관#2,80*10,40000,100 | E124: ini제철 | F124: 4000000 | H124: 스테인레스관#2 | I124: 80*10 | J124: 40000 | K124: 100 | BX124: 2211 | BY124: 장기제품보증충당부채
A125: 1033 | B125: 2010-01-13 | C125: 매입 | D125: 아연도강판,0.5*4*5,300000,100 | E125: ini제철 | F125: 30000000 | H125: 아연도강판 | I125: 0.5*4*5 | J125: 300000 | K125: 100 | BX125: 2212 | BY125: 이연법인세부채
A126: 1033 | B126: 2010-01-13 | C126: 매입 | D126: 아연동강판,0.3*4*5,250000,100 | E126: ini제철 | F126: 25000000 | H126: 아연동강판 | I126: 0.3*4*5 | J126: 250000 | K126: 100 | BX126: 2213 | BY126: 장기공사선수금
A127: 1033 | B127: 2010-01-13 | C127: 매입 | D127: H-Beam,50*50*10,1000000,100 | E127: ini제철 | F127: 100000000 | H127: H-Beam | I127: 50*50*10 | J127: 1000000 | K127: 100 | BX127: 2214 | BY127: 임대보증금
A128: 1033 | B128: 2010-01-13 | C128: 매입 | D128: I-Beam,30*40*10,500000,60 | E128: ini제철 | F128: 30000000 | H128: I-Beam | I128: 30*40*10 | J128: 500000 | K128: 60 | BX128: 3000 | BY128: 부 채 총 계(Ⅰ+Ⅱ)
A129: 1033 | B129: 2010-01-13 | C129: 부가세대지급금 | D129: 1 외 | E129: ini제철 | F129: 22440000 | BX129: 3000 | BY129: 자 본 총 계(Ⅲ+～Ⅶ)
A130: 1033 | B130: 2010-01-13 | C130: 외상매입금 | D130: 1 외 | E130: ini제철 | G130: 236840000 | BX130: 3100 | BY130: Ⅲ.자본금
A131: 1033 | B131: 2010-01-13 | C131: 현금 | D131: 1 외 | E131: ini제철 | G131: 10000000 | BX131: 3101 | BY131: 자본금
A132: 1034 | B132: 2010-01-13 | C132: 외상매입금 | D132: 외상대금지급 | E132: 동양철관 | F132: 50000000 | V132: 2 | BX132: 3102 | BY132: 보통주자본금
A133: 1034 | B133: 2010-01-13 | C133: 보통예금 | D133: 외상대금지급 | E133: 하나은행 | G133: 50000000 | O133: 411-910001-21098 | BX133: 3103 | BY133: 우선주자본금
A134: 1035 | B134: 2010-01-13 | C134: 외상매출금 | D134: 외상대금 회수 | E134: 12 | G134: 1000000 | V134: 2 | BX134: 3200 | BY134: Ⅳ.자본잉여금
A135: 1035 | B135: 2010-01-13 | C135: 보통예금 | D135: 외상대금 회수 | E135: 하나은행 | F135: 1000000 | O135: 411-910001-21098 | BX135: 3201 | BY135: 주식발행초과금
A136: 1036 | B136: 2010-01-13 | C136: 보통예금 | D136: 예금인출 | E136: 국민은행 | G136: 5000000 | O136: 224201-04-224210 | U136: 5000000 | V136: 2 | BX136: 3202 | BY136: 감자차익
A137: 1036 | B137: 2010-01-13 | C137: 현금 | D137: 예금인출 | E137: 국민은행 | F137: 5000000 | BX137: 3203 | BY137: 합병차익
A138: 1037 | B138: 2010-01-13 | C138: 여비교통비 | D138: 시내 출장여비 | E138: 김희선 | F138: 120000 | T138: 120000 | V138: 2 | BX138: 3204 | BY138: 재평가적립금
A139: 1037 | B139: 2010-01-13 | C139: 현금 | D139: 시내 출장여비 | E139: 김희선 | G139: 120000 | BX139: 3300 | BY139: Ⅴ.자본조정
A140: 1038 | B140: 2010-01-13 | C140: 급여 | D140: 1 월분 급여지급 | E140: 직원 | F140: 3000000 | T140: 3000000 | V140: 2 | BX140: 3301 | BY140: 주식할인발행차금
A141: 1038 | B141: 2010-01-13 | C141: 현금 | D141: 1 월분 급여지급 | E141: 직원 | G141: 3000000 | BX141: 3302 | BY141: 배당건설이자
A142: 1039 | B142: 2010-01-13 | C142: 외상매입금 | D142: 외상대급지급 | E142: 11 | F142: 1000000 | V142: 2 | BX142: 3303 | BY142: 자기주식
A143: 1039 | B143: 2010-01-13 | C143: 보통예금 | D143: 외상대급지급 | E143: 하나은행 | G143: 1000000 | O143: 411-910001-21098 | BX143: 3304 | BY143: 미교부주식배당금
A144: 1040 | B144: 2010-01-13 | C144: 여비교통비 | D144: 직원해외여비 | E144: 직원 | F144: 1200000 | T144: 1200000 | V144: 2 | BX144: 3400 | BY144: Ⅵ.기타포괄손익누계액
A145: 1040 | B145: 2010-01-13 | C145: 현금 | D145: 직원해외여비 | E145: 직원 | G145: 1200000 | BX145: 3401 | BY145: 매도가능증권평가손익
A146: 1041 | B146: 2010-01-13 | C146: 외상매입금 | D146: 외상대금지급 | E146: 동양철관 | F146: 1000000 | V146: 2 | BX146: 3402 | BY146: 해외사업환산손익
A147: 1041 | B147: 2010-01-13 | C147: 보통예금 | D147: 외상대금지급 | E147: 신한은행 | G147: 1000000 | O147: 651-231065-09 | BX147: 3403 | BY147: 지분법자본변동
A148: 1042 | B148: 2010-01-13 | C148: 외상매출금 | D148: 외상대금 입금 | E148: 13 | G148: 1500000 | V148: 2 | BX148: 3404 | BY148: 파생상품평가손익
A149: 1042 | B149: 2010-01-13 | C149: 보통예금 | D149: 외상대금 입금 | E149: 국민은행 | F149: 1500000 | O149: 224201-04-224210 | BX149: 3500 | BY149: Ⅶ.이익잉여금
A150: 1043 | B150: 2010-01-13 | C150: 복리후생비 | D150: 직원 신체단련비 | E150: 직원 | F150: 2000000 | T150: 2000000 | V150: 2 | BX150: 3501 | BY150: 이익준비금
A151: 1043 | B151: 2010-01-13 | C151: 현금 | D151: 직원 신체단련비 | E151: 직원 | G151: 2000000 | BX151: 3502 | BY151: 기업합리화적립금
A152: 1044 | B152: 2010-01-13 | C152: 소모품비 | D152: 사무용문구류 구입 | E152: 미니아트 | F152: 196000 | T152: 196000 | V152: 2 | BX152: 3503 | BY152: 재무구조개선적립금
A153: 1044 | B153: 2010-01-13 | C153: 현금 | D153: 사무용문구류 구입 | E153: 미니아트 | G153: 196000 | BX153: 3504 | BY153: 임의적립금
A154: 1045 | B154: 2010-01-13 | C154: 차량유지비 | D154: 7982유류대 | E154: 세창주유소 | F154: 83000 | T154: 83000 | V154: 2 | BX154: 3505 | BY154: 별도적립금
A155: 1045 | B155: 2010-01-13 | C155: 현금 | D155: 7982유류대 | E155: 세창주유소 | G155: 83000 | BX155: 3506 | BY155: 미처분이익잉여금
A156: 1046 | B156: 2010-01-13 | C156: 외상매입금 | D156: 외상대금 입금 | E156: 13 | G156: 500000 | U156: 500000 | V156: 2 | BX156: 3507 | BY156: 이월이익잉여금
A157: 1046 | B157: 2010-01-13 | C157: 현금 | D157: 외상대금 입금 | E157: 13 | F157: 500000 | BX157: 4100 | BY157: Ⅰ.매출액
A158: 1047 | B158: 2010-01-14 | C158: 매출 | D158: 1,11,1150,1000 | E158: 민주종합건재 | G158: 1150000 | H158: 철근1 | I158: 11 | J158: 1150 | K158: 1000 | U158: 1150000 | V158: 7 | BX158: 4100 | BY158: 매출
A159: 1047 | B159: 2010-01-14 | C159: 매출 | D159: 2,12,2300,1500 | E159: 민주종합건재 | G159: 3450000 | H159: 철근2 | I159: 12 | J159: 2300 | K159: 1500 | U159: 3450000 | BX159: 4101 | BY159: 상품매출
A160: 1047 | B160: 2010-01-14 | C160: 매출 | D160: 3,33,3800,1500 | E160: 민주종합건재 | G160: 5700000 | H160: 철근3 | I160: 33 | J160: 3800 | K160: 1500 | U160: 5400000 | BX160: 4102 | BY160: 제품매출
A161: 1047 | B161: 2010-01-14 | C161: 매출 | D161: 4,44,4800,1000 | E161: 민주종합건재 | G161: 4800000 | H161: 철근4 | I161: 44 | J161: 4800 | K161: 1000 | BX161: 4103 | BY161: 공사수입
A162: 1047 | B162: 2010-01-14 | C162: 부가세예수금 | D162: 1 외 | E162: 민주종합건재 | G162: 1510000 | BX162: 4104 | BY162: 운송수입
A163: 1047 | B163: 2010-01-14 | C163: 보통예금 | D163: 1 외 224201-04-224210 | E163: 국민은행 | F163: 6610000 | O163: 224201-04-224210 | BX163: 4105 | BY163: 부동산임대수입
A164: 1047 | B164: 2010-01-14 | C164: 현금 | D164: 1 외 | E164: 민주종합건재 | F164: 10000000 | BX164: 4106 | BY164: 분양수입
A165: 1048 | B165: 2010-01-14 | C165: 매출 | D165: 강관#1,33*10M,120000,20 | E165: 13 | G165: 2400000 | H165: 강관#1 | I165: 33*10M | J165: 120000 | K165: 20 | V165: 4 | BX165: 4107 | BY165: 기타매출
A166: 1048 | B166: 2010-01-14 | C166: 부가세예수금 | D166: 강관#1 | E166: 13 | G166: 240000 | BX166: 4200 | BY166: Ⅱ.매출원가
A167: 1048 | B167: 2010-01-14 | C167: 외상매출금 | D167: 강관#1 | E167: 13 | F167: 1800000 | BX167: 4201 | BY167: 이월상품
A168: 1048 | B168: 2010-01-14 | C168: 보통예금 | D168: 강관#1 651-231065-09 | E168: 신한은행 | F168: 840000 | O168: 651-231065-09 | BX168: 4202 | BY168: 매입
A169: 1049 | B169: 2010-01-14 | C169: 매출 | D169: 강관#1,33*10M,120000,20 | E169: 13 | G169: 2400000 | H169: 강관#1 | I169: 33*10M | J169: 120000 | K169: 20 | U169: 1300000 | V169: 4 | BX169: 4300 | BY169: Ⅳ.판매비와관리비
A170: 1049 | B170: 2010-01-14 | C170: 부가세예수금 | D170: 강관#1 | E170: 13 | G170: 240000 | BX170: 4301 | BY170: 급여
A171: 1049 | B171: 2010-01-14 | C171: 외상매출금 | D171: 강관#1 | E171: 13 | F171: 1340000 | BX171: 4302 | BY171: 퇴직급여(충당금전입액포함)
A172: 1049 | B172: 2010-01-14 | C172: 현금 | D172: 강관#1 | E172: 13 | F172: 1300000 | BX172: 4303 | BY172: 보험료
A173: 1051 | B173: 2010-01-14 | C173: 외상매입금 | D173: 외상대금 지급 | E173: 동양철관 | F173: 10000000 | V173: 2 | BX173: 4304 | BY173: 복리후생비
A174: 1051 | B174: 2010-01-14 | C174: 보통예금 | D174: 외상대금 지급 | E174: 신한은행 | G174: 10000000 | O174: 651-231065-09 | BX174: 4305 | BY174: 여비교통비
A175: 1052 | B175: 2010-01-14 | C175: 여비교통비 | D175: 시내출장여비 | E175: 임창식 | F175: 74000 | T175: 74000 | V175: 2 | BX175: 4306 | BY175: 임차료
A176: 1052 | B176: 2010-01-14 | C176: 현금 | D176: 시내출장여비 | E176: 임창식 | G176: 74000 | BX176: 4307 | BY176: 접대비
A177: 1053 | B177: 2010-01-14 | C177: 차량유지비 | D177: 7974수리비 | E177: 형제카센타 | F177: 329000 | T177: 329000 | V177: 2 | BX177: 4308 | BY177: 수선유지비
A178: 1053 | B178: 2010-01-14 | C178: 현금 | D178: 7974수리비 | E178: 형제카센타 | G178: 329000 | BX178: 4309 | BY178: 물류비
A179: 1054 | B179: 2010-01-14 | C179: 매출 | D179: 스테인레스관#1,100*10,70000,30 | E179: 가람공무 | G179: 2100000 | H179: 스테인레스관#1 | I179: 100*10 | J179: 70000 | K179: 30 | V179: 5 | BX179: 4310 | BY179: 감가상각비
A180: 1054 | B180: 2010-01-14 | C180: 매출 | D180: 스테인레스관#2,80*10,54000,50 | E180: 가람공무 | G180: 2700000 | H180: 스테인레스관#2 | I180: 80*10 | J180: 54000 | K180: 50 | BX180: 4311 | BY180: 세금과공과
A181: 1054 | B181: 2010-01-14 | C181: 부가세예수금 | D181: 스테인레스관#1 외 | E181: 가람공무 | G181: 480000 | BX181: 4312 | BY181: 광고선전비
A182: 1054 | B182: 2010-01-14 | C182: 외상매출금 | D182: 스테인레스관#1 외 | E182: 가람공무 | F182: 3000000 | BX182: 4313 | BY182: 차량유지비
A183: 1054 | B183: 2010-01-14 | C183: 보통예금 | D183: 스테인레스관#1 외 224201-04-224210 | E183: 국민은행 | F183: 2280000 | O183: 224201-04-224210 | BX183: 4314 | BY183: 연구비
A184: 1055 | B184: 2010-01-14 | C184: 매출 | D184: 1,11,1200,500 | E184: 12 | G184: 600000 | H184: 철근1 | I184: 11 | J184: 1200 | K184: 500 | V184: 6 | BX184: 4315 | BY184: 경상개발비
A185: 1055 | B185: 2010-01-14 | C185: 매출 | D185: H-Beam,50*50*10,1200000,20 | E185: 12 | G185: 24000000 | H185: H-Beam | I185: 50*50*10 | J185: 1200000 | K185: 20 | BX185: 4316 | BY185: 대손상각비(충당금전입액포함)
A186: 1055 | B186: 2010-01-14 | C186: 매출 | D186: I-Beam,30*40*10,650000,10 | E186: 12 | G186: 6500000 | H186: I-Beam | I186: 30*40*10 | J186: 650000 | K186: 10 | BX186: 4317 | BY186: 미분양주택관리비
A187: 1055 | B187: 2010-01-14 | C187: 부가세예수금 | D187: 1 외 | E187: 12 | G187: 3110000 | BX187: 4318 | BY187: 수주비
A188: 1055 | B188: 2010-01-14 | C188: 외상매출금 | D188: 1 외 | E188: 12 | F188: 16000000 | BX188: 4319 | BY188: 소모품비
A189: 1055 | B189: 2010-01-14 | C189: 보통예금 | D189: 1 외 224201-04-224210 | E189: 국민은행 | F189: 18210000 | O189: 224201-04-224210 | BX189: 4320 | BY189: 잡비
A190: 1056 | B190: 2010-01-14 | C190: 매출 | D190: 아연도강판,0.5*4*5,350000,50 | E190: 이우차체공업 | G190: 17500000 | H190: 아연도강판 | I190: 0.5*4*5 | J190: 350000 | K190: 50 | V190: 5 | BX190: 4321 | BY190: 창업비상각
A191: 1056 | B191: 2010-01-14 | C191: 매출 | D191: 아연동강판,0.3*4*5,290000,50 | E191: 이우차체공업 | G191: 14500000 | H191: 아연동강판 | I191: 0.3*4*5 | J191: 290000 | K191: 50 | BX191: 4322 | BY191: 신주발행비상각
A192: 1056 | B192: 2010-01-14 | C192: 부가세예수금 | D192: 아연도강판 외 | E192: 이우차체공업 | G192: 3200000 | BX192: 4323 | BY192: 사채발행비상각
A193: 1056 | B193: 2010-01-14 | C193: 외상매출금 | D193: 아연도강판 외 | E193: 이우차체공업 | F193: 20000000 | BX193: 4324 | BY193: 사채할인발행차금상각
A194: 1056 | B194: 2010-01-14 | C194: 보통예금 | D194: 아연도강판 외 411-910001-21098 | E194: 하나은행 | F194: 15200000 | O194: 411-910001-21098 | BX194: 4325 | BY194: 개발비상각
A195: 1057 | B195: 2010-01-14 | C195: 매출 | D195: 아연도강판,0.5*4*5,350000,10 | E195: 이우차체공업 | G195: 3500000 | H195: 아연도강판 | I195: 0.5*4*5 | J195: 350000 | K195: 10 | V195: 5 | BX195: 4326 | BY195: 시험연구비상각
A196: 1057 | B196: 2010-01-14 | C196: 매출 | D196: 아연동강판,0.3*4*5,285000,10 | E196: 이우차체공업 | G196: 2850000 | H196: 아연동강판 | I196: 0.3*4*5 | J196: 285000 | K196: 10 | BX196: 4400 | BY196: Ⅵ.영업외수익
A197: 1057 | B197: 2010-01-14 | C197: 부가세예수금 | D197: 아연도강판 외 | E197: 이우차체공업 | G197: 635000 | BX197: 4401 | BY197: 수입이자
A198: 1057 | B198: 2010-01-14 | C198: 외상매출금 | D198: 아연도강판 외 | E198: 이우차체공업 | F198: 3000000 | BX198: 4402 | BY198: 유가증권이자
A199: 1057 | B199: 2010-01-14 | C199: 보통예금 | D199: 아연도강판 외 651-231065-09 | E199: 신한은행 | F199: 3985000 | O199: 651-231065-09 | BX199: 4403 | BY199: 배당금수익
A200: 1058 | B200: 2010-01-14 | C200: 매출 | D200: 강관#1,33*10M,115000,20 | E200: 13 | G200: 2300000 | H200: 강관#1 | I200: 33*10M | J200: 115000 | K200: 20 | U200: 1000000 | V200: 7 | BX200: 4404 | BY200: 임대료
A201: 1058 | B201: 2010-01-14 | C201: 매출 | D201: 강관#2,25*10m,78000,50 | E201: 13 | G201: 3900000 | H201: 강관#2 | I201: 25*10m | J201: 78000 | K201: 50 | BX201: 4405 | BY201: 유가증권처분이익
... 229 more rows

Sheet 개시분개
A1: 일자 | B1: 2010-01-01 | C1: =COUNT(D3:D505)+COUNT(E3:E505) -> 0 | D1: =SUM(D3:D2135) -> 0 | E1: =SUM(E3:E2135) -> 0 | F1: =D1-E1 -> 0 | H1: =9998-COUNTBLANK(A3:A10000) -> 0 | I1: =C1-H1 -> 0 | P1: =ISNA(S1) -> FALSE | Q1: =ISNA(R1) -> FALSE | R1: =SUM(R3:R2135) -> 0 | S1: =SUM(S3:S2135) -> 0
A2: 계정과목 | B2: 적요 | C2: 거래처 | D2: 차변 | E2: 대변 | F2: 품명 | G2: 규격 | H2: 단가 | I2: 수량 | J2: code | K2: 구분 | L2: 부서 | M2: 계좌번호 | N2: 만기일 | O2: 지급장소 | P2: 발행인 | Q2: 금리 | R2: =VLOOKUP(C2,메뉴!GD$4:GE$2696,1,FALSE) ->  | S2: =VLOOKUP(A2,메뉴!BF$3:BG$2701,2,FALSE) -> 
